date,department/service,beneficiary,amount,summary of purpose,category,transaction number,SAP vendor number
01.05.2018,BERMONDSEY AND ROTHERHITHE COMMUNITY COUNCIL,BERMONDSEY STREET FESTIVAL,"5,000.00",BERMONDSEY STREET FESTIVAL,GRANT,CHEQUE PAYMENT,CHEQUE PAYMENT
01.05.2018,BERMONDSEY AND ROTHERHITHE COMMUNITY COUNCIL,CANADA ESTATE TRA,745,COACH TRIP,GRANT,CHEQUE PAYMENT,CHEQUE PAYMENT
01.05.2018,BERMONDSEY AND ROTHERHITHE COMMUNITY COUNCIL,ROTHERHITHE FESTIVAL GROUP,"4,998.00",ROTHERHITHE FESTIVAL 2018,GRANT,CHEQUE PAYMENT,CHEQUE PAYMENT
01.05.2018,BERMONDSEY AND ROTHERHITHE COMMUNITY COUNCIL,ALBION STREET STEERING GROUP,700,SUMMER ALBION STREET ST OLAV'S SQUARE EVENT,GRANT,CHEQUE PAYMENT,CHEQUE PAYMENT
02.05.2018,ADULT SOCIAL CARE,CHOICE SUPPORT,480,APPOINTEESHIPS,OTHER PAYMENTS FOR CLIENTS,2102812473,1104183
02.05.2018,ADULT SOCIAL CARE,EQUINOX CARE,"1,090.20",APPOINTEESHIPS,OTHER PAYMENTS FOR CLIENTS,2102812481,11325422
02.05.2018,ADULT SOCIAL CARE,AMBLESIDE LODGE,360,APPOINTEESHIPS,OTHER PAYMENTS FOR CLIENTS,2102812508,1000042535
02.05.2018,ADULT SOCIAL CARE,GOLDEN LANE HOUSING LTD,892.08,APPOINTEESHIPS,OTHER PAYMENTS FOR CLIENTS,2102812509,1000046267
02.05.2018,ADULT SOCIAL CARE,HEXAGON HOUSING ASSOCIATION LTD,537.08,APPOINTEESHIPS,OTHER PAYMENTS FOR CLIENTS,2102812484,1000056905
02.05.2018,ADULT SOCIAL CARE,RIGHT SUPPORT MANAGEMENT LTD,500,APPOINTEESHIPS,OTHER PAYMENTS FOR CLIENTS,2102812496,1000070289
02.05.2018,ADULT SOCIAL CARE,LONDON CYRENIANS HOUSING LTD,600,APPOINTEESHIPS,OTHER PAYMENTS FOR CLIENTS,2102812485,1000078600
02.05.2018,ADULT SOCIAL CARE,ELIZABETH PETERS CARE HOMES LTD,280,APPOINTEESHIPS,OTHER PAYMENTS FOR CLIENTS,2102812478,1000078858
02.05.2018,ADULT SOCIAL CARE,DANSHELL GROUP,280,APPOINTEESHIPS,OTHER PAYMENTS FOR CLIENTS,2102812477,1000079284
02.05.2018,ADULT SOCIAL CARE,POP INN CAFE,280,APPOINTEESHIPS,OTHER PAYMENTS FOR CLIENTS,2102812495,1000079353
02.05.2018,ADULT SOCIAL CARE,CYGNET HOSPITAL BURY,340,APPOINTEESHIPS,OTHER PAYMENTS FOR CLIENTS,2102812476,1000079492
02.05.2018,ADULT SOCIAL CARE,FRONTIER SUPPORT SERVICES,"14,371.14",APPOINTEESHIPS,OTHER PAYMENTS FOR CLIENTS,2102812510,1000080981
02.05.2018,ADULT SOCIAL CARE,REDACTED PERSONAL DATA,600,APPOINTEESHIPS,OTHER PAYMENTS FOR CLIENTS,REDACTED,REDACTED
02.05.2018,ADULT SOCIAL CARE,REDACTED PERSONAL DATA,320,APPOINTEESHIPS,OTHER PAYMENTS FOR CLIENTS,REDACTED,REDACTED
02.05.2018,ADULT SOCIAL CARE,REDACTED PERSONAL DATA,260,APPOINTEESHIPS,OTHER PAYMENTS FOR CLIENTS,REDACTED,REDACTED
02.05.2018,ADULT SOCIAL CARE,REDACTED PERSONAL DATA,558.32,APPOINTEESHIPS,OTHER PAYMENTS FOR CLIENTS,REDACTED,REDACTED
02.05.2018,ADULT SOCIAL CARE,REDACTED PERSONAL DATA,575,APPOINTEESHIPS,OTHER PAYMENTS FOR CLIENTS,REDACTED,REDACTED
02.05.2018,ADULT SOCIAL CARE,REDACTED PERSONAL DATA,680,APPOINTEESHIPS,OTHER PAYMENTS FOR CLIENTS,REDACTED,REDACTED
02.05.2018,ADULT SOCIAL CARE,NESTOR PRIMECARE SERVICES LTD,"1,326.78",EXTRA CARE CONTRACT,HOMECARE - SPOT,5902301415,11098703
02.05.2018,ADULT SOCIAL CARE,HEALTHCARE & TRANSPORT SERVICES,306,LD LTS 18-64,CLIENT TRANSPORT,2102812453,1000042743
02.05.2018,ADULT SOCIAL CARE,HEALTHCARE & TRANSPORT SERVICES,306,LD LTS 18-64,CLIENT TRANSPORT,2102812460,1000042743
02.05.2018,ADULT SOCIAL CARE,HEALTHCARE & TRANSPORT SERVICES,306,LD LTS 18-64,CLIENT TRANSPORT,2102812462,1000042743
02.05.2018,ADULT SOCIAL CARE,HEALTHCARE & TRANSPORT SERVICES,306,LD LTS 18-64,CLIENT TRANSPORT,2102812464,1000042743
02.05.2018,ADULT SOCIAL CARE,LONDON CARE LTD,408.17,LD LTS 18-64,HOMECARE - C&V,2102811874,1000003398
02.05.2018,ADULT SOCIAL CARE,CARE DIRECT UK LTD,413.7,LD LTS 18-64,HOMECARE - SPOT,2102811896,1000066322
02.05.2018,ADULT SOCIAL CARE,BURGESS AUTISTIC TRUST,"1,872.00",LD LTS 18-64,SUPPORTED LIVING,2102812458,1000044550
02.05.2018,ADULT SOCIAL CARE,BURGESS AUTISTIC TRUST,"2,340.00",LD LTS 18-64,SUPPORTED LIVING,2102812454,1000044550
02.05.2018,ADULT SOCIAL CARE,BURGESS AUTISTIC TRUST,"3,120.00",LD LTS 18-64,SUPPORTED LIVING,2102812456,1000044550
02.05.2018,ADULT SOCIAL CARE,LAMBETH MENCAP,"10,250.00",LOCAL COMMUNITY OFFER,EXTERNAL AGENCIES AND BODIES,5902301321,1000005477
02.05.2018,ADULT SOCIAL CARE,SWK DISABLEMENT ASSN,"8,125.00",LOCAL COMMUNITY OFFER,EXTERNAL AGENCIES AND BODIES,5902301323,1000011698
02.05.2018,ADULT SOCIAL CARE,SWK DISABLEMENT ASSN,"11,875.00",LOCAL COMMUNITY OFFER,EXTERNAL AGENCIES AND BODIES,5902301322,1000011698
02.05.2018,ADULT SOCIAL CARE,BLACKFRIARS SETTLEMENT,"7,075.00",LOCAL COMMUNITY OFFER,EXTERNAL AGENCIES AND BODIES,5902301326,1000071456
02.05.2018,ADULT SOCIAL CARE,BLACKFRIARS SETTLEMENT,"7,562.50",LOCAL COMMUNITY OFFER,EXTERNAL AGENCIES AND BODIES,5902301327,1000071456
02.05.2018,ADULT SOCIAL CARE,LONDON CARE LTD,378.35,MEM LTS 65+,HOMECARE - C&V,2102811644,1000003398
02.05.2018,ADULT SOCIAL CARE,LONDON CARE LTD,529.79,MEM LTS 65+,HOMECARE - C&V,2102811698,1000003398
02.05.2018,ADULT SOCIAL CARE,LONDON CARE LTD,664.02,MEM LTS 65+,HOMECARE - C&V,2102811818,1000003398
02.05.2018,ADULT SOCIAL CARE,LONDON CARE LTD,689.48,MEM LTS 65+,HOMECARE - C&V,2102811690,1000003398
02.05.2018,ADULT SOCIAL CARE,CARE DIRECT UK LTD,565.39,MEM LTS 65+,HOMECARE - SPOT,2102812054,1000066322
02.05.2018,ADULT SOCIAL CARE,CARE DIRECT UK LTD,289.59,MH LTS 18-64,HOMECARE - SPOT,2102811980,1000066322
02.05.2018,ADULT SOCIAL CARE,LONDON CARE LTD,891.28,MH LTS 65+,HOMECARE - C&V,2102811662,1000003398
02.05.2018,ADULT SOCIAL CARE,LONDON CARE LTD,268.96,PHY LTS 18-64,HOMECARE - C&V,2102811692,1000003398
02.05.2018,ADULT SOCIAL CARE,LONDON CARE LTD,269.08,PHY LTS 18-64,HOMECARE - C&V,2102811826,1000003398
02.05.2018,ADULT SOCIAL CARE,LONDON CARE LTD,306.83,PHY LTS 18-64,HOMECARE - C&V,2102811688,1000003398
02.05.2018,ADULT SOCIAL CARE,LONDON CARE LTD,327.92,PHY LTS 18-64,HOMECARE - C&V,2102811672,1000003398
02.05.2018,ADULT SOCIAL CARE,LONDON CARE LTD,340.47,PHY LTS 18-64,HOMECARE - C&V,2102811774,1000003398
02.05.2018,ADULT SOCIAL CARE,LONDON CARE LTD,353.08,PHY LTS 18-64,HOMECARE - C&V,2102811638,1000003398
02.05.2018,ADULT SOCIAL CARE,LONDON CARE LTD,369.92,PHY LTS 18-64,HOMECARE - C&V,2102811632,1000003398
02.05.2018,ADULT SOCIAL CARE,LONDON CARE LTD,445.54,PHY LTS 18-64,HOMECARE - C&V,2102811764,1000003398
02.05.2018,ADULT SOCIAL CARE,LONDON CARE LTD,458.24,PHY LTS 18-64,HOMECARE - C&V,2102811840,1000003398
02.05.2018,ADULT SOCIAL CARE,LONDON CARE LTD,487.49,PHY LTS 18-64,HOMECARE - C&V,2102811780,1000003398
02.05.2018,ADULT SOCIAL CARE,LONDON CARE LTD,521.18,PHY LTS 18-64,HOMECARE - C&V,2102811732,1000003398
02.05.2018,ADULT SOCIAL CARE,LONDON CARE LTD,537.92,PHY LTS 18-64,HOMECARE - C&V,2102811758,1000003398
02.05.2018,ADULT SOCIAL CARE,LONDON CARE LTD,540.68,PHY LTS 18-64,HOMECARE - C&V,2102811686,1000003398
02.05.2018,ADULT SOCIAL CARE,LONDON CARE LTD,613.76,PHY LTS 18-64,HOMECARE - C&V,2102811726,1000003398
02.05.2018,ADULT SOCIAL CARE,LONDON CARE LTD,693.55,PHY LTS 18-64,HOMECARE - C&V,2102811754,1000003398
02.05.2018,ADULT SOCIAL CARE,LONDON CARE LTD,857.65,PHY LTS 18-64,HOMECARE - C&V,2102811706,1000003398
02.05.2018,ADULT SOCIAL CARE,LONDON CARE LTD,"1,118.35",PHY LTS 18-64,HOMECARE - C&V,2102811634,1000003398
02.05.2018,ADULT SOCIAL CARE,LONDON CARE LTD,"1,437.83",PHY LTS 18-64,HOMECARE - C&V,2102811708,1000003398
02.05.2018,ADULT SOCIAL CARE,LONDON CARE LTD,"2,021.73",PHY LTS 18-64,HOMECARE - C&V,2102811784,1000003398
02.05.2018,ADULT SOCIAL CARE,LONDON CARE LTD,"2,161.06",PHY LTS 18-64,HOMECARE - C&V,2102811806,1000003398
02.05.2018,ADULT SOCIAL CARE,LONDON CARE LTD,"2,463.22",PHY LTS 18-64,HOMECARE - C&V,2102811824,1000003398
02.05.2018,ADULT SOCIAL CARE,LONDON CARE LTD,281.6,PHY LTS 18-64,HOMECARE - SPOT,2102811866,1000003398
02.05.2018,ADULT SOCIAL CARE,CARE DIRECT UK LTD,262.01,PHY LTS 18-64,HOMECARE - SPOT,2102812071,1000066322
02.05.2018,ADULT SOCIAL CARE,CARE DIRECT UK LTD,268.91,PHY LTS 18-64,HOMECARE - SPOT,2102812074,1000066322
02.05.2018,ADULT SOCIAL CARE,CARE DIRECT UK LTD,310.28,PHY LTS 18-64,HOMECARE - SPOT,2102811990,1000066322
02.05.2018,ADULT SOCIAL CARE,CARE DIRECT UK LTD,417.25,PHY LTS 18-64,HOMECARE - SPOT,2102811976,1000066322
02.05.2018,ADULT SOCIAL CARE,CARE DIRECT UK LTD,434.39,PHY LTS 18-64,HOMECARE - SPOT,2102812041,1000066322
02.05.2018,ADULT SOCIAL CARE,CARE DIRECT UK LTD,727.42,PHY LTS 18-64,HOMECARE - SPOT,2102812063,1000066322
02.05.2018,ADULT SOCIAL CARE,LONDON CARE LTD,268.96,PHY LTS 65+,HOMECARE - C&V,2102811736,1000003398
02.05.2018,ADULT SOCIAL CARE,LONDON CARE LTD,273.26,PHY LTS 65+,HOMECARE - C&V,2102811722,1000003398
02.05.2018,ADULT SOCIAL CARE,LONDON CARE LTD,302.6,PHY LTS 65+,HOMECARE - C&V,2102811658,1000003398
02.05.2018,ADULT SOCIAL CARE,LONDON CARE LTD,336.26,PHY LTS 65+,HOMECARE - C&V,2102811794,1000003398
02.05.2018,ADULT SOCIAL CARE,LONDON CARE LTD,343.04,PHY LTS 65+,HOMECARE - C&V,2102811678,1000003398
02.05.2018,ADULT SOCIAL CARE,LONDON CARE LTD,349.8,PHY LTS 65+,HOMECARE - C&V,2102811748,1000003398
02.05.2018,ADULT SOCIAL CARE,LONDON CARE LTD,353.08,PHY LTS 65+,HOMECARE - C&V,2102811740,1000003398
02.05.2018,ADULT SOCIAL CARE,LONDON CARE LTD,420.4,PHY LTS 65+,HOMECARE - C&V,2102811668,1000003398
02.05.2018,ADULT SOCIAL CARE,LONDON CARE LTD,425.7,PHY LTS 65+,HOMECARE - C&V,2102811664,1000003398
02.05.2018,ADULT SOCIAL CARE,LONDON CARE LTD,441.33,PHY LTS 65+,HOMECARE - C&V,2102811790,1000003398
02.05.2018,ADULT SOCIAL CARE,LONDON CARE LTD,459.5,PHY LTS 65+,HOMECARE - C&V,2102811836,1000003398
02.05.2018,ADULT SOCIAL CARE,LONDON CARE LTD,470.68,PHY LTS 65+,HOMECARE - C&V,2102811862,1000003398
02.05.2018,ADULT SOCIAL CARE,LONDON CARE LTD,470.68,PHY LTS 65+,HOMECARE - C&V,2102811870,1000003398
02.05.2018,ADULT SOCIAL CARE,LONDON CARE LTD,470.96,PHY LTS 65+,HOMECARE - C&V,2102811768,1000003398
02.05.2018,ADULT SOCIAL CARE,LONDON CARE LTD,512.88,PHY LTS 65+,HOMECARE - C&V,2102811744,1000003398
02.05.2018,ADULT SOCIAL CARE,LONDON CARE LTD,521.2,PHY LTS 65+,HOMECARE - C&V,2102811810,1000003398
02.05.2018,ADULT SOCIAL CARE,LONDON CARE LTD,538.18,PHY LTS 65+,HOMECARE - C&V,2102811670,1000003398
02.05.2018,ADULT SOCIAL CARE,LONDON CARE LTD,554.75,PHY LTS 65+,HOMECARE - C&V,2102811712,1000003398
02.05.2018,ADULT SOCIAL CARE,LONDON CARE LTD,563.33,PHY LTS 65+,HOMECARE - C&V,2102811778,1000003398
02.05.2018,ADULT SOCIAL CARE,LONDON CARE LTD,571.78,PHY LTS 65+,HOMECARE - C&V,2102811738,1000003398
02.05.2018,ADULT SOCIAL CARE,LONDON CARE LTD,588.56,PHY LTS 65+,HOMECARE - C&V,2102811844,1000003398
02.05.2018,ADULT SOCIAL CARE,LONDON CARE LTD,630.75,PHY LTS 65+,HOMECARE - C&V,2102811860,1000003398
02.05.2018,ADULT SOCIAL CARE,LONDON CARE LTD,647.41,PHY LTS 65+,HOMECARE - C&V,2102811654,1000003398
02.05.2018,ADULT SOCIAL CARE,LONDON CARE LTD,655.72,PHY LTS 65+,HOMECARE - C&V,2102811674,1000003398
02.05.2018,ADULT SOCIAL CARE,LONDON CARE LTD,655.8,PHY LTS 65+,HOMECARE - C&V,2102811702,1000003398
02.05.2018,ADULT SOCIAL CARE,LONDON CARE LTD,659.98,PHY LTS 65+,HOMECARE - C&V,2102811804,1000003398
02.05.2018,ADULT SOCIAL CARE,LONDON CARE LTD,664.21,PHY LTS 65+,HOMECARE - C&V,2102811680,1000003398
02.05.2018,ADULT SOCIAL CARE,LONDON CARE LTD,698.67,PHY LTS 65+,HOMECARE - C&V,2102811770,1000003398
02.05.2018,ADULT SOCIAL CARE,LONDON CARE LTD,706.16,PHY LTS 65+,HOMECARE - C&V,2102811646,1000003398
02.05.2018,ADULT SOCIAL CARE,LONDON CARE LTD,706.44,PHY LTS 65+,HOMECARE - C&V,2102811856,1000003398
02.05.2018,ADULT SOCIAL CARE,LONDON CARE LTD,748.19,PHY LTS 65+,HOMECARE - C&V,2102811802,1000003398
02.05.2018,ADULT SOCIAL CARE,LONDON CARE LTD,756.84,PHY LTS 65+,HOMECARE - C&V,2102811792,1000003398
02.05.2018,ADULT SOCIAL CARE,LONDON CARE LTD,798.82,PHY LTS 65+,HOMECARE - C&V,2102811730,1000003398
02.05.2018,ADULT SOCIAL CARE,LONDON CARE LTD,890.78,PHY LTS 65+,HOMECARE - C&V,2102811832,1000003398
02.05.2018,ADULT SOCIAL CARE,LONDON CARE LTD,899.6,PHY LTS 65+,HOMECARE - C&V,2102811700,1000003398
02.05.2018,ADULT SOCIAL CARE,LONDON CARE LTD,908.04,PHY LTS 65+,HOMECARE - C&V,2102811676,1000003398
02.05.2018,ADULT SOCIAL CARE,LONDON CARE LTD,953.32,PHY LTS 65+,HOMECARE - C&V,2102811842,1000003398
02.05.2018,ADULT SOCIAL CARE,LONDON CARE LTD,975.24,PHY LTS 65+,HOMECARE - C&V,2102811820,1000003398
02.05.2018,ADULT SOCIAL CARE,LONDON CARE LTD,983.75,PHY LTS 65+,HOMECARE - C&V,2102811694,1000003398
02.05.2018,ADULT SOCIAL CARE,LONDON CARE LTD,"1,004.66",PHY LTS 65+,HOMECARE - C&V,2102811666,1000003398
02.05.2018,ADULT SOCIAL CARE,LONDON CARE LTD,"1,038.50",PHY LTS 65+,HOMECARE - C&V,2102811756,1000003398
02.05.2018,ADULT SOCIAL CARE,LONDON CARE LTD,"1,097.34",PHY LTS 65+,HOMECARE - C&V,2102811846,1000003398
02.05.2018,ADULT SOCIAL CARE,LONDON CARE LTD,"1,171.06",PHY LTS 65+,HOMECARE - C&V,2102811650,1000003398
02.05.2018,ADULT SOCIAL CARE,LONDON CARE LTD,"1,193.86",PHY LTS 65+,HOMECARE - C&V,2102811720,1000003398
02.05.2018,ADULT SOCIAL CARE,LONDON CARE LTD,"1,194.00",PHY LTS 65+,HOMECARE - C&V,2102811724,1000003398
02.05.2018,ADULT SOCIAL CARE,LONDON CARE LTD,"1,387.10",PHY LTS 65+,HOMECARE - C&V,2102811684,1000003398
02.05.2018,ADULT SOCIAL CARE,LONDON CARE LTD,"1,412.41",PHY LTS 65+,HOMECARE - C&V,2102811798,1000003398
02.05.2018,ADULT SOCIAL CARE,LONDON CARE LTD,"1,471.14",PHY LTS 65+,HOMECARE - C&V,2102811746,1000003398
02.05.2018,ADULT SOCIAL CARE,LONDON CARE LTD,"1,496.44",PHY LTS 65+,HOMECARE - C&V,2102811786,1000003398
02.05.2018,ADULT SOCIAL CARE,LONDON CARE LTD,"1,627.06",PHY LTS 65+,HOMECARE - C&V,2102811766,1000003398
02.05.2018,ADULT SOCIAL CARE,LONDON CARE LTD,"1,933.04",PHY LTS 65+,HOMECARE - C&V,2102811788,1000003398
02.05.2018,ADULT SOCIAL CARE,LONDON CARE LTD,"2,169.52",PHY LTS 65+,HOMECARE - C&V,2102811656,1000003398
02.05.2018,ADULT SOCIAL CARE,LONDON CARE LTD,"2,572.63",PHY LTS 65+,HOMECARE - C&V,2102811734,1000003398
02.05.2018,ADULT SOCIAL CARE,CARE DIRECT UK LTD,286.14,PHY LTS 65+,HOMECARE - C&V,2102811956,1000066322
02.05.2018,ADULT SOCIAL CARE,CARE DIRECT UK LTD,510.23,PHY LTS 65+,HOMECARE - C&V,2102811876,1000066322
02.05.2018,ADULT SOCIAL CARE,LONDON CARE LTD,437.27,PHY LTS 65+,HOMECARE - SPOT,2102811848,1000003398
02.05.2018,ADULT SOCIAL CARE,LONDON CARE LTD,462.55,PHY LTS 65+,HOMECARE - SPOT,2102811716,1000003398
02.05.2018,ADULT SOCIAL CARE,LONDON CARE LTD,533.92,PHY LTS 65+,HOMECARE - SPOT,2102811838,1000003398
02.05.2018,ADULT SOCIAL CARE,CARE DIRECT UK LTD,251.67,PHY LTS 65+,HOMECARE - SPOT,2102812077,1000066322
02.05.2018,ADULT SOCIAL CARE,CARE DIRECT UK LTD,255.11,PHY LTS 65+,HOMECARE - SPOT,2102811894,1000066322
02.05.2018,ADULT SOCIAL CARE,CARE DIRECT UK LTD,265.46,PHY LTS 65+,HOMECARE - SPOT,2102811988,1000066322
02.05.2018,ADULT SOCIAL CARE,CARE DIRECT UK LTD,265.46,PHY LTS 65+,HOMECARE - SPOT,2102812087,1000066322
02.05.2018,ADULT SOCIAL CARE,CARE DIRECT UK LTD,282.7,PHY LTS 65+,HOMECARE - SPOT,2102811886,1000066322
02.05.2018,ADULT SOCIAL CARE,CARE DIRECT UK LTD,306.83,PHY LTS 65+,HOMECARE - SPOT,2102812048,1000066322
02.05.2018,ADULT SOCIAL CARE,CARE DIRECT UK LTD,334.41,PHY LTS 65+,HOMECARE - SPOT,2102811958,1000066322
02.05.2018,ADULT SOCIAL CARE,CARE DIRECT UK LTD,358.54,PHY LTS 65+,HOMECARE - SPOT,2102811996,1000066322
02.05.2018,ADULT SOCIAL CARE,CARE DIRECT UK LTD,386.12,PHY LTS 65+,HOMECARE - SPOT,2102812066,1000066322
02.05.2018,ADULT SOCIAL CARE,CARE DIRECT UK LTD,399.91,PHY LTS 65+,HOMECARE - SPOT,2102812024,1000066322
02.05.2018,ADULT SOCIAL CARE,CARE DIRECT UK LTD,406.81,PHY LTS 65+,HOMECARE - SPOT,2102812034,1000066322
02.05.2018,ADULT SOCIAL CARE,CARE DIRECT UK LTD,434.39,PHY LTS 65+,HOMECARE - SPOT,2102812008,1000066322
02.05.2018,ADULT SOCIAL CARE,CARE DIRECT UK LTD,472.31,PHY LTS 65+,HOMECARE - SPOT,2102812073,1000066322
02.05.2018,ADULT SOCIAL CARE,CARE DIRECT UK LTD,482.65,PHY LTS 65+,HOMECARE - SPOT,2102811994,1000066322
02.05.2018,ADULT SOCIAL CARE,CARE DIRECT UK LTD,489.55,PHY LTS 65+,HOMECARE - SPOT,2102811880,1000066322
02.05.2018,ADULT SOCIAL CARE,CARE DIRECT UK LTD,503.34,PHY LTS 65+,HOMECARE - SPOT,2102811902,1000066322
02.05.2018,ADULT SOCIAL CARE,CARE DIRECT UK LTD,530.92,PHY LTS 65+,HOMECARE - SPOT,2102812060,1000066322
02.05.2018,ADULT SOCIAL CARE,CARE DIRECT UK LTD,675.71,PHY LTS 65+,HOMECARE - SPOT,2102812083,1000066322
02.05.2018,ADULT SOCIAL CARE,CARE DIRECT UK LTD,703.29,PHY LTS 65+,HOMECARE - SPOT,2102812081,1000066322
02.05.2018,ADULT SOCIAL CARE,CARE DIRECT UK LTD,723.98,PHY LTS 65+,HOMECARE - SPOT,2102811960,1000066322
02.05.2018,ADULT SOCIAL CARE,CARE DIRECT UK LTD,723.98,PHY LTS 65+,HOMECARE - SPOT,2102812093,1000066322
02.05.2018,ADULT SOCIAL CARE,CARE DIRECT UK LTD,255.12,SEN LTS 65+,HOMECARE - SPOT,2102812016,1000066322
02.05.2018,ADULT SOCIAL CARE,LONDON CARE LTD,408.16,SOCIAL ISOLATION,HOMECARE - C&V,2102811834,1000003398
02.05.2018,ADULT SOCIAL CARE,LONDON CARE LTD,"1,025.76",SOCIAL ISOLATION,HOMECARE - C&V,2102811796,1000003398
02.05.2018,ADULT SOCIAL CARE,CONTACT PROFESSIONALS,"4,588.00",SPECIALIST CARE,SECTION 17 PAYMENTS TO AGENCIES/CARERS,5902301298,1000057263
02.05.2018,ADULT SOCIAL CARE,CONTACT PROFESSIONALS,"4,588.00",SPECIALIST CARE,SECTION 17 PAYMENTS TO AGENCIES/CARERS,5902301300,1000057263
02.05.2018,ASSET MANAGEMENT,PRB ESTATES LTD,"6,011.00",ADAPTATIONS,BUILDING R&M,2102811587,3000001691
02.05.2018,ASSET MANAGEMENT,PRB ESTATES LTD,"7,568.00",ADAPTATIONS,BUILDING R&M,2102811586,3000001691
02.05.2018,ASSET MANAGEMENT,PRB ESTATES LTD,"7,577.00",ADAPTATIONS,BUILDING R&M,2102811588,3000001691
02.05.2018,ASSET MANAGEMENT,ROWANWOOD PROFESSIONAL SERVICES LTD,"3,549.00",PROGRAMME & ASSET,SOFTWARE,5902301297,1000080531
02.05.2018,ASSET MANAGEMENT,ROWANWOOD PROFESSIONAL SERVICES LTD,"16,369.00",PROGRAMME & ASSET,SOFTWARE,5902301295,1000080531
02.05.2018,BERMONDSEY AND ROTHERHITHE COMMUNITY COUNCIL,WOMEN & FAMILY ASSOCIATION,"3,366.00",ARTS QUILTING COMMUNITY BUILDING PROJECT,GRANT,CHEQUE PAYMENT,CHEQUE PAYMENT
02.05.2018,BERMONDSEY AND ROTHERHITHE COMMUNITY COUNCIL,VISTA SPORT DEVELOPMENT,"2,819.60",YFC VISTA FUTSAL ACADEMY,GRANT,CHEQUE PAYMENT,CHEQUE PAYMENT
02.05.2018,"BOROUGH, BANKSIDE AND WALWORTH COMMUNITY COUNCIL",UNCLE-AUG CIC,"4,000.00",WALWORTH YOUTHS 2018,GRANT,CHEQUE PAYMENT,CHEQUE PAYMENT
02.05.2018,CENTRAL FUNCTIONS,STANDAGE & CO LTD,"21,248.00",AYLESBURY,SECURITY SERVICES,2102811593,4002817
02.05.2018,CENTRAL FUNCTIONS,STANDAGE & CO LTD,"40,432.00",AYLESBURY,SECURITY SERVICES,2102811595,4002817
02.05.2018,CENTRAL FUNCTIONS,STANDAGE & CO LTD,"46,056.00",AYLESBURY,SECURITY SERVICES,2102811594,4002817
02.05.2018,CENTRAL FUNCTIONS,STANBURY BUILDING SERVICES LTD,"1,795.00",COMMERCIAL PROPERTIES,BUILDING R&M,2102811590,3000001967
02.05.2018,CENTRAL FUNCTIONS,STANBURY BUILDING SERVICES LTD,"3,700.00",COMMERCIAL PROPERTIES,BUILDING R&M,2102811589,3000001967
02.05.2018,CENTRAL FUNCTIONS,VEOLIA ES (UK)LTD,"160,765.12",HEATING ACCOUNT,GAS,5902301377,1824835
02.05.2018,CENTRAL FUNCTIONS,COLLEGE OF NORTH WEST LONDON,"1,675.00",HOUSING ACADEMY,TRAINING,5902301336,1000071817
02.05.2018,CHILDREN'S SERVICES,PHS GROUP PLC,"3,612.93",AYLESBURY EARLY YEARS CENTRE,FURNITURE PURCHASE & REPAIR,5902301429,1851993
02.05.2018,CHILDREN'S SERVICES,VIKING DIRECT LIMITED,651,AYLESBURY EARLY YEARS CENTRE,STATIONERY,5902301433,1000001715
02.05.2018,CHILDREN'S SERVICES,MILES PRIVATE HIRE LTD,"1,372.00",CARE PRACTICE GROUP SET C,OTHER PAYMENTS FOR CLIENTS,5902301305,1000078590
02.05.2018,CHILDREN'S SERVICES,REDACTED PERSONAL DATA,300,FURTHER EDUCATION SUPPORT,CLIENT TRANSPORT,REDACTED,REDACTED
02.05.2018,CHILDREN'S SERVICES,REDACTED PERSONAL DATA,500,FURTHER EDUCATION SUPPORT,OTHER PAYMENTS FOR CLIENTS,REDACTED,REDACTED
02.05.2018,CHILDREN'S SERVICES,REDACTED PERSONAL DATA,-643.2,HOME 2 SCHOOL TRANSPORT,OTHER PAYMENTS FOR CLIENTS,REDACTED,REDACTED
02.05.2018,CHILDREN'S SERVICES,REDACTED PERSONAL DATA,643.2,HOME 2 SCHOOL TRANSPORT,OTHER PAYMENTS FOR CLIENTS,REDACTED,REDACTED
02.05.2018,CHILDREN'S SERVICES,REDACTED PERSONAL DATA,805,HOME 2 SCHOOL TRANSPORT,OTHER PAYMENTS FOR CLIENTS,REDACTED,REDACTED
02.05.2018,CHILDREN'S SERVICES,FLEET TUTORS,"18,328.50",LAC EDUCATION,EXTERNAL AGENCIES AND BODIES,5902301291,1000044820
02.05.2018,CHILDREN'S SERVICES,SING UP,323.7,LEA MUSIC SERVICE(310) - 5018566,CONSULTANTS SERVICES,5902301392,1000075360
02.05.2018,CHILDREN'S SERVICES,REDACTED PERSONAL DATA,500,LEAVING CARE GRANT,OTHER PAYMENTS FOR CLIENTS,REDACTED,REDACTED
02.05.2018,CHILDREN'S SERVICES,FLEET TUTORS,"30,902.00",PUPIL PREMIUM CURRENT YEAR,EXTERNAL AGENCIES AND BODIES,5902301290,1000044820
02.05.2018,CHILDREN'S SERVICES,REDACTED PERSONAL DATA,268.36,RESIDENCE ORDERS,PAYMENTS TO CARERS,REDACTED,REDACTED
02.05.2018,CHILDREN'S SERVICES,REDACTED PERSONAL DATA,269.08,RESIDENCE ORDERS,PAYMENTS TO CARERS,REDACTED,REDACTED
02.05.2018,CHILDREN'S SERVICES,REDACTED PERSONAL DATA,269.08,RESIDENCE ORDERS,PAYMENTS TO CARERS,REDACTED,REDACTED
02.05.2018,CHILDREN'S SERVICES,REDACTED PERSONAL DATA,264.16,RESIDENCE ORDERS,PAYMENTS TO CARERS,REDACTED,REDACTED
02.05.2018,CHILDREN'S SERVICES,REDACTED PERSONAL DATA,269.08,RESIDENCE ORDERS,PAYMENTS TO CARERS,REDACTED,REDACTED
02.05.2018,CHILDREN'S SERVICES,FUTURE FOUNDATIONS LTD,"1,667.14",S24 CLA,EXTERNAL AGENCIES AND BODIES,2102812444,1000063272
02.05.2018,CHILDREN'S SERVICES,FUTURE FOUNDATIONS LTD,"4,277.14",S24 CLA,EXTERNAL AGENCIES AND BODIES,2102812435,1000063272
02.05.2018,CHILDREN'S SERVICES,FUTURE FOUNDATIONS LTD,"4,277.14",S24 CLA,EXTERNAL AGENCIES AND BODIES,2102812445,1000063272
02.05.2018,CHILDREN'S SERVICES,BRIDGING THE GAP,"1,925.72",S24 CLA,EXTERNAL AGENCIES AND BODIES,2102812441,1000073662
02.05.2018,CHILDREN'S SERVICES,CONTACT PROFESSIONALS,475,SEMI INDEPENDENT,EXTERNAL AGENCIES AND BODIES,2102812431,1000057263
02.05.2018,CHILDREN'S SERVICES,FUTURE FOUNDATIONS LTD,"4,277.14",SEMI INDEPENDENT,EXTERNAL AGENCIES AND BODIES,2102812426,1000063272
02.05.2018,CHILDREN'S SERVICES,FUTURE FOUNDATIONS LTD,"4,277.14",SEMI INDEPENDENT,EXTERNAL AGENCIES AND BODIES,2102812433,1000063272
02.05.2018,CHILDREN'S SERVICES,ABOVE BEYOND CARE,"3,214.29",SEMI INDEPENDENT,EXTERNAL AGENCIES AND BODIES,2102812422,1000063478
02.05.2018,CHILDREN'S SERVICES,ABOVE BEYOND CARE,"3,214.29",SEMI INDEPENDENT,EXTERNAL AGENCIES AND BODIES,2102812424,1000063478
02.05.2018,CHILDREN'S SERVICES,ABOVE BEYOND CARE,"3,859.72",SEMI INDEPENDENT,EXTERNAL AGENCIES AND BODIES,2102812427,1000063478
02.05.2018,CHILDREN'S SERVICES,SILVER BIRCH CARE LTD,"1,800.00",SEMI INDEPENDENT,EXTERNAL AGENCIES AND BODIES,2102812446,1000076525
02.05.2018,CHILDREN'S SERVICES,SILVER BIRCH CARE LTD,"3,000.00",SEMI INDEPENDENT,EXTERNAL AGENCIES AND BODIES,2102812438,1000076525
02.05.2018,CHILDREN'S SERVICES,SILVER BIRCH CARE LTD,"3,000.00",SEMI INDEPENDENT,EXTERNAL AGENCIES AND BODIES,2102812452,1000076525
02.05.2018,CHILDREN'S SERVICES,SILVER BIRCH CARE LTD,"12,175.71",SEMI INDEPENDENT,EXTERNAL AGENCIES AND BODIES,2102812448,1000076525
02.05.2018,CHILDREN'S SERVICES,SILVER BIRCH CARE LTD,"20,938.50",SEMI INDEPENDENT,EXTERNAL AGENCIES AND BODIES,2102812440,1000076525
02.05.2018,CHILDREN'S SERVICES,REDACTED PERSONAL DATA,"3,103.54",SEMI INDEPENDENT,EXTERNAL AGENCIES AND BODIES,REDACTED,REDACTED
02.05.2018,CHILDREN'S SERVICES,FUTURE FOUNDATIONS LTD,257.14,SEMI INDEPENDENT,OTHER PAYMENTS FOR CLIENTS,2102812421,1000063272
02.05.2018,CHILDREN'S SERVICES,FUTURE FOUNDATIONS LTD,257.14,SEMI INDEPENDENT,OTHER PAYMENTS FOR CLIENTS,2102812430,1000063272
02.05.2018,CHILDREN'S SERVICES,ABOVE BEYOND CARE,257.14,SEMI INDEPENDENT,OTHER PAYMENTS FOR CLIENTS,2102812423,1000063478
02.05.2018,CHILDREN'S SERVICES,ABOVE BEYOND CARE,257.14,SEMI INDEPENDENT,OTHER PAYMENTS FOR CLIENTS,2102812425,1000063478
02.05.2018,CHILDREN'S SERVICES,SILVER BIRCH CARE LTD,257.14,SEMI INDEPENDENT,OTHER PAYMENTS FOR CLIENTS,2102812439,1000076525
02.05.2018,CHILDREN'S SERVICES,SILVER BIRCH CARE LTD,257.14,SEMI INDEPENDENT,OTHER PAYMENTS FOR CLIENTS,2102812443,1000076525
02.05.2018,CHILDREN'S SERVICES,SILVER BIRCH CARE LTD,257.14,SEMI INDEPENDENT,OTHER PAYMENTS FOR CLIENTS,2102812449,1000076525
02.05.2018,CHILDREN'S SERVICES,KENT COUNTY COUNCIL - LASER,276.94,SOUTH BERMONDSEY CHILDRENS & PARENTS CNT,INTERPRETING SERVICES,5902301436,1000012926
02.05.2018,CHILDREN'S SERVICES,REDACTED PERSONAL DATA,433.36,SPECIAL GUARDIANSHIP,PAYMENTS TO CARERS,REDACTED,REDACTED
02.05.2018,CHILDREN'S SERVICES,REDACTED PERSONAL DATA,276.1,SPECIAL GUARDIANSHIP,PAYMENTS TO CARERS,REDACTED,REDACTED
02.05.2018,CHILDREN'S SERVICES,REDACTED PERSONAL DATA,269.08,SPECIAL GUARDIANSHIP,PAYMENTS TO CARERS,REDACTED,REDACTED
02.05.2018,CHILDREN'S SERVICES,REDACTED PERSONAL DATA,269.08,SPECIAL GUARDIANSHIP,PAYMENTS TO CARERS,REDACTED,REDACTED
02.05.2018,CHILDREN'S SERVICES,REDACTED PERSONAL DATA,354.59,SPECIAL GUARDIANSHIP,PAYMENTS TO CARERS,REDACTED,REDACTED
02.05.2018,CHILDREN'S SERVICES,REDACTED PERSONAL DATA,525,SPECIAL GUARDIANSHIP,PAYMENTS TO CARERS,REDACTED,REDACTED
02.05.2018,CHILDREN'S SERVICES,REDACTED PERSONAL DATA,525,SPECIAL GUARDIANSHIP,PAYMENTS TO CARERS,REDACTED,REDACTED
02.05.2018,CHILDREN'S SERVICES,REDACTED PERSONAL DATA,525,SPECIAL GUARDIANSHIP,PAYMENTS TO CARERS,REDACTED,REDACTED
02.05.2018,CHILDREN'S SERVICES,REDACTED PERSONAL DATA,303.97,SPECIAL GUARDIANSHIP,PAYMENTS TO CARERS,REDACTED,REDACTED
02.05.2018,CHILDREN'S SERVICES,REDACTED PERSONAL DATA,268.36,SPECIAL GUARDIANSHIP,PAYMENTS TO CARERS,REDACTED,REDACTED
02.05.2018,CHILDREN'S SERVICES,ASCENT FOSTERING AGENCY LTD,"2,646.30",STAYING PUT,EXTERNAL AGENCIES AND BODIES,2102812437,1000074714
02.05.2018,CHILDREN'S SERVICES,REDACTED PERSONAL DATA,946.85,UASC SECTION 24,OTHER PAYMENTS FOR CLIENTS,REDACTED,REDACTED
02.05.2018,COMMUNITIES,CHRIST CHURCH URC/METHODIST CHURCH,330,COMMUNITY COUNCILS TEAM,HIRE OF ROOMS/HALLS,5902301398,1000054390
02.05.2018,COMMUNITIES,TFL TELESALES / OYSTER FULFILMENT,625,RESIDENT INVOLVEMENT TEAM,PUBLIC TRANSPORT,5902301283,1000059727
02.05.2018,CUSTOMER EXPERIENCE,PARIS SMITH AND RANDALL SOLICITORS,282.07,SALES & ACQUISITIONS,LEGAL FEES & COURT COSTS,5902301318,1000008059
02.05.2018,CUSTOMER EXPERIENCE,PARIS SMITH AND RANDALL SOLICITORS,353.65,SALES & ACQUISITIONS,LEGAL FEES & COURT COSTS,5902301353,1000008059
02.05.2018,CUSTOMER EXPERIENCE,PARIS SMITH AND RANDALL SOLICITORS,357.65,SALES & ACQUISITIONS,LEGAL FEES & COURT COSTS,5902301296,1000008059
02.05.2018,CUSTOMER EXPERIENCE,PARIS SMITH AND RANDALL SOLICITORS,"1,062.95",SALES & ACQUISITIONS,LEGAL FEES & COURT COSTS,5902301348,1000008059
02.05.2018,CUSTOMER EXPERIENCE,PARIS SMITH AND RANDALL SOLICITORS,"1,062.95",SALES & ACQUISITIONS,LEGAL FEES & COURT COSTS,5902301359,1000008059
02.05.2018,CUSTOMER EXPERIENCE,PARIS SMITH AND RANDALL SOLICITORS,"1,064.95",SALES & ACQUISITIONS,LEGAL FEES & COURT COSTS,5902301342,1000008059
02.05.2018,CUSTOMER EXPERIENCE,PARIS SMITH AND RANDALL SOLICITORS,"1,419.60",SALES & ACQUISITIONS,LEGAL FEES & COURT COSTS,5902301355,1000008059
02.05.2018,CUSTOMER EXPERIENCE,PARIS SMITH AND RANDALL SOLICITORS,"1,752.71",SALES & ACQUISITIONS,LEGAL FEES & COURT COSTS,5902301361,1000008059
02.05.2018,CUSTOMER EXPERIENCE,PARIS SMITH AND RANDALL SOLICITORS,"1,773.25",SALES & ACQUISITIONS,LEGAL FEES & COURT COSTS,5902301346,1000008059
02.05.2018,CUSTOMER EXPERIENCE,PARIS SMITH AND RANDALL SOLICITORS,"4,472.67",SALES & ACQUISITIONS,LEGAL FEES & COURT COSTS,5902301293,1000008059
02.05.2018,CUSTOMER EXPERIENCE,PLAN LONDON LTD,"1,750.00",SALES & ACQUISITIONS,PROFESSIONAL FEES,5902301332,1000056065
02.05.2018,CUSTOMER EXPERIENCE HGF,SG PATH LTD,415.8,CORONER'S,PROFESSIONAL FEES,5902301278,1000077883
02.05.2018,CUSTOMER EXPERIENCE HGF,SG PATH LTD,595.9,CORONER'S,PROFESSIONAL FEES,5902301279,1000077883
02.05.2018,CUSTOMER EXPERIENCE HGF,KINDLY PROPERTIES,"16,511.00",NIGHTLY TA (NSC),EXTERNAL AGENCIES AND BODIES,5902301350,1000060734
02.05.2018,ENVIRONMENT AND LEISURE,THE WALWORTH SOCIETY,"3,577.80",CAPITAL PS (LEISURE),CAPITAL GRANTS,5902301442,1000070184
02.05.2018,ENVIRONMENT AND LEISURE,STANBURY BUILDING SERVICES LTD,"5,995.00",CAPITAL PS (LEISURE),CONSTRUCTION FEES - INTERNAL,2102811592,3000001967
02.05.2018,ENVIRONMENT DIRECTORATE,AUTOMOTIVE LEASING,"1,147.10",CAR LEASING CTRL A/C,PARKING CHARGES,5902301380,11014756
02.05.2018,ENVIRONMENT DIRECTORATE,AUTOMOTIVE LEASING,"1,220.76",CAR LEASING CTRL A/C,PARKING CHARGES,5902301380,11014756
02.05.2018,ENVIRONMENT DIRECTORATE,LEX AUTOLEASE,-805.95,CAR LEASING CTRL A/C,VEHICLE LEASING CHARGES,5902298500,1000069462
02.05.2018,ENVIRONMENT DIRECTORATE,LEX AUTOLEASE,-720.2,CAR LEASING CTRL A/C,VEHICLE LEASING CHARGES,5902298497,1000069462
02.05.2018,ENVIRONMENT DIRECTORATE,LEX AUTOLEASE,-642.55,CAR LEASING CTRL A/C,VEHICLE LEASING CHARGES,5902299678,1000069462
02.05.2018,ENVIRONMENT DIRECTORATE,LEX AUTOLEASE,-445.28,CAR LEASING CTRL A/C,VEHICLE LEASING CHARGES,5902299680,1000069462
02.05.2018,ENVIRONMENT DIRECTORATE,LEX AUTOLEASE,-408.64,CAR LEASING CTRL A/C,VEHICLE LEASING CHARGES,5902298502,1000069462
02.05.2018,ENVIRONMENT DIRECTORATE,LEX AUTOLEASE,-288.05,CAR LEASING CTRL A/C,VEHICLE LEASING CHARGES,5902296728,1000069462
02.05.2018,ENVIRONMENT DIRECTORATE,LEX AUTOLEASE,264.39,CAR LEASING CTRL A/C,VEHICLE LEASING CHARGES,5902301435,1000069462
02.05.2018,ENVIRONMENT DIRECTORATE,LEX AUTOLEASE,533.94,CAR LEASING CTRL A/C,VEHICLE LEASING CHARGES,5902301439,1000069462
02.05.2018,ENVIRONMENT DIRECTORATE,LEX AUTOLEASE,"3,901.52",CAR LEASING CTRL A/C,VEHICLE LEASING CHARGES,5902301459,1000069462
02.05.2018,ENVIRONMENT DIRECTORATE,LEX AUTOLEASE,"3,993.58",CAR LEASING CTRL A/C,VEHICLE LEASING CHARGES,5902301459,1000069462
02.05.2018,ENVIRONMENT DIRECTORATE,LEX AUTOLEASE,"23,115.69",CAR LEASING CTRL A/C,VEHICLE LEASING CHARGES,5902301461,1000069462
02.05.2018,ENVIRONMENT DIRECTORATE,LEX AUTOLEASE,"23,591.48",CAR LEASING CTRL A/C,VEHICLE LEASING CHARGES,5902301461,1000069462
02.05.2018,ENVIRONMENT DIRECTORATE,KENT COUNTY COUNCIL - LASER,588.39,COLUMNS - MINOR ROADS,SOUTHWARK DIRECT CHARGES,5902301373,1000012926
02.05.2018,ENVIRONMENT DIRECTORATE,AUTOMOTIVE LEASING,994.75,COMMERCIAL VEH CTRL A/C,HIRED VEHICLES,5902301375,11014756
02.05.2018,ENVIRONMENT DIRECTORATE,AUTOMOTIVE LEASING,"1,074.40",COMMERCIAL VEH CTRL A/C,HIRED VEHICLES,5902301369,11014756
02.05.2018,ENVIRONMENT DIRECTORATE,AUTOMOTIVE LEASING,"1,094.25",COMMERCIAL VEH CTRL A/C,HIRED VEHICLES,5902301372,11014756
02.05.2018,ENVIRONMENT DIRECTORATE,AUTOMOTIVE LEASING,"1,710.49",COMMERCIAL VEH CTRL A/C,HIRED VEHICLES,5902301345,11014756
02.05.2018,ENVIRONMENT DIRECTORATE,AUTOMOTIVE LEASING,"1,710.49",COMMERCIAL VEH CTRL A/C,HIRED VEHICLES,5902301376,11014756
02.05.2018,ENVIRONMENT DIRECTORATE,AUTOMOTIVE LEASING,"1,770.00",COMMERCIAL VEH CTRL A/C,HIRED VEHICLES,5902301385,11014756
02.05.2018,ENVIRONMENT DIRECTORATE,AUTOMOTIVE LEASING,"2,387.35",COMMERCIAL VEH CTRL A/C,HIRED VEHICLES,5902301341,11014756
02.05.2018,ENVIRONMENT DIRECTORATE,AUTOMOTIVE LEASING,"2,420.00",COMMERCIAL VEH CTRL A/C,HIRED VEHICLES,5902301343,11014756
02.05.2018,ENVIRONMENT DIRECTORATE,AUTOMOTIVE LEASING,"2,447.04",COMMERCIAL VEH CTRL A/C,HIRED VEHICLES,5902301382,11014756
02.05.2018,ENVIRONMENT DIRECTORATE,AUTOMOTIVE LEASING,"11,143.04",COMMERCIAL VEH CTRL A/C,HIRED VEHICLES,5902301388,11014756
02.05.2018,ENVIRONMENT DIRECTORATE,LEX AUTOLEASE,"1,490.00",COMMERCIAL VEH CTRL A/C,HIRED VEHICLES,5902299656,1000069462
02.05.2018,ENVIRONMENT DIRECTORATE,LEX AUTOLEASE,"1,490.00",COMMERCIAL VEH CTRL A/C,HIRED VEHICLES,5902299670,1000069462
02.05.2018,ENVIRONMENT DIRECTORATE,LEX AUTOLEASE,479,FLEET INSURANCE WORKS,TRANSPORT INSURANCE COSTS,5902299636,1000069462
02.05.2018,ENVIRONMENT DIRECTORATE,BUILDING SOFTWARE LTD,"8,420.00",HIGHWAY MAINTENANCE OVERHEADS,MISCELLANEOUS EXPENSES,5902301390,1000030337
02.05.2018,ENVIRONMENT DIRECTORATE,TYCO INTEGRATED FIRE & SECURITY,343.12,PKG & CAR PKS CCTV,PROFESSIONAL FEES,5902301316,1000077948
02.05.2018,ENVIRONMENT DIRECTORATE,SOUTHWARK NEWSPAPER LTD,300,PROJECT SUPPORT,MARKETING & PUBLICITY SERVICES,5902301449,1556957
02.05.2018,ENVIRONMENT DIRECTORATE,SOUTHWARK NEWSPAPER LTD,396,PROJECT SUPPORT,MARKETING & PUBLICITY SERVICES,5902301457,1556957
02.05.2018,ENVIRONMENT DIRECTORATE,SOUTHWARK NEWSPAPER LTD,456,PROJECT SUPPORT,MARKETING & PUBLICITY SERVICES,5902301444,1556957
02.05.2018,ENVIRONMENT DIRECTORATE,TFL TELESALES / OYSTER FULFILMENT,700,PROJECT SUPPORT,PUBLIC TRANSPORT,5902301414,1000059727
02.05.2018,F & C S EXCLUDING CORPORATE BUDGETS,NORTHGATE PUBLIC SERVICES (UK) LTD,500,ADMINISTRATIVE SUPPORT,SOFTWARE,5902301294,1000037405
02.05.2018,F & C S EXCLUDING CORPORATE BUDGETS,NORTHGATE PUBLIC SERVICES (UK) LTD,"2,000.00",ADMINISTRATIVE SUPPORT,SOFTWARE,5902301292,1000037405
02.05.2018,HOUSING GENERAL FUND,ROC SYSTEMS CONSULTING LTD,"3,465.00",CAPITAL PS (STRAT SERV),ICT ACQUISITION,5902301460,1000062505
02.05.2018,HOUSING HRA,UKDN WATERFLOW (LG) LTD,"-21,520.00",CAPITAL PS (HRA),CONSTRUCTION FEES,5902301664,1093903
02.05.2018,HOUSING HRA,UKDN WATERFLOW (LG) LTD,"21,520.00",CAPITAL PS (HRA),CONSTRUCTION FEES,5902301659,1093903
02.05.2018,HOUSING HRA,CALFORD SEADEN LLP,"7,862.71",CAPITAL PS (HRA),CONSTRUCTION FEES  - EXTERNAL,5902301288,1061592
02.05.2018,HOUSING HRA,SALTASH ENTERPRISES LTD,"15,868.39",CAPITAL PS (HRA),CONSTRUCTION FEES  - EXTERNAL,2102811604,4013605
02.05.2018,HOUSING HRA,SALTASH ENTERPRISES LTD,"21,738.62",CAPITAL PS (HRA),CONSTRUCTION FEES  - EXTERNAL,2102811598,4013605
02.05.2018,HOUSING HRA,STANDAGE & CO LTD,"10,244.69",CAPITAL PS (HRA),CONSTRUCTION MAIN CONTRACT -CERTIFICATED,2102811596,4002817
02.05.2018,HOUSING HRA,STANDAGE & CO LTD,"40,308.67",CAPITAL PS (HRA),CONSTRUCTION MAIN CONTRACT -CERTIFICATED,2102811597,4002817
02.05.2018,LEISURE DIRECTORATE,KENT COUNTY COUNCIL - LASER,745.16,DULWICH LIBRARY,GAS,5902301280,1000012926
02.05.2018,LEISURE DIRECTORATE,KENT COUNTY COUNCIL - LASER,713.05,PECKHAM LIBRARY,GAS,5902301267,1000012926
02.05.2018,LEISURE DIRECTORATE,BOLINDA UK LTD,"8,000.00",STOCK SERVICES,SUBSCRIPTIONS,5902301411,1000075655
02.05.2018,LEISURE DIRECTORATE,NETWORK RAIL INFRASTRUCTURE LTD,756.91,TREES PRINCIPAL ROADS,OTHER CONTRACTORS,5902301364,1000053596
02.05.2018,LEISURE DIRECTORATE,NETWORK RAIL INFRASTRUCTURE LTD,756.91,TREES PRINCIPAL ROADS,OTHER CONTRACTORS,5902301368,1000053596
02.05.2018,MODERNISATION HGF,BORER DATA SYSTEMS LIMITED,"1,068.00",160 TOOLEY ST.,BUILDING R&M,5902301337,1000013544
02.05.2018,MODERNISATION HGF,BORER DATA SYSTEMS LIMITED,"2,432.00",160 TOOLEY ST.,BUILDING R&M,5902301338,1000013544
02.05.2018,MODERNISATION HGF,CIVICA UK LTD,900,APPLICATIONS,SOFTWARE,5902301363,1730625
02.05.2018,MODERNISATION HGF,CIVICA UK LTD,"2,700.00",APPLICATIONS,SOFTWARE,5902301365,1730625
02.05.2018,MODERNISATION HGF,IRON MOUNTAIN (UK) LTD,"8,524.98",REPAIR AND MAINTENANCE SERVICES,INFORMATION MANAGEMENT,5902301317,1000078591
02.05.2018,PLANNING AND TRANSPORT,RBA ACOUSTICS LTD,"3,500.00",COMPLIANCE & MONITORING,PROFESSIONAL FEES,5902301374,1000050424
02.05.2018,PLANNING AND TRANSPORT,PD PLANNING UK,"1,200.00",PLANNING APPEALS AND INQUIRIES,CONSULTANTS SERVICES,5902301311,1000081074
02.05.2018,PROPERTY SERVICES,AXIS SECURITY SERVICES LTD,365,KENNINGTON WORKSHOPS,SECURITY SERVICES,5902301425,1000035320
02.05.2018,PROPERTY SERVICES,STANBURY BUILDING SERVICES LTD,"1,395.00",TOWER WORKSHOPS,BUILDING R&M,2102811591,3000001967
02.05.2018,RESIDENT SERVICES,EXTREME ENVIRONMENTAL SERVICES LTD,450,TA ESTATE VOIDS,PREMISES CLEANING,5902301257,1000023922
02.05.2018,RESIDENT SERVICES,CASTLE WATER LTD,287.17,TA HOSTELS,ELECTRICITY,5902301270,1000078867
03.05.2018,ADULT SOCIAL CARE,REDACTED PERSONAL DATA,400,APPOINTEESHIPS,OTHER PAYMENTS FOR CLIENTS,REDACTED,REDACTED
03.05.2018,ADULT SOCIAL CARE,HEALTH PERSONNEL LTD,"3,676.00",LD LTS 18-64,RESIDENTIAL CARE,2102813020,1000076377
03.05.2018,ADULT SOCIAL CARE,CURLING MOORE SOLICITORS & ADVOCATE,"8,326.20",LD LTS 18-64,RESIDENTIAL CARE,2102813209,1000080035
03.05.2018,ADULT SOCIAL CARE,ACCESS FOR LIVING,346,LD LTS 18-64,SUPPORTED LIVING,2102813080,1000080839
03.05.2018,ADULT SOCIAL CARE,LONDON CARE LTD,369.96,MEM LTS 18-64,HOMECARE - C&V,2102812806,1000003398
03.05.2018,ADULT SOCIAL CARE,LONDON CARE LTD,756.6,MEM LTS 18-64,HOMECARE - C&V,2102812861,1000003398
03.05.2018,ADULT SOCIAL CARE,LONDON CARE LTD,369.92,MEM LTS 65+,HOMECARE - C&V,2102812561,1000003398
03.05.2018,ADULT SOCIAL CARE,LONDON CARE LTD,487.75,MEM LTS 65+,HOMECARE - C&V,2102812844,1000003398
03.05.2018,ADULT SOCIAL CARE,LONDON CARE LTD,580.22,MEM LTS 65+,HOMECARE - C&V,2102812700,1000003398
03.05.2018,ADULT SOCIAL CARE,LONDON CARE LTD,"1,202.32",MEM LTS 65+,HOMECARE - C&V,2102812696,1000003398
03.05.2018,ADULT SOCIAL CARE,LONDON CARE LTD,"2,333.22",MEM LTS 65+,HOMECARE - C&V,2102812828,1000003398
03.05.2018,ADULT SOCIAL CARE,CARE DIRECT UK LTD,648.13,MEM LTS 65+,HOMECARE - SPOT,2102812990,1000066322
03.05.2018,ADULT SOCIAL CARE,METRO HOMECARE LTD,441.28,MEM LTS 65+,HOMECARE - SPOT,2102813077,1000070695
03.05.2018,ADULT SOCIAL CARE,CARE DIRECT UK LTD,289.59,MH LTS 18-64,HOMECARE - SPOT,2102812998,1000066322
03.05.2018,ADULT SOCIAL CARE,METRO HOMECARE LTD,668.82,MH LTS 18-64,HOMECARE - SPOT,2102813054,1000070695
03.05.2018,ADULT SOCIAL CARE,LONDON CARE LTD,487.72,MH LTS 65+,HOMECARE - C&V,2102812791,1000003398
03.05.2018,ADULT SOCIAL CARE,LONDON CARE LTD,588.56,MH LTS 65+,HOMECARE - C&V,2102812845,1000003398
03.05.2018,ADULT SOCIAL CARE,METRO HOMECARE LTD,337.86,MH LTS 65+,HOMECARE - SPOT,2102813065,1000070695
03.05.2018,ADULT SOCIAL CARE,METRO HOMECARE LTD,434.39,MH LTS 65+,HOMECARE - SPOT,2102813059,1000070695
03.05.2018,ADULT SOCIAL CARE,METRO HOMECARE LTD,448.18,MH LTS 65+,HOMECARE - SPOT,2102813040,1000070695
03.05.2018,ADULT SOCIAL CARE,LONDON CARE LTD,277.49,PHY LTS 18-64,HOMECARE - C&V,2102812843,1000003398
03.05.2018,ADULT SOCIAL CARE,LONDON CARE LTD,319.56,PHY LTS 18-64,HOMECARE - C&V,2102812553,1000003398
03.05.2018,ADULT SOCIAL CARE,LONDON CARE LTD,327.95,PHY LTS 18-64,HOMECARE - C&V,2102812809,1000003398
03.05.2018,ADULT SOCIAL CARE,LONDON CARE LTD,353.04,PHY LTS 18-64,HOMECARE - C&V,2102812847,1000003398
03.05.2018,ADULT SOCIAL CARE,LONDON CARE LTD,353.08,PHY LTS 18-64,HOMECARE - C&V,2102812704,1000003398
03.05.2018,ADULT SOCIAL CARE,LONDON CARE LTD,382.13,PHY LTS 18-64,HOMECARE - C&V,2102812754,1000003398
03.05.2018,ADULT SOCIAL CARE,LONDON CARE LTD,474.95,PHY LTS 18-64,HOMECARE - C&V,2102812688,1000003398
03.05.2018,ADULT SOCIAL CARE,LONDON CARE LTD,487.52,PHY LTS 18-64,HOMECARE - C&V,2102812786,1000003398
03.05.2018,ADULT SOCIAL CARE,LONDON CARE LTD,523.9,PHY LTS 18-64,HOMECARE - C&V,2102812579,1000003398
03.05.2018,ADULT SOCIAL CARE,LONDON CARE LTD,525.48,PHY LTS 18-64,HOMECARE - C&V,2102812571,1000003398
03.05.2018,ADULT SOCIAL CARE,LONDON CARE LTD,554.88,PHY LTS 18-64,HOMECARE - C&V,2102812870,1000003398
03.05.2018,ADULT SOCIAL CARE,LONDON CARE LTD,567.54,PHY LTS 18-64,HOMECARE - C&V,2102812810,1000003398
03.05.2018,ADULT SOCIAL CARE,LONDON CARE LTD,571.84,PHY LTS 18-64,HOMECARE - C&V,2102812638,1000003398
03.05.2018,ADULT SOCIAL CARE,LONDON CARE LTD,605.28,PHY LTS 18-64,HOMECARE - C&V,2102812836,1000003398
03.05.2018,ADULT SOCIAL CARE,LONDON CARE LTD,609.59,PHY LTS 18-64,HOMECARE - C&V,2102812871,1000003398
03.05.2018,ADULT SOCIAL CARE,LONDON CARE LTD,626.39,PHY LTS 18-64,HOMECARE - C&V,2102812771,1000003398
03.05.2018,ADULT SOCIAL CARE,LONDON CARE LTD,664.11,PHY LTS 18-64,HOMECARE - C&V,2102812787,1000003398
03.05.2018,ADULT SOCIAL CARE,LONDON CARE LTD,672.4,PHY LTS 18-64,HOMECARE - C&V,2102812799,1000003398
03.05.2018,ADULT SOCIAL CARE,LONDON CARE LTD,681.05,PHY LTS 18-64,HOMECARE - C&V,2102812626,1000003398
03.05.2018,ADULT SOCIAL CARE,LONDON CARE LTD,689.36,PHY LTS 18-64,HOMECARE - C&V,2102812835,1000003398
03.05.2018,ADULT SOCIAL CARE,LONDON CARE LTD,689.44,PHY LTS 18-64,HOMECARE - C&V,2102812785,1000003398
03.05.2018,ADULT SOCIAL CARE,LONDON CARE LTD,697.75,PHY LTS 18-64,HOMECARE - C&V,2102812784,1000003398
03.05.2018,ADULT SOCIAL CARE,LONDON CARE LTD,735.57,PHY LTS 18-64,HOMECARE - C&V,2102812581,1000003398
03.05.2018,ADULT SOCIAL CARE,LONDON CARE LTD,761.22,PHY LTS 18-64,HOMECARE - C&V,2102812573,1000003398
03.05.2018,ADULT SOCIAL CARE,LONDON CARE LTD,908.2,PHY LTS 18-64,HOMECARE - C&V,2102812610,1000003398
03.05.2018,ADULT SOCIAL CARE,LONDON CARE LTD,920.62,PHY LTS 18-64,HOMECARE - C&V,2102812825,1000003398
03.05.2018,ADULT SOCIAL CARE,LONDON CARE LTD,924.92,PHY LTS 18-64,HOMECARE - C&V,2102812587,1000003398
03.05.2018,ADULT SOCIAL CARE,LONDON CARE LTD,928.99,PHY LTS 18-64,HOMECARE - C&V,2102812606,1000003398
03.05.2018,ADULT SOCIAL CARE,LONDON CARE LTD,933.23,PHY LTS 18-64,HOMECARE - C&V,2102812750,1000003398
03.05.2018,ADULT SOCIAL CARE,LONDON CARE LTD,941.48,PHY LTS 18-64,HOMECARE - C&V,2102812827,1000003398
03.05.2018,ADULT SOCIAL CARE,LONDON CARE LTD,"1,487.83",PHY LTS 18-64,HOMECARE - C&V,2102812608,1000003398
03.05.2018,ADULT SOCIAL CARE,LONDON CARE LTD,"1,660.24",PHY LTS 18-64,HOMECARE - C&V,2102812795,1000003398
03.05.2018,ADULT SOCIAL CARE,LONDON CARE LTD,"2,114.60",PHY LTS 18-64,HOMECARE - C&V,2102812660,1000003398
03.05.2018,ADULT SOCIAL CARE,LONDON CARE LTD,"2,295.38",PHY LTS 18-64,HOMECARE - C&V,2102812740,1000003398
03.05.2018,ADULT SOCIAL CARE,CARE DIRECT UK LTD,641.24,PHY LTS 18-64,HOMECARE - C&V,2102812925,1000066322
03.05.2018,ADULT SOCIAL CARE,METRO HOMECARE LTD,337.86,PHY LTS 18-64,HOMECARE - C&V,2102813073,1000070695
03.05.2018,ADULT SOCIAL CARE,METRO HOMECARE LTD,565.39,PHY LTS 18-64,HOMECARE - C&V,2102813061,1000070695
03.05.2018,ADULT SOCIAL CARE,LONDON CARE LTD,643.2,PHY LTS 18-64,HOMECARE - SPOT,2102812874,1000003398
03.05.2018,ADULT SOCIAL CARE,CARE DIRECT UK LTD,262.01,PHY LTS 18-64,HOMECARE - SPOT,2102812983,1000066322
03.05.2018,ADULT SOCIAL CARE,CARE DIRECT UK LTD,268.91,PHY LTS 18-64,HOMECARE - SPOT,2102812986,1000066322
03.05.2018,ADULT SOCIAL CARE,CARE DIRECT UK LTD,317.17,PHY LTS 18-64,HOMECARE - SPOT,2102812914,1000066322
03.05.2018,ADULT SOCIAL CARE,CARE DIRECT UK LTD,417.25,PHY LTS 18-64,HOMECARE - SPOT,2102812988,1000066322
03.05.2018,ADULT SOCIAL CARE,CARE DIRECT UK LTD,434.39,PHY LTS 18-64,HOMECARE - SPOT,2102812944,1000066322
03.05.2018,ADULT SOCIAL CARE,CARE DIRECT UK LTD,727.42,PHY LTS 18-64,HOMECARE - SPOT,2102812960,1000066322
03.05.2018,ADULT SOCIAL CARE,METRO HOMECARE LTD,317.17,PHY LTS 18-64,HOMECARE - SPOT,2102813076,1000070695
03.05.2018,ADULT SOCIAL CARE,METRO HOMECARE LTD,330.96,PHY LTS 18-64,HOMECARE - SPOT,2102813024,1000070695
03.05.2018,ADULT SOCIAL CARE,METRO HOMECARE LTD,358.54,PHY LTS 18-64,HOMECARE - SPOT,2102813043,1000070695
03.05.2018,ADULT SOCIAL CARE,METRO HOMECARE LTD,358.54,PHY LTS 18-64,HOMECARE - SPOT,2102813079,1000070695
03.05.2018,ADULT SOCIAL CARE,METRO HOMECARE LTD,386.12,PHY LTS 18-64,HOMECARE - SPOT,2102813032,1000070695
03.05.2018,ADULT SOCIAL CARE,METRO HOMECARE LTD,465.41,PHY LTS 18-64,HOMECARE - SPOT,2102813063,1000070695
03.05.2018,ADULT SOCIAL CARE,METRO HOMECARE LTD,565.39,PHY LTS 18-64,HOMECARE - SPOT,2102813060,1000070695
03.05.2018,ADULT SOCIAL CARE,METRO HOMECARE LTD,"1,013.57",PHY LTS 18-64,HOMECARE - SPOT,2102813048,1000070695
03.05.2018,ADULT SOCIAL CARE,REVITALISE RESPITE HOLIDAYS,733,PHY LTS 18-64,PLACEMENTS - RESPITE,2102813082,1000076316
03.05.2018,ADULT SOCIAL CARE,LONDON CARE LTD,252.12,PHY LTS 65+,HOMECARE - C&V,2102812801,1000003398
03.05.2018,ADULT SOCIAL CARE,LONDON CARE LTD,252.15,PHY LTS 65+,HOMECARE - C&V,2102812722,1000003398
03.05.2018,ADULT SOCIAL CARE,LONDON CARE LTD,264.85,PHY LTS 65+,HOMECARE - C&V,2102812654,1000003398
03.05.2018,ADULT SOCIAL CARE,LONDON CARE LTD,285.8,PHY LTS 65+,HOMECARE - C&V,2102812860,1000003398
03.05.2018,ADULT SOCIAL CARE,LONDON CARE LTD,306.91,PHY LTS 65+,HOMECARE - C&V,2102812840,1000003398
03.05.2018,ADULT SOCIAL CARE,LONDON CARE LTD,315.25,PHY LTS 65+,HOMECARE - C&V,2102812646,1000003398
03.05.2018,ADULT SOCIAL CARE,LONDON CARE LTD,319.52,PHY LTS 65+,HOMECARE - C&V,2102812815,1000003398
03.05.2018,ADULT SOCIAL CARE,LONDON CARE LTD,336.2,PHY LTS 65+,HOMECARE - C&V,2102812718,1000003398
03.05.2018,ADULT SOCIAL CARE,LONDON CARE LTD,336.4,PHY LTS 65+,HOMECARE - C&V,2102812716,1000003398
03.05.2018,ADULT SOCIAL CARE,LONDON CARE LTD,340.47,PHY LTS 65+,HOMECARE - C&V,2102812742,1000003398
03.05.2018,ADULT SOCIAL CARE,LONDON CARE LTD,353.08,PHY LTS 65+,HOMECARE - C&V,2102812632,1000003398
03.05.2018,ADULT SOCIAL CARE,LONDON CARE LTD,353.08,PHY LTS 65+,HOMECARE - C&V,2102812634,1000003398
03.05.2018,ADULT SOCIAL CARE,LONDON CARE LTD,353.08,PHY LTS 65+,HOMECARE - C&V,2102812829,1000003398
03.05.2018,ADULT SOCIAL CARE,LONDON CARE LTD,353.08,PHY LTS 65+,HOMECARE - C&V,2102812868,1000003398
03.05.2018,ADULT SOCIAL CARE,LONDON CARE LTD,353.08,PHY LTS 65+,HOMECARE - C&V,2102812878,1000003398
03.05.2018,ADULT SOCIAL CARE,LONDON CARE LTD,420.4,PHY LTS 65+,HOMECARE - C&V,2102812656,1000003398
03.05.2018,ADULT SOCIAL CARE,LONDON CARE LTD,437.32,PHY LTS 65+,HOMECARE - C&V,2102812875,1000003398
03.05.2018,ADULT SOCIAL CARE,LONDON CARE LTD,462.55,PHY LTS 65+,HOMECARE - C&V,2102812596,1000003398
03.05.2018,ADULT SOCIAL CARE,LONDON CARE LTD,462.55,PHY LTS 65+,HOMECARE - C&V,2102812730,1000003398
03.05.2018,ADULT SOCIAL CARE,LONDON CARE LTD,470.68,PHY LTS 65+,HOMECARE - C&V,2102812640,1000003398
03.05.2018,ADULT SOCIAL CARE,LONDON CARE LTD,470.68,PHY LTS 65+,HOMECARE - C&V,2102812734,1000003398
03.05.2018,ADULT SOCIAL CARE,LONDON CARE LTD,470.68,PHY LTS 65+,HOMECARE - C&V,2102812873,1000003398
03.05.2018,ADULT SOCIAL CARE,LONDON CARE LTD,470.75,PHY LTS 65+,HOMECARE - C&V,2102812668,1000003398
03.05.2018,ADULT SOCIAL CARE,LONDON CARE LTD,470.96,PHY LTS 65+,HOMECARE - C&V,2102812628,1000003398
03.05.2018,ADULT SOCIAL CARE,LONDON CARE LTD,470.96,PHY LTS 65+,HOMECARE - C&V,2102812859,1000003398
03.05.2018,ADULT SOCIAL CARE,LONDON CARE LTD,483.48,PHY LTS 65+,HOMECARE - C&V,2102812569,1000003398
03.05.2018,ADULT SOCIAL CARE,LONDON CARE LTD,496.15,PHY LTS 65+,HOMECARE - C&V,2102812823,1000003398
03.05.2018,ADULT SOCIAL CARE,LONDON CARE LTD,517.09,PHY LTS 65+,HOMECARE - C&V,2102812773,1000003398
03.05.2018,ADULT SOCIAL CARE,LONDON CARE LTD,529.79,PHY LTS 65+,HOMECARE - C&V,2102812686,1000003398
03.05.2018,ADULT SOCIAL CARE,LONDON CARE LTD,538.2,PHY LTS 65+,HOMECARE - C&V,2102812589,1000003398
03.05.2018,ADULT SOCIAL CARE,LONDON CARE LTD,550.79,PHY LTS 65+,HOMECARE - C&V,2102812706,1000003398
03.05.2018,ADULT SOCIAL CARE,LONDON CARE LTD,571.74,PHY LTS 65+,HOMECARE - C&V,2102812831,1000003398
03.05.2018,ADULT SOCIAL CARE,LONDON CARE LTD,571.84,PHY LTS 65+,HOMECARE - C&V,2102812808,1000003398
03.05.2018,ADULT SOCIAL CARE,LONDON CARE LTD,575.95,PHY LTS 65+,HOMECARE - C&V,2102812851,1000003398
03.05.2018,ADULT SOCIAL CARE,LONDON CARE LTD,588.56,PHY LTS 65+,HOMECARE - C&V,2102812563,1000003398
03.05.2018,ADULT SOCIAL CARE,LONDON CARE LTD,588.56,PHY LTS 65+,HOMECARE - C&V,2102812674,1000003398
03.05.2018,ADULT SOCIAL CARE,LONDON CARE LTD,594.74,PHY LTS 65+,HOMECARE - C&V,2102812872,1000003398
03.05.2018,ADULT SOCIAL CARE,LONDON CARE LTD,600.78,PHY LTS 65+,HOMECARE - C&V,2102812866,1000003398
03.05.2018,ADULT SOCIAL CARE,LONDON CARE LTD,605.16,PHY LTS 65+,HOMECARE - C&V,2102812788,1000003398
03.05.2018,ADULT SOCIAL CARE,LONDON CARE LTD,605.44,PHY LTS 65+,HOMECARE - C&V,2102812766,1000003398
03.05.2018,ADULT SOCIAL CARE,LONDON CARE LTD,613.73,PHY LTS 65+,HOMECARE - C&V,2102812736,1000003398
03.05.2018,ADULT SOCIAL CARE,LONDON CARE LTD,634.83,PHY LTS 65+,HOMECARE - C&V,2102812849,1000003398
03.05.2018,ADULT SOCIAL CARE,LONDON CARE LTD,639,PHY LTS 65+,HOMECARE - C&V,2102812864,1000003398
03.05.2018,ADULT SOCIAL CARE,LONDON CARE LTD,643.11,PHY LTS 65+,HOMECARE - C&V,2102812684,1000003398
03.05.2018,ADULT SOCIAL CARE,LONDON CARE LTD,655.71,PHY LTS 65+,HOMECARE - C&V,2102812620,1000003398
03.05.2018,ADULT SOCIAL CARE,LONDON CARE LTD,655.8,PHY LTS 65+,HOMECARE - C&V,2102812585,1000003398
03.05.2018,ADULT SOCIAL CARE,LONDON CARE LTD,655.8,PHY LTS 65+,HOMECARE - C&V,2102812834,1000003398
03.05.2018,ADULT SOCIAL CARE,LONDON CARE LTD,691.98,PHY LTS 65+,HOMECARE - C&V,2102812676,1000003398
03.05.2018,ADULT SOCIAL CARE,LONDON CARE LTD,706.44,PHY LTS 65+,HOMECARE - C&V,2102812850,1000003398
03.05.2018,ADULT SOCIAL CARE,LONDON CARE LTD,714.54,PHY LTS 65+,HOMECARE - C&V,2102812702,1000003398
03.05.2018,ADULT SOCIAL CARE,LONDON CARE LTD,714.61,PHY LTS 65+,HOMECARE - C&V,2102812777,1000003398
03.05.2018,ADULT SOCIAL CARE,LONDON CARE LTD,731.43,PHY LTS 65+,HOMECARE - C&V,2102812712,1000003398
03.05.2018,ADULT SOCIAL CARE,LONDON CARE LTD,746.78,PHY LTS 65+,HOMECARE - C&V,2102812758,1000003398
03.05.2018,ADULT SOCIAL CARE,LONDON CARE LTD,773.4,PHY LTS 65+,HOMECARE - C&V,2102812832,1000003398
03.05.2018,ADULT SOCIAL CARE,LONDON CARE LTD,777.77,PHY LTS 65+,HOMECARE - C&V,2102812652,1000003398
03.05.2018,ADULT SOCIAL CARE,LONDON CARE LTD,790.4,PHY LTS 65+,HOMECARE - C&V,2102812842,1000003398
03.05.2018,ADULT SOCIAL CARE,LONDON CARE LTD,807.04,PHY LTS 65+,HOMECARE - C&V,2102812724,1000003398
03.05.2018,ADULT SOCIAL CARE,LONDON CARE LTD,807.3,PHY LTS 65+,HOMECARE - C&V,2102812846,1000003398
03.05.2018,ADULT SOCIAL CARE,LONDON CARE LTD,815.43,PHY LTS 65+,HOMECARE - C&V,2102812567,1000003398
03.05.2018,ADULT SOCIAL CARE,LONDON CARE LTD,823.76,PHY LTS 65+,HOMECARE - C&V,2102812796,1000003398
03.05.2018,ADULT SOCIAL CARE,LONDON CARE LTD,824,PHY LTS 65+,HOMECARE - C&V,2102812604,1000003398
03.05.2018,ADULT SOCIAL CARE,LONDON CARE LTD,832.23,PHY LTS 65+,HOMECARE - C&V,2102812728,1000003398
03.05.2018,ADULT SOCIAL CARE,LONDON CARE LTD,840.84,PHY LTS 65+,HOMECARE - C&V,2102812612,1000003398
03.05.2018,ADULT SOCIAL CARE,LONDON CARE LTD,840.84,PHY LTS 65+,HOMECARE - C&V,2102812720,1000003398
03.05.2018,ADULT SOCIAL CARE,LONDON CARE LTD,841.07,PHY LTS 65+,HOMECARE - C&V,2102812670,1000003398
03.05.2018,ADULT SOCIAL CARE,LONDON CARE LTD,874.52,PHY LTS 65+,HOMECARE - C&V,2102812876,1000003398
03.05.2018,ADULT SOCIAL CARE,LONDON CARE LTD,882.84,PHY LTS 65+,HOMECARE - C&V,2102812802,1000003398
03.05.2018,ADULT SOCIAL CARE,LONDON CARE LTD,891.28,PHY LTS 65+,HOMECARE - C&V,2102812760,1000003398
03.05.2018,ADULT SOCIAL CARE,LONDON CARE LTD,912.23,PHY LTS 65+,HOMECARE - C&V,2102812549,1000003398
03.05.2018,ADULT SOCIAL CARE,LONDON CARE LTD,924.92,PHY LTS 65+,HOMECARE - C&V,2102812664,1000003398
03.05.2018,ADULT SOCIAL CARE,LONDON CARE LTD,924.92,PHY LTS 65+,HOMECARE - C&V,2102812869,1000003398
03.05.2018,ADULT SOCIAL CARE,LONDON CARE LTD,924.92,PHY LTS 65+,HOMECARE - C&V,2102812877,1000003398
03.05.2018,ADULT SOCIAL CARE,LONDON CARE LTD,933.33,PHY LTS 65+,HOMECARE - C&V,2102812798,1000003398
03.05.2018,ADULT SOCIAL CARE,LONDON CARE LTD,941.36,PHY LTS 65+,HOMECARE - C&V,2102812779,1000003398
03.05.2018,ADULT SOCIAL CARE,LONDON CARE LTD,941.64,PHY LTS 65+,HOMECARE - C&V,2102812746,1000003398
03.05.2018,ADULT SOCIAL CARE,LONDON CARE LTD,941.64,PHY LTS 65+,HOMECARE - C&V,2102812856,1000003398
03.05.2018,ADULT SOCIAL CARE,LONDON CARE LTD,941.92,PHY LTS 65+,HOMECARE - C&V,2102812805,1000003398
03.05.2018,ADULT SOCIAL CARE,LONDON CARE LTD,950.1,PHY LTS 65+,HOMECARE - C&V,2102812781,1000003398
03.05.2018,ADULT SOCIAL CARE,LONDON CARE LTD,979.44,PHY LTS 65+,HOMECARE - C&V,2102812551,1000003398
03.05.2018,ADULT SOCIAL CARE,LONDON CARE LTD,"1,014.45",PHY LTS 65+,HOMECARE - C&V,2102812591,1000003398
03.05.2018,ADULT SOCIAL CARE,LONDON CARE LTD,"1,059.52",PHY LTS 65+,HOMECARE - C&V,2102812792,1000003398
03.05.2018,ADULT SOCIAL CARE,LONDON CARE LTD,"1,109.76",PHY LTS 65+,HOMECARE - C&V,2102812598,1000003398
03.05.2018,ADULT SOCIAL CARE,LONDON CARE LTD,"1,109.76",PHY LTS 65+,HOMECARE - C&V,2102812672,1000003398
03.05.2018,ADULT SOCIAL CARE,LONDON CARE LTD,"1,202.35",PHY LTS 65+,HOMECARE - C&V,2102812863,1000003398
03.05.2018,ADULT SOCIAL CARE,LONDON CARE LTD,"1,235.90",PHY LTS 65+,HOMECARE - C&V,2102812817,1000003398
03.05.2018,ADULT SOCIAL CARE,LONDON CARE LTD,"1,269.59",PHY LTS 65+,HOMECARE - C&V,2102812678,1000003398
03.05.2018,ADULT SOCIAL CARE,LONDON CARE LTD,"1,289.68",PHY LTS 65+,HOMECARE - C&V,2102812800,1000003398
03.05.2018,ADULT SOCIAL CARE,LONDON CARE LTD,"1,307.41",PHY LTS 65+,HOMECARE - C&V,2102812690,1000003398
03.05.2018,ADULT SOCIAL CARE,LONDON CARE LTD,"1,361.79",PHY LTS 65+,HOMECARE - C&V,2102812732,1000003398
03.05.2018,ADULT SOCIAL CARE,LONDON CARE LTD,"1,361.96",PHY LTS 65+,HOMECARE - C&V,2102812814,1000003398
03.05.2018,ADULT SOCIAL CARE,LONDON CARE LTD,"1,378.84",PHY LTS 65+,HOMECARE - C&V,2102812756,1000003398
03.05.2018,ADULT SOCIAL CARE,LONDON CARE LTD,"1,529.92",PHY LTS 65+,HOMECARE - C&V,2102812648,1000003398
03.05.2018,ADULT SOCIAL CARE,LONDON CARE LTD,"1,543.04",PHY LTS 65+,HOMECARE - C&V,2102812710,1000003398
03.05.2018,ADULT SOCIAL CARE,LONDON CARE LTD,"1,648.08",PHY LTS 65+,HOMECARE - C&V,2102812857,1000003398
03.05.2018,ADULT SOCIAL CARE,LONDON CARE LTD,"1,681.68",PHY LTS 65+,HOMECARE - C&V,2102812666,1000003398
03.05.2018,ADULT SOCIAL CARE,LONDON CARE LTD,"1,786.52",PHY LTS 65+,HOMECARE - C&V,2102812839,1000003398
03.05.2018,ADULT SOCIAL CARE,LONDON CARE LTD,"1,866.43",PHY LTS 65+,HOMECARE - C&V,2102812826,1000003398
03.05.2018,ADULT SOCIAL CARE,LONDON CARE LTD,"1,883.28",PHY LTS 65+,HOMECARE - C&V,2102812818,1000003398
03.05.2018,ADULT SOCIAL CARE,LONDON CARE LTD,"2,152.10",PHY LTS 65+,HOMECARE - C&V,2102812824,1000003398
03.05.2018,ADULT SOCIAL CARE,LONDON CARE LTD,"2,320.61",PHY LTS 65+,HOMECARE - C&V,2102812867,1000003398
03.05.2018,ADULT SOCIAL CARE,LONDON CARE LTD,"2,442.51",PHY LTS 65+,HOMECARE - C&V,2102812804,1000003398
03.05.2018,ADULT SOCIAL CARE,LONDON CARE LTD,"2,446.62",PHY LTS 65+,HOMECARE - C&V,2102812593,1000003398
03.05.2018,ADULT SOCIAL CARE,LONDON CARE LTD,"2,704.12",PHY LTS 65+,HOMECARE - C&V,2102812583,1000003398
03.05.2018,ADULT SOCIAL CARE,LONDON CARE LTD,"2,807.89",PHY LTS 65+,HOMECARE - C&V,2102812624,1000003398
03.05.2018,ADULT SOCIAL CARE,LONDON CARE LTD,"3,282.43",PHY LTS 65+,HOMECARE - C&V,2102812837,1000003398
03.05.2018,ADULT SOCIAL CARE,LONDON CARE LTD,"3,295.04",PHY LTS 65+,HOMECARE - C&V,2102812816,1000003398
03.05.2018,ADULT SOCIAL CARE,LONDON CARE LTD,"3,336.79",PHY LTS 65+,HOMECARE - C&V,2102812575,1000003398
03.05.2018,ADULT SOCIAL CARE,METRO HOMECARE LTD,289.59,PHY LTS 65+,HOMECARE - C&V,2102813055,1000070695
03.05.2018,ADULT SOCIAL CARE,METRO HOMECARE LTD,337.86,PHY LTS 65+,HOMECARE - C&V,2102813075,1000070695
03.05.2018,ADULT SOCIAL CARE,METRO HOMECARE LTD,489.55,PHY LTS 65+,HOMECARE - C&V,2102813050,1000070695
03.05.2018,ADULT SOCIAL CARE,METRO HOMECARE LTD,820.51,PHY LTS 65+,HOMECARE - C&V,2102813069,1000070695
03.05.2018,ADULT SOCIAL CARE,LONDON CARE LTD,269.08,PHY LTS 65+,HOMECARE - SPOT,2102812577,1000003398
03.05.2018,ADULT SOCIAL CARE,LONDON CARE LTD,437.12,PHY LTS 65+,HOMECARE - SPOT,2102812650,1000003398
03.05.2018,ADULT SOCIAL CARE,LONDON CARE LTD,680.94,PHY LTS 65+,HOMECARE - SPOT,2102812708,1000003398
03.05.2018,ADULT SOCIAL CARE,LONDON CARE LTD,"1,008.88",PHY LTS 65+,HOMECARE - SPOT,2102812797,1000003398
03.05.2018,ADULT SOCIAL CARE,CARE DIRECT UK LTD,251.67,PHY LTS 65+,HOMECARE - SPOT,2102812980,1000066322
03.05.2018,ADULT SOCIAL CARE,CARE DIRECT UK LTD,262.01,PHY LTS 65+,HOMECARE - SPOT,2102812922,1000066322
03.05.2018,ADULT SOCIAL CARE,CARE DIRECT UK LTD,265.46,PHY LTS 65+,HOMECARE - SPOT,2102812917,1000066322
03.05.2018,ADULT SOCIAL CARE,CARE DIRECT UK LTD,265.46,PHY LTS 65+,HOMECARE - SPOT,2102812970,1000066322
03.05.2018,ADULT SOCIAL CARE,CARE DIRECT UK LTD,268.91,PHY LTS 65+,HOMECARE - SPOT,2102812908,1000066322
03.05.2018,ADULT SOCIAL CARE,CARE DIRECT UK LTD,286.14,PHY LTS 65+,HOMECARE - SPOT,2102812927,1000066322
03.05.2018,ADULT SOCIAL CARE,CARE DIRECT UK LTD,337.86,PHY LTS 65+,HOMECARE - SPOT,2102812892,1000066322
03.05.2018,ADULT SOCIAL CARE,CARE DIRECT UK LTD,358.54,PHY LTS 65+,HOMECARE - SPOT,2102812958,1000066322
03.05.2018,ADULT SOCIAL CARE,CARE DIRECT UK LTD,372.33,PHY LTS 65+,HOMECARE - SPOT,2102812951,1000066322
03.05.2018,ADULT SOCIAL CARE,CARE DIRECT UK LTD,386.12,PHY LTS 65+,HOMECARE - SPOT,2102812957,1000066322
03.05.2018,ADULT SOCIAL CARE,CARE DIRECT UK LTD,399.91,PHY LTS 65+,HOMECARE - SPOT,2102813005,1000066322
03.05.2018,ADULT SOCIAL CARE,CARE DIRECT UK LTD,406.81,PHY LTS 65+,HOMECARE - SPOT,2102813018,1000066322
03.05.2018,ADULT SOCIAL CARE,CARE DIRECT UK LTD,434.39,PHY LTS 65+,HOMECARE - SPOT,2102812910,1000066322
03.05.2018,ADULT SOCIAL CARE,CARE DIRECT UK LTD,434.39,PHY LTS 65+,HOMECARE - SPOT,2102812945,1000066322
03.05.2018,ADULT SOCIAL CARE,CARE DIRECT UK LTD,434.39,PHY LTS 65+,HOMECARE - SPOT,2102812961,1000066322
03.05.2018,ADULT SOCIAL CARE,CARE DIRECT UK LTD,472.31,PHY LTS 65+,HOMECARE - SPOT,2102813008,1000066322
03.05.2018,ADULT SOCIAL CARE,CARE DIRECT UK LTD,482.65,PHY LTS 65+,HOMECARE - SPOT,2102813009,1000066322
03.05.2018,ADULT SOCIAL CARE,CARE DIRECT UK LTD,520.57,PHY LTS 65+,HOMECARE - SPOT,2102812941,1000066322
03.05.2018,ADULT SOCIAL CARE,CARE DIRECT UK LTD,530.92,PHY LTS 65+,HOMECARE - SPOT,2102812950,1000066322
03.05.2018,ADULT SOCIAL CARE,CARE DIRECT UK LTD,675.71,PHY LTS 65+,HOMECARE - SPOT,2102812976,1000066322
03.05.2018,ADULT SOCIAL CARE,CARE DIRECT UK LTD,703.29,PHY LTS 65+,HOMECARE - SPOT,2102812946,1000066322
03.05.2018,ADULT SOCIAL CARE,CARE DIRECT UK LTD,723.98,PHY LTS 65+,HOMECARE - SPOT,2102812975,1000066322
03.05.2018,ADULT SOCIAL CARE,METRO HOMECARE LTD,289.59,PHY LTS 65+,HOMECARE - SPOT,2102813023,1000070695
03.05.2018,ADULT SOCIAL CARE,METRO HOMECARE LTD,310.28,PHY LTS 65+,HOMECARE - SPOT,2102813062,1000070695
03.05.2018,ADULT SOCIAL CARE,METRO HOMECARE LTD,317.17,PHY LTS 65+,HOMECARE - SPOT,2102813053,1000070695
03.05.2018,ADULT SOCIAL CARE,METRO HOMECARE LTD,324.07,PHY LTS 65+,HOMECARE - SPOT,2102813041,1000070695
03.05.2018,ADULT SOCIAL CARE,METRO HOMECARE LTD,386.12,PHY LTS 65+,HOMECARE - SPOT,2102813049,1000070695
03.05.2018,ADULT SOCIAL CARE,METRO HOMECARE LTD,386.12,PHY LTS 65+,HOMECARE - SPOT,2102813074,1000070695
03.05.2018,ADULT SOCIAL CARE,METRO HOMECARE LTD,427.49,PHY LTS 65+,HOMECARE - SPOT,2102813066,1000070695
03.05.2018,ADULT SOCIAL CARE,METRO HOMECARE LTD,434.39,PHY LTS 65+,HOMECARE - SPOT,2102813030,1000070695
03.05.2018,ADULT SOCIAL CARE,METRO HOMECARE LTD,434.39,PHY LTS 65+,HOMECARE - SPOT,2102813058,1000070695
03.05.2018,ADULT SOCIAL CARE,METRO HOMECARE LTD,475.76,PHY LTS 65+,HOMECARE - SPOT,2102813027,1000070695
03.05.2018,ADULT SOCIAL CARE,METRO HOMECARE LTD,475.76,PHY LTS 65+,HOMECARE - SPOT,2102813036,1000070695
03.05.2018,ADULT SOCIAL CARE,METRO HOMECARE LTD,482.65,PHY LTS 65+,HOMECARE - SPOT,2102813029,1000070695
03.05.2018,ADULT SOCIAL CARE,METRO HOMECARE LTD,648.13,PHY LTS 65+,HOMECARE - SPOT,2102813064,1000070695
03.05.2018,ADULT SOCIAL CARE,METRO HOMECARE LTD,772.24,PHY LTS 65+,HOMECARE - SPOT,2102813047,1000070695
03.05.2018,ADULT SOCIAL CARE,METRO HOMECARE LTD,910.14,PHY LTS 65+,HOMECARE - SPOT,2102813038,1000070695
03.05.2018,ADULT SOCIAL CARE,METRO HOMECARE LTD,"1,103.20",PHY LTS 65+,HOMECARE - SPOT,2102813044,1000070695
03.05.2018,ADULT SOCIAL CARE,METRO HOMECARE LTD,"1,158.36",PHY LTS 65+,HOMECARE - SPOT,2102813037,1000070695
03.05.2018,ADULT SOCIAL CARE,LONDON CARE LTD,"2,392.06",PHY STS 65+,HOMECARE - IC,2102812618,1000003398
03.05.2018,ADULT SOCIAL CARE,CAREWATCH LEWISHAM,"11,479.50",REABLEMENT SERVICE,HOMECARE - IC,5902301384,1000042627
03.05.2018,ADULT SOCIAL CARE,LONDON CARE LTD,479.31,SEN LTS 65+,HOMECARE - C&V,2102812855,1000003398
03.05.2018,ADULT SOCIAL CARE,CARE DIRECT UK LTD,255.12,SEN LTS 65+,HOMECARE - SPOT,2102813017,1000066322
03.05.2018,ADULT SOCIAL CARE,LONDON CARE LTD,302.64,SOCIAL ISOLATION,HOMECARE - C&V,2102812822,1000003398
03.05.2018,ADULT SOCIAL CARE,LONDON CARE LTD,353.08,SOCIAL ISOLATION,HOMECARE - C&V,2102812698,1000003398
03.05.2018,ADULT SOCIAL CARE,LONDON CARE LTD,395.7,SOCIAL ISOLATION,HOMECARE - C&V,2102812680,1000003398
03.05.2018,ADULT SOCIAL CARE,LONDON CARE LTD,769.38,SOCIAL ISOLATION,HOMECARE - C&V,2102812622,1000003398
03.05.2018,ADULT SOCIAL CARE,LONDON CARE LTD,907.76,SOCIAL ISOLATION,HOMECARE - C&V,2102812854,1000003398
03.05.2018,ADULT SOCIAL CARE,LONDON CARE LTD,"2,353.68",SOCIAL ISOLATION,HOMECARE - SPOT,2102812789,1000003398
03.05.2018,ADULT SOCIAL CARE,CARE DIRECT UK LTD,268.91,SOCIAL ISOLATION,HOMECARE - SPOT,2102812900,1000066322
03.05.2018,ADULT SOCIAL CARE,METRO HOMECARE LTD,558.5,SOCIAL ISOLATION,HOMECARE - SPOT,2102813025,1000070695
03.05.2018,ADULT SOCIAL CARE,MEDACS HOMECARE,259.74,SPECIALIST CARE,SECTION 17 PAYMENTS TO AGENCIES/CARERS,2102813085,11287415
03.05.2018,ADULT SOCIAL CARE,MEDACS HOMECARE,440.14,SPECIALIST CARE,SECTION 17 PAYMENTS TO AGENCIES/CARERS,2102813083,11287415
03.05.2018,ADULT SOCIAL CARE,MEDACS HOMECARE,461.76,SPECIALIST CARE,SECTION 17 PAYMENTS TO AGENCIES/CARERS,2102813097,11287415
03.05.2018,ADULT SOCIAL CARE,MEDACS HOMECARE,786.44,SPECIALIST CARE,SECTION 17 PAYMENTS TO AGENCIES/CARERS,2102813090,11287415
03.05.2018,ADULT SOCIAL CARE,MEDACS HOMECARE,851.37,SPECIALIST CARE,SECTION 17 PAYMENTS TO AGENCIES/CARERS,2102813084,11287415
03.05.2018,ADULT SOCIAL CARE,MEDACS HOMECARE,"3,535.35",SPECIALIST CARE,SECTION 17 PAYMENTS TO AGENCIES/CARERS,2102813094,11287415
03.05.2018,ADULT SOCIAL CARE,METRO HOMECARE LTD,252,SPECIALIST CARE,SECTION 17 PAYMENTS TO AGENCIES/CARERS,2102813102,1000070695
03.05.2018,ADULT SOCIAL CARE,METRO HOMECARE LTD,504,SPECIALIST CARE,SECTION 17 PAYMENTS TO AGENCIES/CARERS,2102813101,1000070695
03.05.2018,ADULT SOCIAL CARE,PECULIAR CARE HOMES LTD,430.8,SPECIALIST CARE,SECTION 17 PAYMENTS TO AGENCIES/CARERS,2102813103,1000076991
03.05.2018,ADULT SOCIAL CARE,PECULIAR CARE HOMES LTD,"3,338.70",SPECIALIST CARE,SECTION 17 PAYMENTS TO AGENCIES/CARERS,2102813100,1000076991
03.05.2018,ADULT SOCIAL CARE,METRO HOMECARE LTD,430.94,SUB LTS 18-64,HOMECARE - C&V,2102813028,1000070695
03.05.2018,ADULT SOCIAL CARE,MEDACS HOMECARE,721.5,TRANSITION 14 - 18 YEARS,SECTION 17 PAYMENTS TO AGENCIES/CARERS,2102813089,11287415
03.05.2018,ADULT SOCIAL CARE,MEDACS HOMECARE,750.36,TRANSITION 14 - 18 YEARS,SECTION 17 PAYMENTS TO AGENCIES/CARERS,2102813091,11287415
03.05.2018,ADULT SOCIAL CARE,MEDACS HOMECARE,779.22,TRANSITION 14 - 18 YEARS,SECTION 17 PAYMENTS TO AGENCIES/CARERS,2102813096,11287415
03.05.2018,ADULT SOCIAL CARE,MEDACS HOMECARE,995.67,TRANSITION 14 - 18 YEARS,SECTION 17 PAYMENTS TO AGENCIES/CARERS,2102813088,11287415
03.05.2018,ADULT SOCIAL CARE,MEDACS HOMECARE,"1,154.40",TRANSITION 14 - 18 YEARS,SECTION 17 PAYMENTS TO AGENCIES/CARERS,2102813093,11287415
03.05.2018,ADULT SOCIAL CARE,MEDACS HOMECARE,"1,154.40",TRANSITION 14 - 18 YEARS,SECTION 17 PAYMENTS TO AGENCIES/CARERS,2102813095,11287415
03.05.2018,ADULT SOCIAL CARE,PECULIAR CARE HOMES LTD,287.2,TRANSITION 14 - 18 YEARS,SECTION 17 PAYMENTS TO AGENCIES/CARERS,2102813099,1000076991
03.05.2018,ADULT SOCIAL CARE,PECULIAR CARE HOMES LTD,"1,078.56",TRANSITION 14 - 18 YEARS,SECTION 17 PAYMENTS TO AGENCIES/CARERS,2102813098,1000076991
03.05.2018,ASSET MANAGEMENT,CHRIS & CO SOLICITORS,"7,000.00",DISREPAIR,LEGAL FEES & COURT COSTS,5902301626,1000080247
03.05.2018,ASSET MANAGEMENT,BRIDGEWATER ROOFING CONTRACTORS LTD,"5,800.00",MAJOR REPAIRS,BUILDING R&M,2102812532,3000001482
03.05.2018,BERMONDSEY AND ROTHERHITHE COMMUNITY COUNCIL,BIZZIE BODIES CIC,"8,150.00",MUSIC CLUB FOR YOUNG CHILDREN,GRANT,CHEQUE PAYMENT,CHEQUE PAYMENT
03.05.2018,CENTRAL FUNCTIONS,CITY LIT,599,MULTI-AGENCY WORKING PILOT,TRAINING,5902301584,1000051325
03.05.2018,CHIEF EXECUTIVE'S OFFICE,J C CONSULTANT SERVICES LTD,"69,225.00",CHIEF EXEC'S OFFICE,GRANTS,5902301514,1000042476
03.05.2018,CHIEF EXECUTIVE'S OFFICE,AIRWAVE SOLUTIONS LIMITED,450.68,RESILIENCE AND EMERGENCY PLANNING,COMMS & COMPUTING CONTRACT CHARGES,5902301581,1000055037
03.05.2018,CHIEF EXECUTIVE'S OFFICE,CITY OF LONDON CORPORATION,"2,450.00",RESILIENCE AND EMERGENCY PLANNING,COMMS & COMPUTING CONTRACT CHARGES,5902301579,1000052061
03.05.2018,CHIEF EXECUTIVE'S OFFICE,INSPIRE AT ST PETER'S LTD,"1,200.00",YOUTH FUND EMPLOYMENT,GRANTS,5902300824,1000041565
03.05.2018,CHIEF EXECUTIVE'S OFFICE,WALWORTH GARDEN FARM,"6,725.25",YOUTH FUND EMPLOYMENT,GRANTS,2102813210,1000042204
03.05.2018,CHILDREN AND ADULT,BB7 FIRE LTD,"1,150.00",CAPITAL PS (EDUCATION),CONSTRUCTION FEES - QUANTITY SURVEYOR,5902301587,1000079759
03.05.2018,CHILDREN AND ADULT,MORGAN SINDALL PLC,"144,797.49",CAPITAL PS (EDUCATION),CONSTRUCTION MAIN CONTRACT -CERTIFICATED,2102812528,3000001556
03.05.2018,CHILDREN AND ADULT,NUMBER 10 INTERIM LTD,"2,625.00",CAPITAL PS (STRAT SERV),ICT ACQUISITION,5902300499,1000075139
03.05.2018,CHILDREN'S SERVICES,ACTION FOR CHILDREN SERVICES LTD,"11,471.25",ACTION FOR CHILDREN - IV,EXTERNAL AGENCIES AND BODIES,5902301629,1000049984
03.05.2018,CHILDREN'S SERVICES,REDACTED PERSONAL DATA,540,ADOPTION PLACEMENTS & INTER AGENCY,PAYMENTS TO CARERS,REDACTED,REDACTED
03.05.2018,CHILDREN'S SERVICES,CROHAM SERVICES FOR CHILDREN,"3,532.11",AGENCY FOSTERING,EXTERNAL AGENCIES AND BODIES,2102813121,1556859
03.05.2018,CHILDREN'S SERVICES,CROHAM SERVICES FOR CHILDREN,"3,532.11",AGENCY FOSTERING,EXTERNAL AGENCIES AND BODIES,2102813134,1556859
03.05.2018,CHILDREN'S SERVICES,INTEGRATED SERVICES PROGRAMME,"5,009.40",AGENCY FOSTERING,EXTERNAL AGENCIES AND BODIES,2102813151,1642068
03.05.2018,CHILDREN'S SERVICES,INTEGRATED SERVICES PROGRAMME,"5,009.40",AGENCY FOSTERING,EXTERNAL AGENCIES AND BODIES,2102813161,1642068
03.05.2018,CHILDREN'S SERVICES,INTEGRATED SERVICES PROGRAMME,"5,009.40",AGENCY FOSTERING,EXTERNAL AGENCIES AND BODIES,2102813194,1642068
03.05.2018,CHILDREN'S SERVICES,INTEGRATED SERVICES PROGRAMME,"5,009.40",AGENCY FOSTERING,EXTERNAL AGENCIES AND BODIES,2102813204,1642068
03.05.2018,CHILDREN'S SERVICES,INTEGRATED SERVICES PROGRAMME,"5,164.20",AGENCY FOSTERING,EXTERNAL AGENCIES AND BODIES,2102813131,1642068
03.05.2018,CHILDREN'S SERVICES,INTEGRATED SERVICES PROGRAMME,"5,164.20",AGENCY FOSTERING,EXTERNAL AGENCIES AND BODIES,2102813141,1642068
03.05.2018,CHILDREN'S SERVICES,INTEGRATED SERVICES PROGRAMME,"5,164.20",AGENCY FOSTERING,EXTERNAL AGENCIES AND BODIES,2102813174,1642068
03.05.2018,CHILDREN'S SERVICES,ETHELBERT SPECIALIST HOMES,"3,559.46",AGENCY FOSTERING,EXTERNAL AGENCIES AND BODIES,2102813119,1796129
03.05.2018,CHILDREN'S SERVICES,ETHELBERT SPECIALIST HOMES,"3,559.46",AGENCY FOSTERING,EXTERNAL AGENCIES AND BODIES,2102813143,1796129
03.05.2018,CHILDREN'S SERVICES,ETHELBERT SPECIALIST HOMES,"3,559.46",AGENCY FOSTERING,EXTERNAL AGENCIES AND BODIES,2102813170,1796129
03.05.2018,CHILDREN'S SERVICES,ETHELBERT SPECIALIST HOMES,"3,757.16",AGENCY FOSTERING,EXTERNAL AGENCIES AND BODIES,2102813148,1796129
03.05.2018,CHILDREN'S SERVICES,ETHELBERT SPECIALIST HOMES,"3,757.16",AGENCY FOSTERING,EXTERNAL AGENCIES AND BODIES,2102813203,1796129
03.05.2018,CHILDREN'S SERVICES,SUPPORTED FOSTERING SERVICES,"2,995.71",AGENCY FOSTERING,EXTERNAL AGENCIES AND BODIES,2102813140,1927554
03.05.2018,CHILDREN'S SERVICES,SUPPORTED FOSTERING SERVICES,"3,413.57",AGENCY FOSTERING,EXTERNAL AGENCIES AND BODIES,2102813125,1927554
03.05.2018,CHILDREN'S SERVICES,SUPPORTED FOSTERING SERVICES,"5,335.71",AGENCY FOSTERING,EXTERNAL AGENCIES AND BODIES,2102813185,1927554
03.05.2018,CHILDREN'S SERVICES,FIVE RIVERS CHILD CARE LTD,"3,257.14",AGENCY FOSTERING,EXTERNAL AGENCIES AND BODIES,2102813179,1000018792
03.05.2018,CHILDREN'S SERVICES,FIVE RIVERS CHILD CARE LTD,"6,317.14",AGENCY FOSTERING,EXTERNAL AGENCIES AND BODIES,2102813135,1000018792
03.05.2018,CHILDREN'S SERVICES,TIME FOR CHILDREN LTD,"3,000.00",AGENCY FOSTERING,EXTERNAL AGENCIES AND BODIES,2102813156,1000024439
03.05.2018,CHILDREN'S SERVICES,SANKOFA CARE LTD,"3,477.30",AGENCY FOSTERING,EXTERNAL AGENCIES AND BODIES,2102813177,1000030717
03.05.2018,CHILDREN'S SERVICES,SANKOFA CARE LTD,"3,477.30",AGENCY FOSTERING,EXTERNAL AGENCIES AND BODIES,2102813181,1000030717
03.05.2018,CHILDREN'S SERVICES,SANKOFA CARE LTD,"3,803.10",AGENCY FOSTERING,EXTERNAL AGENCIES AND BODIES,2102813111,1000030717
03.05.2018,CHILDREN'S SERVICES,SANKOFA CARE LTD,"4,392.30",AGENCY FOSTERING,EXTERNAL AGENCIES AND BODIES,2102813173,1000030717
03.05.2018,CHILDREN'S SERVICES,SYNERGY FOSTERING LTD,"3,552.84",AGENCY FOSTERING,EXTERNAL AGENCIES AND BODIES,5902301468,1000031559
03.05.2018,CHILDREN'S SERVICES,KENT HOMEFINDING & FOSTERING LTD,"3,450.00",AGENCY FOSTERING,EXTERNAL AGENCIES AND BODIES,2102813154,1000033978
03.05.2018,CHILDREN'S SERVICES,CHILD FOCUS FOSTERING AGENCY LTD,"4,764.25",AGENCY FOSTERING,EXTERNAL AGENCIES AND BODIES,2102813113,1000042009
03.05.2018,CHILDREN'S SERVICES,BY THE BRIDGE LTD,"4,082.44",AGENCY FOSTERING,EXTERNAL AGENCIES AND BODIES,2102813165,1000043961
03.05.2018,CHILDREN'S SERVICES,BY THE BRIDGE LTD,"4,206.86",AGENCY FOSTERING,EXTERNAL AGENCIES AND BODIES,2102813168,1000043961
03.05.2018,CHILDREN'S SERVICES,BY THE BRIDGE LTD,"4,223.91",AGENCY FOSTERING,EXTERNAL AGENCIES AND BODIES,2102813202,1000043961
03.05.2018,CHILDREN'S SERVICES,BY THE BRIDGE LTD,"4,297.33",AGENCY FOSTERING,EXTERNAL AGENCIES AND BODIES,2102813118,1000043961
03.05.2018,CHILDREN'S SERVICES,BY THE BRIDGE LTD,"4,297.33",AGENCY FOSTERING,EXTERNAL AGENCIES AND BODIES,2102813155,1000043961
03.05.2018,CHILDREN'S SERVICES,BY THE BRIDGE LTD,"4,331.44",AGENCY FOSTERING,EXTERNAL AGENCIES AND BODIES,2102813158,1000043961
03.05.2018,CHILDREN'S SERVICES,BY THE BRIDGE LTD,"4,359.64",AGENCY FOSTERING,EXTERNAL AGENCIES AND BODIES,2102813193,1000043961
03.05.2018,CHILDREN'S SERVICES,BY THE BRIDGE LTD,"4,422.60",AGENCY FOSTERING,EXTERNAL AGENCIES AND BODIES,2102813117,1000043961
03.05.2018,CHILDREN'S SERVICES,BY THE BRIDGE LTD,"4,422.60",AGENCY FOSTERING,EXTERNAL AGENCIES AND BODIES,2102813172,1000043961
03.05.2018,CHILDREN'S SERVICES,BY THE BRIDGE LTD,"4,433.01",AGENCY FOSTERING,EXTERNAL AGENCIES AND BODIES,2102813164,1000043961
03.05.2018,CHILDREN'S SERVICES,BY THE BRIDGE LTD,"4,523.49",AGENCY FOSTERING,EXTERNAL AGENCIES AND BODIES,2102813116,1000043961
03.05.2018,CHILDREN'S SERVICES,BY THE BRIDGE LTD,"4,650.47",AGENCY FOSTERING,EXTERNAL AGENCIES AND BODIES,2102813163,1000043961
03.05.2018,CHILDREN'S SERVICES,BY THE BRIDGE LTD,"4,650.47",AGENCY FOSTERING,EXTERNAL AGENCIES AND BODIES,2102813190,1000043961
03.05.2018,CHILDREN'S SERVICES,BY THE BRIDGE LTD,"4,745.36",AGENCY FOSTERING,EXTERNAL AGENCIES AND BODIES,2102813145,1000043961
03.05.2018,CHILDREN'S SERVICES,BY THE BRIDGE LTD,"4,745.36",AGENCY FOSTERING,EXTERNAL AGENCIES AND BODIES,2102813183,1000043961
03.05.2018,CHILDREN'S SERVICES,BY THE BRIDGE LTD,"4,878.48",AGENCY FOSTERING,EXTERNAL AGENCIES AND BODIES,2102813186,1000043961
03.05.2018,CHILDREN'S SERVICES,BY THE BRIDGE LTD,"5,292.86",AGENCY FOSTERING,EXTERNAL AGENCIES AND BODIES,2102813144,1000043961
03.05.2018,CHILDREN'S SERVICES,BY THE BRIDGE LTD,"5,292.86",AGENCY FOSTERING,EXTERNAL AGENCIES AND BODIES,2102813146,1000043961
03.05.2018,CHILDREN'S SERVICES,BY THE BRIDGE LTD,"5,292.86",AGENCY FOSTERING,EXTERNAL AGENCIES AND BODIES,2102813196,1000043961
03.05.2018,CHILDREN'S SERVICES,BY THE BRIDGE LTD,"5,571.43",AGENCY FOSTERING,EXTERNAL AGENCIES AND BODIES,2102813142,1000043961
03.05.2018,CHILDREN'S SERVICES,BY THE BRIDGE LTD,"6,030.00",AGENCY FOSTERING,EXTERNAL AGENCIES AND BODIES,2102813115,1000043961
03.05.2018,CHILDREN'S SERVICES,CHILDREN OF COLOUR,"3,360.00",AGENCY FOSTERING,EXTERNAL AGENCIES AND BODIES,2102813137,1000044955
03.05.2018,CHILDREN'S SERVICES,CHILDREN OF COLOUR,"3,360.00",AGENCY FOSTERING,EXTERNAL AGENCIES AND BODIES,2102813166,1000044955
03.05.2018,CHILDREN'S SERVICES,CHILDREN OF COLOUR,"3,444.00",AGENCY FOSTERING,EXTERNAL AGENCIES AND BODIES,2102813128,1000044955
03.05.2018,CHILDREN'S SERVICES,CHILDREN OF COLOUR,"4,114.28",AGENCY FOSTERING,EXTERNAL AGENCIES AND BODIES,2102813180,1000044955
03.05.2018,CHILDREN'S SERVICES,NEXT STEP FOSTERING SERVICES LTD,514.4,AGENCY FOSTERING,EXTERNAL AGENCIES AND BODIES,2102813188,1000044973
03.05.2018,CHILDREN'S SERVICES,NEXT STEP FOSTERING SERVICES LTD,"4,209.00",AGENCY FOSTERING,EXTERNAL AGENCIES AND BODIES,2102813120,1000044973
03.05.2018,CHILDREN'S SERVICES,ST CHRISTOPHER FELLOWSHIP,"3,407.10",AGENCY FOSTERING,EXTERNAL AGENCIES AND BODIES,2102813192,1000045269
03.05.2018,CHILDREN'S SERVICES,ST CHRISTOPHER FELLOWSHIP,"4,500.00",AGENCY FOSTERING,EXTERNAL AGENCIES AND BODIES,2102813133,1000045269
03.05.2018,CHILDREN'S SERVICES,ST CHRISTOPHER FELLOWSHIP,"4,500.00",AGENCY FOSTERING,EXTERNAL AGENCIES AND BODIES,2102813171,1000045269
03.05.2018,CHILDREN'S SERVICES,CAPSTONE FOSTER CARE,"3,398.40",AGENCY FOSTERING,EXTERNAL AGENCIES AND BODIES,2102813167,1000050353
03.05.2018,CHILDREN'S SERVICES,DIVERSE CARE (UK) LTD,"6,120.00",AGENCY FOSTERING,EXTERNAL AGENCIES AND BODIES,2102813130,1000055636
03.05.2018,CHILDREN'S SERVICES,COMPASS FOSTERING LONDON LTD,"1,067.13",AGENCY FOSTERING,EXTERNAL AGENCIES AND BODIES,2102813175,1000057908
03.05.2018,CHILDREN'S SERVICES,COMPASS FOSTERING LONDON LTD,"2,660.61",AGENCY FOSTERING,EXTERNAL AGENCIES AND BODIES,2102813176,1000057908
03.05.2018,CHILDREN'S SERVICES,COMPASS FOSTERING LONDON LTD,"2,785.16",AGENCY FOSTERING,EXTERNAL AGENCIES AND BODIES,2102813159,1000057908
03.05.2018,CHILDREN'S SERVICES,COMPASS FOSTERING LONDON LTD,"2,978.70",AGENCY FOSTERING,EXTERNAL AGENCIES AND BODIES,2102813126,1000057908
03.05.2018,CHILDREN'S SERVICES,COMPASS FOSTERING LONDON LTD,"3,557.10",AGENCY FOSTERING,EXTERNAL AGENCIES AND BODIES,2102813124,1000057908
03.05.2018,CHILDREN'S SERVICES,COMPASS FOSTERING LONDON LTD,"3,720.73",AGENCY FOSTERING,EXTERNAL AGENCIES AND BODIES,2102813114,1000057908
03.05.2018,CHILDREN'S SERVICES,CHILDREN OF ALL NATIONS LTD,"3,975.90",AGENCY FOSTERING,EXTERNAL AGENCIES AND BODIES,2102813136,1000060151
03.05.2018,CHILDREN'S SERVICES,CHILDREN OF ALL NATIONS LTD,"3,975.90",AGENCY FOSTERING,EXTERNAL AGENCIES AND BODIES,2102813138,1000060151
03.05.2018,CHILDREN'S SERVICES,CHILDREN OF ALL NATIONS LTD,"4,417.93",AGENCY FOSTERING,EXTERNAL AGENCIES AND BODIES,2102813157,1000060151
03.05.2018,CHILDREN'S SERVICES,RYANCARE FOSTERING,"3,427.50",AGENCY FOSTERING,EXTERNAL AGENCIES AND BODIES,2102813199,1000062376
03.05.2018,CHILDREN'S SERVICES,FOLLOWING WHISPERS FAMILY SERVICE LTD,"6,315.00",AGENCY FOSTERING,EXTERNAL AGENCIES AND BODIES,2102813178,1000065611
03.05.2018,CHILDREN'S SERVICES,FOLLOWING WHISPERS FAMILY SERVICE LTD,"6,642.90",AGENCY FOSTERING,EXTERNAL AGENCIES AND BODIES,2102813198,1000065611
03.05.2018,CHILDREN'S SERVICES,ANCHOR FOSTERCARE,"3,163.20",AGENCY FOSTERING,EXTERNAL AGENCIES AND BODIES,2102813149,1000065675
03.05.2018,CHILDREN'S SERVICES,ANCHOR FOSTERCARE,"3,163.20",AGENCY FOSTERING,EXTERNAL AGENCIES AND BODIES,2102813150,1000065675
03.05.2018,CHILDREN'S SERVICES,ANCHOR FOSTERCARE,"3,677.10",AGENCY FOSTERING,EXTERNAL AGENCIES AND BODIES,2102813184,1000065675
03.05.2018,CHILDREN'S SERVICES,COMPASS FOSTERING SOUTH LTD,"2,796.39",AGENCY FOSTERING,EXTERNAL AGENCIES AND BODIES,2102813129,1000073772
03.05.2018,CHILDREN'S SERVICES,COMPASS FOSTERING SOUTH LTD,"2,978.70",AGENCY FOSTERING,EXTERNAL AGENCIES AND BODIES,2102813169,1000073772
03.05.2018,CHILDREN'S SERVICES,COMPASS FOSTERING SOUTH LTD,"3,201.39",AGENCY FOSTERING,EXTERNAL AGENCIES AND BODIES,2102813205,1000073772
03.05.2018,CHILDREN'S SERVICES,MOSAIC FOSTER CARE LTD,"6,428.40",AGENCY FOSTERING,EXTERNAL AGENCIES AND BODIES,2102813189,1000076259
03.05.2018,CHILDREN'S SERVICES,MOSAIC FOSTER CARE LTD,"6,750.00",AGENCY FOSTERING,EXTERNAL AGENCIES AND BODIES,2102813123,1000076259
03.05.2018,CHILDREN'S SERVICES,YOUNG PEOPLE AT HEART LTD,"3,000.00",AGENCY FOSTERING,EXTERNAL AGENCIES AND BODIES,2102813153,1000076694
03.05.2018,CHILDREN'S SERVICES,DIAGRAMA FOUNDATION CHILDREN SERVICES,"3,711.43",AGENCY FOSTERING,EXTERNAL AGENCIES AND BODIES,2102813197,1000078697
03.05.2018,CHILDREN'S SERVICES,ORANGE GROVE FOSTERCARE LTD,"3,480.00",AGENCY FOSTERING,EXTERNAL AGENCIES AND BODIES,2102813162,1000078716
03.05.2018,CHILDREN'S SERVICES,ORANGE GROVE FOSTERCARE LTD,"3,480.00",AGENCY FOSTERING,EXTERNAL AGENCIES AND BODIES,2102813195,1000078716
03.05.2018,CHILDREN'S SERVICES,SELECT FOSTERCARE SERVICES LTD,"3,180.00",AGENCY FOSTERING,EXTERNAL AGENCIES AND BODIES,2102813112,1000079277
03.05.2018,CHILDREN'S SERVICES,SELECT FOSTERCARE SERVICES LTD,"3,535.50",AGENCY FOSTERING,EXTERNAL AGENCIES AND BODIES,2102813182,1000079277
03.05.2018,CHILDREN'S SERVICES,SELECT FOSTERCARE SERVICES LTD,"3,535.80",AGENCY FOSTERING,EXTERNAL AGENCIES AND BODIES,2102813132,1000079277
03.05.2018,CHILDREN'S SERVICES,HELP ME GROW FOSTERING SERVICES LTD,"2,777.10",AGENCY FOSTERING,EXTERNAL AGENCIES AND BODIES,2102813122,1000079302
03.05.2018,CHILDREN'S SERVICES,HELP ME GROW FOSTERING SERVICES LTD,"2,777.10",AGENCY FOSTERING,EXTERNAL AGENCIES AND BODIES,2102813127,1000079302
03.05.2018,CHILDREN'S SERVICES,HELP ME GROW FOSTERING SERVICES LTD,"2,777.10",AGENCY FOSTERING,EXTERNAL AGENCIES AND BODIES,2102813139,1000079302
03.05.2018,CHILDREN'S SERVICES,HELP ME GROW FOSTERING SERVICES LTD,"2,777.10",AGENCY FOSTERING,EXTERNAL AGENCIES AND BODIES,2102813152,1000079302
03.05.2018,CHILDREN'S SERVICES,HELP ME GROW FOSTERING SERVICES LTD,"3,085.50",AGENCY FOSTERING,EXTERNAL AGENCIES AND BODIES,2102813160,1000079302
03.05.2018,CHILDREN'S SERVICES,HELP ME GROW FOSTERING SERVICES LTD,"3,085.50",AGENCY FOSTERING,EXTERNAL AGENCIES AND BODIES,2102813201,1000079302
03.05.2018,CHILDREN'S SERVICES,HELP ME GROW FOSTERING SERVICES LTD,"5,571.30",AGENCY FOSTERING,EXTERNAL AGENCIES AND BODIES,2102813200,1000079302
03.05.2018,CHILDREN'S SERVICES,CONNECT FOSTERING SERVICES LTD,"3,235.71",AGENCY FOSTERING,EXTERNAL AGENCIES AND BODIES,2102813147,1000079969
03.05.2018,CHILDREN'S SERVICES,CONNECT FOSTERING SERVICES LTD,"3,407.14",AGENCY FOSTERING,EXTERNAL AGENCIES AND BODIES,2102813187,1000079969
03.05.2018,CHILDREN'S SERVICES,SHARED CARE SERVICES LTD,"5,650.20",AGENCY FOSTERING,EXTERNAL AGENCIES AND BODIES,2102813191,1000080308
03.05.2018,CHILDREN'S SERVICES,FLEET TUTORS,"-21,087.00",ALTERNATIVE PROVISION,EXTERNAL AGENCIES AND BODIES,5902301480,1000044820
03.05.2018,CHILDREN'S SERVICES,FLEET TUTORS,"-1,486.00",ALTERNATIVE PROVISION,EXTERNAL AGENCIES AND BODIES,5902301488,1000044820
03.05.2018,CHILDREN'S SERVICES,FLEET TUTORS,"27,310.00",ALTERNATIVE PROVISION,EXTERNAL AGENCIES AND BODIES,5902301477,1000044820
03.05.2018,CHILDREN'S SERVICES,CONTACT PROFESSIONALS,980,CARE PRACTICE GROUP SET C,OTHER PAYMENTS FOR CLIENTS,5902301630,1000057263
03.05.2018,CHILDREN'S SERVICES,CONTACT PROFESSIONALS,"1,075.00",CARE PRACTICE GROUP SET C,OTHER PAYMENTS FOR CLIENTS,5902301631,1000057263
03.05.2018,CHILDREN'S SERVICES,CONTACT PROFESSIONALS,"1,075.00",CARE PRACTICE GROUP SET C,OTHER PAYMENTS FOR CLIENTS,5902301632,1000057263
03.05.2018,CHILDREN'S SERVICES,CONTACT PROFESSIONALS,"1,075.00",CARE PRACTICE GROUP SET C,OTHER PAYMENTS FOR CLIENTS,5902301633,1000057263
03.05.2018,CHILDREN'S SERVICES,CONTACT PROFESSIONALS,"1,075.00",CARE PRACTICE GROUP SET C,OTHER PAYMENTS FOR CLIENTS,5902301634,1000057263
03.05.2018,CHILDREN'S SERVICES,CONTACT PROFESSIONALS,"1,075.00",CARE PRACTICE GROUP SET C,OTHER PAYMENTS FOR CLIENTS,5902301635,1000057263
03.05.2018,CHILDREN'S SERVICES,CONTACT PROFESSIONALS,"1,075.00",CARE PRACTICE GROUP SET C,OTHER PAYMENTS FOR CLIENTS,5902301636,1000057263
03.05.2018,CHILDREN'S SERVICES,CONTACT PROFESSIONALS,"1,075.00",CARE PRACTICE GROUP SET C,OTHER PAYMENTS FOR CLIENTS,5902301637,1000057263
03.05.2018,CHILDREN'S SERVICES,REVIVAL,660,CENTRAL SUPPORT,OTHER PAYMENTS FOR CLIENTS,5902301507,1000027424
03.05.2018,CHILDREN'S SERVICES,BELVEDERE COMMUNITY CENTRE,"1,198.04",CONTACT,EXTERNAL AGENCIES AND BODIES,5902301628,1000067094
03.05.2018,CHILDREN'S SERVICES,SIAN MATHIAS,400,GOVERNOR TRAINING,CONSULTANTS SERVICES,5902301575,1000080305
03.05.2018,CHILDREN'S SERVICES,THE DRIVE CARE HOMES LTD,"12,751.20",RESIDENTIAL,RESIDENTIAL CARE,2102813104,1000003889
03.05.2018,CHILDREN'S SERVICES,CASTLE HOMES LIMITED,"16,344.69",RESIDENTIAL,RESIDENTIAL CARE,2102813105,1000019388
03.05.2018,CHILDREN'S SERVICES,CAMBIAN CHILDCARE LTD,"-15,871.46",RESIDENTIAL,RESIDENTIAL CARE,2102813110,1000075351
03.05.2018,CHILDREN'S SERVICES,CAMBIAN CHILDCARE LTD,"21,642.90",RESIDENTIAL,RESIDENTIAL CARE,2102813108,1000075351
03.05.2018,CHILDREN'S SERVICES,PRESTIGE ADOLESCENT CARE & EDUCATION LTD,739.5,RESIDENTIAL,RESIDENTIAL CARE,2102813107,1000077596
03.05.2018,CHILDREN'S SERVICES,HEXAGON CARE SERVICES LTD,"-3,975.00",RESIDENTIAL,RESIDENTIAL CARE,2102710432,1000077684
03.05.2018,CHILDREN'S SERVICES,HEXAGON CARE SERVICES LTD,"2,385.00",RESIDENTIAL,RESIDENTIAL CARE,2102710434,1000077684
03.05.2018,CHILDREN'S SERVICES,HEXAGON CARE SERVICES LTD,"18,700.00",RESIDENTIAL,RESIDENTIAL CARE,2102813109,1000077684
03.05.2018,CHILDREN'S SERVICES,INMIND CHILDRENS SERVICES LTD,"31,928.70",RESIDENTIAL,RESIDENTIAL CARE,2102813106,1000078280
03.05.2018,CHILDREN'S SERVICES,GOLDSTONE ESTATES LTD,"2,604.00",RESOURCE PANEL,SECTION 17 PAYMENTS TO AGENCIES/CARERS,5902301638,1000076548
03.05.2018,CHILDREN'S SERVICES,PULSE HEALTHCARE LTD,388.7,SEN TRANSPORT,STATEMENTED FEES,5902301134,1000035063
03.05.2018,CHILDREN'S SERVICES,PULSE HEALTHCARE LTD,583.05,SEN TRANSPORT,STATEMENTED FEES,5902301130,1000035063
03.05.2018,CHILDREN'S SERVICES,VEOLIA ES (UK)LTD,306.77,SOUTH BERMONDSEY CHILDRENS & PARENTS CNT,WASTE DISPOSAL CONTRACT,5902301598,1824835
03.05.2018,CHILDREN'S SERVICES,INTEGRATED SERVICES PROGRAMME,"2,334.00",STAYING PUT,EXTERNAL AGENCIES AND BODIES,5902301467,1642068
03.05.2018,COMMUNITIES,LONDON COUNCILS,"59,417.00",LONDON COUNCILS,OTHER LOCAL AUTHORITIES,5902301612,11237079
03.05.2018,COMMUNITIES,POHWER,"2,350.00",NHS COMPLAINTS ADVOCACY,EXTERNAL AGENCIES AND BODIES,5902301543,1000070508
03.05.2018,COMMUNITIES,VENTURE HOUSING (LONDON) LTD,"-1,498.00",NO RECOURSE TO PUBLIC FUNDS,ACCOMMODATION CHARGES,5902299911,1000056686
03.05.2018,COMMUNITIES,LONDON CARE LTD,"1,282.11",NO RECOURSE TO PUBLIC FUNDS,NATIONAL ASSISTANCE,2102812813,1000003398
03.05.2018,CUSTOMER EXPERIENCE HGF,SG PATH LTD,415.8,CORONER'S,PROFESSIONAL FEES,5902301578,1000077883
03.05.2018,CUSTOMER EXPERIENCE HGF,IMPERIAL COLLEGE PROJECTS LTD,388,CORONER'S,PROFESSIONAL FEES,5902301556,1000080106
03.05.2018,CUSTOMER EXPERIENCE HGF,IMPERIAL COLLEGE PROJECTS LTD,408,CORONER'S,PROFESSIONAL FEES,5902301544,1000080106
03.05.2018,CUSTOMER EXPERIENCE HGF,IMPERIAL COLLEGE PROJECTS LTD,420,CORONER'S,PROFESSIONAL FEES,5902301540,1000080106
03.05.2018,CUSTOMER EXPERIENCE HGF,GALAXY LETTINGS LTD,"69,041.10",NIGHTLY TA (NSC),EXTERNAL AGENCIES AND BODIES,5902301567,1000055897
03.05.2018,CUSTOMER EXPERIENCE HGF,VENTURE HOUSING (LONDON) LTD,"2,248.40",NIGHTLY TA (NSC),EXTERNAL AGENCIES AND BODIES,5902301528,1000056686
03.05.2018,CUSTOMER EXPERIENCE HGF,VENTURE HOUSING (LONDON) LTD,"145,661.35",NIGHTLY TA (NSC),EXTERNAL AGENCIES AND BODIES,5902301533,1000056686
03.05.2018,CUSTOMER EXPERIENCE HGF,WILLOW ESTATE AGENTS (LONDON) LTD,980,NIGHTLY TA (NSC),EXTERNAL AGENCIES AND BODIES,5902301539,1000060607
03.05.2018,CUSTOMER EXPERIENCE HGF,EDEN ESTATES LONDON LTD,"37,024.50",NIGHTLY TA (NSC),EXTERNAL AGENCIES AND BODIES,5902301563,1000061217
03.05.2018,CUSTOMER EXPERIENCE HGF,STENFORD PROPERTY LTD,"53,430.40",NIGHTLY TA (NSC),EXTERNAL AGENCIES AND BODIES,5902301566,1000074759
03.05.2018,ELECTORAL SVCES,STITCHES INCORPORATING BARKERS MARQUEE HIRE,340,BOROUGH COUNCIL ELECTIONS,LEGAL FEES & COURT COSTS,2102805072,1026432
03.05.2018,ENVIRONMENT AND LEISURE,BOLT & HEEKS LIMITED,"4,559.62",CAPITAL PS (LEISURE),CONST'N MAIN CONTRACT - NON CERTIFICATED,2102812530,3000001307
03.05.2018,ENVIRONMENT AND LEISURE,GROUND CONTROL LIMITED,"18,759.78",CAPITAL PS (LEISURE),CONSTRUCTION MAIN CONTRACT,2102812531,3000001551
03.05.2018,ENVIRONMENT DIRECTORATE,KENT COUNTY COUNCIL - LASER,455.47,BUSINESS CORE,GAS,5902301517,1000012926
03.05.2018,ENVIRONMENT DIRECTORATE,LEX AUTOLEASE,-573,CAR LEASING CTRL A/C,VEHICLE LEASING CHARGES,5902301466,1000069462
03.05.2018,ENVIRONMENT DIRECTORATE,LEX AUTOLEASE,-555.95,CAR LEASING CTRL A/C,VEHICLE LEASING CHARGES,5902301469,1000069462
03.05.2018,ENVIRONMENT DIRECTORATE,LEX AUTOLEASE,-426.41,CAR LEASING CTRL A/C,VEHICLE LEASING CHARGES,5902301482,1000069462
03.05.2018,ENVIRONMENT DIRECTORATE,LEX AUTOLEASE,-358.01,CAR LEASING CTRL A/C,VEHICLE LEASING CHARGES,5902301487,1000069462
03.05.2018,ENVIRONMENT DIRECTORATE,LEX AUTOLEASE,-355.98,CAR LEASING CTRL A/C,VEHICLE LEASING CHARGES,5902301471,1000069462
03.05.2018,ENVIRONMENT DIRECTORATE,LEX AUTOLEASE,447.63,CAR LEASING CTRL A/C,VEHICLE LEASING CHARGES,5902301479,1000069462
03.05.2018,ENVIRONMENT DIRECTORATE,ARVAL UK LTD,287.58,CAR LEASING CTRL A/C,VEHICLE LEASING CHARGES,5902301595,1000079802
03.05.2018,ENVIRONMENT DIRECTORATE,ARVAL UK LTD,303.13,CAR LEASING CTRL A/C,VEHICLE LEASING CHARGES,5902301595,1000079802
03.05.2018,ENVIRONMENT DIRECTORATE,ARVAL UK LTD,358.24,CAR LEASING CTRL A/C,VEHICLE LEASING CHARGES,5902301597,1000079802
03.05.2018,ENVIRONMENT DIRECTORATE,ARVAL UK LTD,387.22,CAR LEASING CTRL A/C,VEHICLE LEASING CHARGES,5902301597,1000079802
03.05.2018,ENVIRONMENT DIRECTORATE,LONDON HIRE LIMITED,"4,718.50",COMMERCIAL VEH CTRL A/C,HIRED VEHICLES,5902301501,1383812
03.05.2018,ENVIRONMENT DIRECTORATE,SCOT GROUP LIMITED,407.07,COMMERCIAL VEH CTRL A/C,HIRED VEHICLES,5902301590,1709512
03.05.2018,ENVIRONMENT DIRECTORATE,FIVEWAYS MUNICIPAL VEHICLE HIRE LTD,725,COMMERCIAL VEH CTRL A/C,HIRED VEHICLES,5902301496,1000023985
03.05.2018,ENVIRONMENT DIRECTORATE,FIVEWAYS MUNICIPAL VEHICLE HIRE LTD,725,COMMERCIAL VEH CTRL A/C,HIRED VEHICLES,5902301499,1000023985
03.05.2018,ENVIRONMENT DIRECTORATE,FIVEWAYS MUNICIPAL VEHICLE HIRE LTD,725,COMMERCIAL VEH CTRL A/C,HIRED VEHICLES,5902301500,1000023985
03.05.2018,ENVIRONMENT DIRECTORATE,FIVEWAYS MUNICIPAL VEHICLE HIRE LTD,725,COMMERCIAL VEH CTRL A/C,HIRED VEHICLES,5902301503,1000023985
03.05.2018,ENVIRONMENT DIRECTORATE,FIVEWAYS MUNICIPAL VEHICLE HIRE LTD,725,COMMERCIAL VEH CTRL A/C,HIRED VEHICLES,5902301505,1000023985
03.05.2018,ENVIRONMENT DIRECTORATE,FIVEWAYS MUNICIPAL VEHICLE HIRE LTD,725,COMMERCIAL VEH CTRL A/C,HIRED VEHICLES,5902301506,1000023985
03.05.2018,ENVIRONMENT DIRECTORATE,LEX AUTOLEASE,"1,565.90",COMMERCIAL VEH CTRL A/C,HIRED VEHICLES,5902301472,1000069462
03.05.2018,ENVIRONMENT DIRECTORATE,LEX AUTOLEASE,"5,094.50",COMMERCIAL VEH CTRL A/C,HIRED VEHICLES,5902301473,1000069462
03.05.2018,ENVIRONMENT DIRECTORATE,LEX AUTOLEASE,"6,584.50",COMMERCIAL VEH CTRL A/C,HIRED VEHICLES,5902301475,1000069462
03.05.2018,ENVIRONMENT DIRECTORATE,PACE ACCIDENT REPAIRS CENTRE LTD,360,COMMERCIAL VEH CTRL A/C,HIRED VEHICLES,5902301478,1000069899
03.05.2018,ENVIRONMENT DIRECTORATE,PACE ACCIDENT REPAIRS CENTRE LTD,360,COMMERCIAL VEH CTRL A/C,HIRED VEHICLES,5902301483,1000069899
03.05.2018,ENVIRONMENT DIRECTORATE,PACE ACCIDENT REPAIRS CENTRE LTD,360,COMMERCIAL VEH CTRL A/C,HIRED VEHICLES,5902301484,1000069899
03.05.2018,ENVIRONMENT DIRECTORATE,LONDON HIRE LIMITED,292,COMMERCIAL VEH CTRL A/C,VEHICLE REPAIRS & MAINTENANCE,5902301474,1383812
03.05.2018,ENVIRONMENT DIRECTORATE,LONDON HIRE LIMITED,548,COMMERCIAL VEH CTRL A/C,VEHICLE REPAIRS & MAINTENANCE,5902301502,1383812
03.05.2018,ENVIRONMENT DIRECTORATE,LONDON HIRE LIMITED,580,COMMERCIAL VEH CTRL A/C,VEHICLE REPAIRS & MAINTENANCE,5902301504,1383812
03.05.2018,ENVIRONMENT DIRECTORATE,LONDON HIRE LIMITED,645,COMMERCIAL VEH CTRL A/C,VEHICLE REPAIRS & MAINTENANCE,5902301485,1383812
03.05.2018,ENVIRONMENT DIRECTORATE,LONDON HIRE LIMITED,675,COMMERCIAL VEH CTRL A/C,VEHICLE REPAIRS & MAINTENANCE,5902301486,1383812
03.05.2018,ENVIRONMENT DIRECTORATE,LONDON HIRE LIMITED,679,COMMERCIAL VEH CTRL A/C,VEHICLE REPAIRS & MAINTENANCE,5902301481,1383812
03.05.2018,ENVIRONMENT DIRECTORATE,LONDON HIRE LIMITED,"1,068.51",COMMERCIAL VEH CTRL A/C,VEHICLE REPAIRS & MAINTENANCE,5902301497,1383812
03.05.2018,ENVIRONMENT DIRECTORATE,LONDON HIRE LIMITED,"1,910.00",COMMERCIAL VEH CTRL A/C,VEHICLE REPAIRS & MAINTENANCE,5902301476,1383812
03.05.2018,ENVIRONMENT DIRECTORATE,LONDON HIRE LIMITED,"2,578.02",COMMERCIAL VEH CTRL A/C,VEHICLE REPAIRS & MAINTENANCE,5902301498,1383812
03.05.2018,ENVIRONMENT DIRECTORATE,PACE ACCIDENT REPAIRS CENTRE LTD,"1,802.59",FLEET INSURANCE WORKS,TRANSPORT INSURANCE COSTS,5902301492,1000069899
03.05.2018,ENVIRONMENT DIRECTORATE,PACE ACCIDENT REPAIRS CENTRE LTD,"2,079.43",FLEET INSURANCE WORKS,TRANSPORT INSURANCE COSTS,5902301489,1000069899
03.05.2018,ENVIRONMENT DIRECTORATE,ZODION LIMITED,260.98,ILLUMINATED SIGNS - MINOR ROADS,ELECTRICITY,5902301527,1000061709
03.05.2018,ENVIRONMENT DIRECTORATE,COMPLETE TREE CARE LTD,"2,110.30",NON HOUSING GROUNDS,AGENCY STAFF,5902301523,1000041410
03.05.2018,ENVIRONMENT DIRECTORATE,MATCHTECH GROUP (UK) LTD,"5,260.50",PROJECT SUPPORT,RECRUITMENT ADVERTISING,5902301573,1000030917
03.05.2018,ENVIRONMENT DIRECTORATE,MATCHTECH GROUP (UK) LTD,"6,674.40",PROJECT SUPPORT,RECRUITMENT ADVERTISING,5902301568,1000030917
03.05.2018,HOUSING GENERAL FUND,INTERSERVE (FACILITIES MANAGEMENT),"95,167.18",CAPITAL PS (REGEN),CONSTRUCTION,5902301464,1000070792
03.05.2018,HOUSING HRA,M C TECHNICIANS LTD,"6,642.00",CAPITAL PS (HRA),CONST'N MAIN CONTRACT - NON CERTIFICATED,2102812527,3000001164
03.05.2018,HOUSING HRA,CALFORD SEADEN LLP,"1,433.99",CAPITAL PS (HRA),CONSTRUCTION FEES  - EXTERNAL,5902301570,1061592
03.05.2018,HOUSING HRA,CALFORD SEADEN LLP,"3,432.29",CAPITAL PS (HRA),CONSTRUCTION FEES  - EXTERNAL,5902301569,1061592
03.05.2018,HOUSING HRA,GUIDELINE LIFT SERVICES LTD,"43,143.66",GUIDELINE,MANUAL CREDITORS,5902301604,1000064176
03.05.2018,HOUSING HRA,SPOKEMEAD MAINTENANCE LTD,"289,132.60",PAYMENTS CONTROL ACCOUNT - SPOKEMEAD,MANUAL CREDITORS,5902301593,1000059211
03.05.2018,LEISURE DIRECTORATE,BE ACTIVE SOCIAL ENTERPRISE CIC,"7,500.00",BURGESS AREA TEAM,PROFESSIONAL FEES,5902301614,1000066673
03.05.2018,LEISURE DIRECTORATE,INSTITUTE OF CEMETERY & CREMATORIUM MANAGEMENT,445,CREMATORIUM,PROFESSIONAL FEES,5902301619,11183486
03.05.2018,LEISURE DIRECTORATE,SPORTS AND LEISURE MANAGEMENT LTD,759.57,FACILITIES MAINTENANCE,BUILDING R&M,5902301623,1000077862
03.05.2018,LEISURE DIRECTORATE,SPORTS AND LEISURE MANAGEMENT LTD,977.2,FACILITIES MAINTENANCE,BUILDING R&M,5902301620,1000077862
03.05.2018,LEISURE DIRECTORATE,SPORTS AND LEISURE MANAGEMENT LTD,"1,050.00",FACILITIES MAINTENANCE,BUILDING R&M,5902301623,1000077862
03.05.2018,LEISURE DIRECTORATE,SPORTS AND LEISURE MANAGEMENT LTD,"1,250.00",FACILITIES MAINTENANCE,BUILDING R&M,5902301615,1000077862
03.05.2018,LEISURE DIRECTORATE,SPORTS AND LEISURE MANAGEMENT LTD,"1,257.28",FACILITIES MAINTENANCE,BUILDING R&M,5902301622,1000077862
03.05.2018,LEISURE DIRECTORATE,SPORTS AND LEISURE MANAGEMENT LTD,"1,995.00",FACILITIES MAINTENANCE,BUILDING R&M,5902301615,1000077862
03.05.2018,LEISURE DIRECTORATE,SPORTS AND LEISURE MANAGEMENT LTD,"5,033.16",FACILITIES MAINTENANCE,BUILDING R&M,5902301618,1000077862
03.05.2018,LEISURE DIRECTORATE,CIPFA,650,LIBARIES DEVELOPMENT,MARKETING & PUBLICITY SERVICES,5902301565,1000000196
03.05.2018,LEISURE DIRECTORATE,ROTHERHITHE FESTIVAL GROUP,"4,500.00",ROTHERHITHE FESTIVAL,GRANTS,5902301625,1000046401
03.05.2018,LEISURE DIRECTORATE,ASKEWS & HOLTS LIBRARY SERVICES LTD,488.5,STOCK SERVICES,BOOKS & PUBLICATIONS,5902300445,1494168
03.05.2018,LEISURE DIRECTORATE,ASKEWS & HOLTS LIBRARY SERVICES LTD,"3,068.75",STOCK SERVICES,BOOKS & PUBLICATIONS,5902300447,1494168
03.05.2018,LEISURE DIRECTORATE,CENGAGE LEARNING (EMEA) LTD,"7,158.53",STOCK SERVICES,SUBSCRIPTIONS,5902301582,1000041080
03.05.2018,LEISURE DIRECTORATE,CHILDREN`S PLAY ADVISORY SERVICE LTD,"6,100.00",SURREY DOCKS PLAYGROUND,OTHER R&M,5902300460,1000064949
03.05.2018,LEISURE DIRECTORATE,ARTWORKS ELEPHANT LLP,612.46,TEMPORARY NEWINGTON,NNDR,5902301607,1000074341
03.05.2018,LEISURE DIRECTORATE,ARTWORKS ELEPHANT LLP,"1,424.03",TEMPORARY NEWINGTON,NNDR,5902301607,1000074341
03.05.2018,LEISURE DIRECTORATE,ARTWORKS ELEPHANT LLP,"2,448.94",TEMPORARY NEWINGTON,NNDR,5902301607,1000074341
03.05.2018,MODERNISATION HGF,THE KNOWLEDGE ACADEMY LTD,"8,973.00",CORPORATE TRAINING BUDGETS,TRAINING,5902301509,1000064533
03.05.2018,MODERNISATION HGF,COMENSURA LTD,"3,554.28",MONTHLY ADMIN FEE,AGENCY STAFF,5902301541,1000051261
03.05.2018,MODERNISATION HGF,SHL UK LTD,598.5,OCCUPATIONAL ASSESSMENT,CONSULTANTS SERVICES,5902301516,1050652
03.05.2018,MODERNISATION HGF,JOHN STATTERS ASSOCIATES,"4,750.00",OCCUPATIONAL ASSESSMENT,CONSULTANTS SERVICES,5902300939,1000065600
03.05.2018,MODERNISATION HGF,COMENSURA LTD,"458,315.62",WEEKLY PAYMENTS,AGENCY STAFF,5902301541,1000051261
03.05.2018,PLANNING AND TRANSPORT,HOBS REPROGRAPHICS PLC,"1,355.35",SUPPORT SERVICES,PROFESSIONAL FEES,5902301521,1000062291
03.05.2018,PUBLIC HEALTH,TRAPEZE TRANSFORMATION LTD,"2,500.00",PH SMOKING CESSATION,EXTERNAL AGENCIES AND BODIES,5902301520,1000076219
03.05.2018,PUBLIC HEALTH,SPORTS AND LEISURE MANAGEMENT LTD,"2,360.00",TACKLING CHILD OBESITY,EXTERNAL AGENCIES AND BODIES,5902301518,1000077862
03.05.2018,REGENERATION,JACKSON COLES LLP,"10,000.00",CANADA WATER,PROFESSIONAL FEES,5902301235,1000057188
03.05.2018,RESIDENT SERVICES HGF,THE MANNA CENTRE,"13,750.00",MANNA CENTRE CO-ORDINATOR,GRANTS,5902301602,1000048508
03.05.2018,REVENUES AND BENEFITS,ROC SYSTEMS CONSULTING LTD,"1,482.50",SAP PAYROLL,CONSULTANTS SERVICES,5902301526,1000062505
04.05.2018,ADULT SOCIAL CARE,FOUNTAIN CARE LTD,329.4,APPOINTEESHIPS,OTHER PAYMENTS FOR CLIENTS,2102813423,1000066815
04.05.2018,ADULT SOCIAL CARE,SOUTH LONDON & MAUDSLEY HOSPITAL,"11,433.18",LD/MH/SM MANAGEMENT,EXTERNAL AGENCIES AND BODIES,5902301731,1000013096
04.05.2018,ADULT SOCIAL CARE,BUDDI LTD,724.8,MH LTS 18-64,EXTERNAL AGENCIES AND BODIES,2102813227,1000067243
04.05.2018,ADULT SOCIAL CARE,OFSTED,"2,812.00",ORIENT STREET,EXTERNAL AGENCIES AND BODIES,5902301875,1000054905
04.05.2018,ADULT SOCIAL CARE,BUDDI LTD,724.8,PHY LTS 18-64,EXTERNAL AGENCIES AND BODIES,2102813229,1000067243
04.05.2018,ADULT SOCIAL CARE,PEOPLEPLUS ILS,321,PLACEMENTS FOR CHILDREN WITH SPEC NEEDS,PAYMENTS TO CLIENTS (DIRECT PAYMENTS),2102813231,1000061886
04.05.2018,BERMONDSEY AND ROTHERHITHE COMMUNITY COUNCIL,GOLDENN HOPE,"1,500.00",GOLDENN HOPE CHRISTMAS FRIENDLINESS MEAL WITH THE COMMUNITY,GRANT,CHEQUE PAYMENT,CHEQUE PAYMENT
04.05.2018,BERMONDSEY AND ROTHERHITHE COMMUNITY COUNCIL,ROTHERHITHE PICTURE RESEARCH LIBRARY,"8,500.00",ILLUMINATE ROTHERHITHE 2018,GRANT,CHEQUE PAYMENT,CHEQUE PAYMENT
04.05.2018,BERMONDSEY AND ROTHERHITHE COMMUNITY COUNCIL,UTOPIA MUSIC,"1,200.00",THE BERMONDSEY STREET JAZZ DAY,GRANT,CHEQUE PAYMENT,CHEQUE PAYMENT
04.05.2018,CENTRAL FUNCTIONS,BLAKENEY LEIGH LTD,"19,525.05",AYLESBURY,PROFESSIONAL FEES,5902301840,1438839
04.05.2018,CENTRAL FUNCTIONS,CBS MAINTENANCE SERVICES LTD,340,COMMERCIAL PROPERTIES,BUILDING R&M,5902301118,1000072375
04.05.2018,CENTRAL FUNCTIONS,KENT COUNTY COUNCIL - LASER,"1,634.93",HEATING ACCOUNT,ELECTRICITY,5902301829,1000012926
04.05.2018,CENTRAL FUNCTIONS,KENT COUNTY COUNCIL - LASER,"57,081.38",HEATING ACCOUNT,ELECTRICITY,5902301829,1000012926
04.05.2018,CENTRAL FUNCTIONS,KENT COUNTY COUNCIL - LASER,"15,219.99",HEATING ACCOUNT,GAS,5902301833,1000012926
04.05.2018,CENTRAL FUNCTIONS,KENT COUNTY COUNCIL - LASER,"494,081.37",HEATING ACCOUNT,GAS,5902301833,1000012926
04.05.2018,CENTRAL FUNCTIONS,CYNTECH TRADING LTD,350,HOME OWNERSHIP,HARDWARE,5902301646,1000041935
04.05.2018,CENTRAL FUNCTIONS,TSB BANK PLC,"2,773.84",HOME OWNERSHIP INCOME,HOUSING RESIDENTIAL RENTS,2102784717,1000080055
04.05.2018,CENTRAL FUNCTIONS,KORNGOLD LTD,786.09,HOME OWNERSHIP INCOME,HOUSING RESIDENTIAL RENTS,2102813288,1000081095
04.05.2018,CENTRAL FUNCTIONS,REDACTED PERSONAL DATA,"1,254.38",HOME OWNERSHIP INCOME,HOUSING RESIDENTIAL RENTS,REDACTED,REDACTED
04.05.2018,CHIEF EXECUTIVE,CYCLEHOOP LTD,"30,500.00",CAPITAL PS (REGEN),CONSTRUCTION,5902301661,1000057894
04.05.2018,CHIEF EXECUTIVE,CYCLEHOOP LTD,"42,700.00",CAPITAL PS (REGEN),CONSTRUCTION,5902301663,1000057894
04.05.2018,CHIEF EXECUTIVE,PROJECT CENTRE LTD,"4,910.00",CAPITAL PS (REGEN),CONSTRUCTION MAIN CONTRACT -CERTIFICATED,5902301798,1000072621
04.05.2018,CHIEF EXECUTIVE,PROJECT CENTRE LTD,"5,000.00",CAPITAL PS (REGEN),CONSTRUCTION MAIN CONTRACT -CERTIFICATED,5902301838,1000072621
04.05.2018,CHIEF EXECUTIVE,PROJECT CENTRE LTD,"10,000.00",CAPITAL PS (REGEN),CONSTRUCTION MAIN CONTRACT -CERTIFICATED,5902301795,1000072621
04.05.2018,CHIEF EXECUTIVE'S OFFICE,THOMAS LEGAL COSTS LTD,"2,320.50",YOUTH FUND EMPLOYMENT,GRANTS,2102813276,1000076172
04.05.2018,CHIEF EXECUTIVE'S OFFICE,WELLFAIR2WORK LTD,"2,320.50",YOUTH FUND EMPLOYMENT,GRANTS,2102813277,1000078927
04.05.2018,CHILDREN'S SERVICES,GLS EDUCATIONAL SUPPLIES LTD,444.12,AYLESBURY EARLY YEARS CENTRE,PREMISES CLEANING,5902301608,1318282
04.05.2018,CHILDREN'S SERVICES,1ST PLACE CHILDREN & PARENTS CENTRE,531.6,CHILDRENS CENTRE,OTHER SUBSISTENCE & CONFERENCE EXPENSES,5902301712,1000049952
04.05.2018,CHILDREN'S SERVICES,REPREZENT LTD,"7,750.00",COMMUNITY LEARNING 15/16,GRANTS,5902301656,1000039074
04.05.2018,CHILDREN'S SERVICES,BEATRICE WEYDERT,"2,200.00",DISABILITY & HIV,PROFESSIONAL FEES,5902301709,1000034579
04.05.2018,CHILDREN'S SERVICES,DAYBREAK FAMILY GROUP CONFERENCES,"2,925.00",FAMILY GROUP CONFERENCES,EXTERNAL AGENCIES AND BODIES,5902301718,1000072832
04.05.2018,CHILDREN'S SERVICES,INTERSERVE HEALTHCARE,438.32,HOME 2 SCHOOL TRANSPORT,AGENCY STAFF,5902301826,1000049612
04.05.2018,CHILDREN'S SERVICES,REDACTED PERSONAL DATA,375,HOME 2 SCHOOL TRANSPORT,OTHER PAYMENTS FOR CLIENTS,REDACTED,REDACTED
04.05.2018,CHILDREN'S SERVICES,REDACTED PERSONAL DATA,725,HOME 2 SCHOOL TRANSPORT,OTHER PAYMENTS FOR CLIENTS,REDACTED,REDACTED
04.05.2018,CHILDREN'S SERVICES,LONDON BOROUGH OF BROMLEY,487.53,HOME 2 SCHOOL TRANSPORT,RECOUPMENT,5902301335,1061538
04.05.2018,CHILDREN'S SERVICES,REDACTED PERSONAL DATA,671.15,LEAVING CARE GRANT,OTHER PAYMENTS FOR CLIENTS,REDACTED,REDACTED
04.05.2018,CHILDREN'S SERVICES,REDACTED PERSONAL DATA,"1,487.98",LEAVING CARE GRANT,OTHER PAYMENTS FOR CLIENTS,REDACTED,REDACTED
04.05.2018,CHILDREN'S SERVICES,CATHERINE RUSHFORTH & ASSOCIATES,700,PRIMARY ACHIEVEMENT,CONSULTANTS SERVICES,5902301850,1000055976
04.05.2018,CHILDREN'S SERVICES,CATHERINE RUSHFORTH & ASSOCIATES,700,PRIMARY ACHIEVEMENT,CONSULTANTS SERVICES,5902301852,1000055976
04.05.2018,CHILDREN'S SERVICES,CATHERINE RUSHFORTH & ASSOCIATES,"1,005.00",PRIMARY ACHIEVEMENT,CONSULTANTS SERVICES,5902301848,1000055976
04.05.2018,CHILDREN'S SERVICES,JOHN GUEST SAFEGUARDING LIMITED,400,PRIMARY ACHIEVEMENT,CONSULTANTS SERVICES,5902301866,1000065465
04.05.2018,CHILDREN'S SERVICES,REDACTED PERSONAL DATA,500,STAYING PUT,OTHER PAYMENTS FOR CLIENTS,REDACTED,REDACTED
04.05.2018,CHILDREN'S SERVICES,SALTCO LTD T/A KELLY EXECUTIVE,"1,530.00",SUMMERHOUSE - EX416 - 5015232,HIRED VEHICLES,5902301870,1000000548
04.05.2018,CHILDREN'S SERVICES,SALTCO LTD T/A KELLY EXECUTIVE,"1,710.00",SUMMERHOUSE - EX416 - 5015232,HIRED VEHICLES,5902301872,1000000548
04.05.2018,CHILDREN'S SERVICES,RELAKS LTD,"1,395.00",TEMPORARY ACCOMMODATION,EXTERNAL AGENCIES AND BODIES,5902301785,1000054151
04.05.2018,COMMUNITIES,THAMES REACH,677.6,NO RECOURSE TO PUBLIC FUNDS,ACCOMMODATION CHARGES,5902301851,1723415
04.05.2018,COMMUNITIES,TAAKSVALE HOUSING LTD,"29,692.80",NO RECOURSE TO PUBLIC FUNDS,ACCOMMODATION CHARGES,5902301856,1000073665
04.05.2018,CUSTOMER EXPERIENCE HGF,VICTORIA ASSET FINANCE,355,CORONER'S,CATERING MATERIALS & SUPPLIES,5902301861,1000076816
04.05.2018,CUSTOMER EXPERIENCE HGF,RELAKS LTD,"4,185.00",NIGHTLY TA (NSC),EXTERNAL AGENCIES AND BODIES,5902301797,1000054151
04.05.2018,CUSTOMER EXPERIENCE HGF,NATIONWIDE ACCOMMODATION,"2,023.50",NIGHTLY TA (NSC),EXTERNAL AGENCIES AND BODIES,5902301692,1000076112
04.05.2018,CUSTOMER EXPERIENCE HGF,IDEAL QUARTERS LTD,-588.5,PSL PLACEMENTS,EXTERNAL AGENCIES AND BODIES,5902301760,1000079241
04.05.2018,CUSTOMER EXPERIENCE HGF,IDEAL QUARTERS LTD,"1,177.00",PSL PLACEMENTS,EXTERNAL AGENCIES AND BODIES,5902301773,1000079241
04.05.2018,CUSTOMER EXPERIENCE HGF,IDEAL QUARTERS LTD,"3,905.51",PSL PLACEMENTS,EXTERNAL AGENCIES AND BODIES,5902301764,1000079241
04.05.2018,CUSTOMER EXPERIENCE HGF,IDEAL QUARTERS LTD,"4,000.00",PSL PLACEMENTS,EXTERNAL AGENCIES AND BODIES,5902301766,1000079241
04.05.2018,CUSTOMER EXPERIENCE HGF,IDEAL QUARTERS LTD,"4,000.00",PSL PLACEMENTS,EXTERNAL AGENCIES AND BODIES,5902301769,1000079241
04.05.2018,CUSTOMER EXPERIENCE HGF,IDEAL QUARTERS LTD,"75,553.02",PSL PLACEMENTS,EXTERNAL AGENCIES AND BODIES,5902301756,1000079241
04.05.2018,ENVIRONMENT AND LEISURE,INTO SERVICES LONDON LTD,350,CAPITAL PS (LEISURE),CONST'N MAIN CONTRACT - NON CERTIFICATED,5902300930,1000059328
04.05.2018,ENVIRONMENT AND LEISURE,PALMSTEAD NURSERIES LTD,453.84,CAPITAL PS (LEISURE),CONST'N MAIN CONTRACT - NON CERTIFICATED,5902301841,1000067566
04.05.2018,ENVIRONMENT DIRECTORATE,ARNOLD CLARK VEHICLE MANAGEMENT,254.65,CAR LEASING CTRL A/C,VEHICLE LEASING CHARGES,5902301687,1000079116
04.05.2018,ENVIRONMENT DIRECTORATE,LONDON HIRE LIMITED,"1,600.00",COMMERCIAL VEH CTRL A/C,HIRED VEHICLES,5902301751,1383812
04.05.2018,ENVIRONMENT DIRECTORATE,LONDON HIRE LIMITED,"25,540.45",COMMERCIAL VEH CTRL A/C,HIRED VEHICLES,5902301746,1383812
04.05.2018,ENVIRONMENT DIRECTORATE,SCOT GROUP LIMITED,378.56,COMMERCIAL VEH CTRL A/C,HIRED VEHICLES,5902301644,1709512
04.05.2018,ENVIRONMENT DIRECTORATE,DAWSON RENTALS BUS & COACH LTD,335,COMMERCIAL VEH CTRL A/C,HIRED VEHICLES,5902301738,1000042174
04.05.2018,ENVIRONMENT DIRECTORATE,DAWSON RENTALS BUS & COACH LTD,450,COMMERCIAL VEH CTRL A/C,HIRED VEHICLES,5902301744,1000042174
04.05.2018,ENVIRONMENT DIRECTORATE,DAWSON RENTALS BUS & COACH LTD,450,COMMERCIAL VEH CTRL A/C,HIRED VEHICLES,5902301749,1000042174
04.05.2018,ENVIRONMENT DIRECTORATE,DAWSON RENTALS SWEEPERS,"2,200.00",COMMERCIAL VEH CTRL A/C,HIRED VEHICLES,5902301729,1000068168
04.05.2018,ENVIRONMENT DIRECTORATE,GREENHAM TRADING LTD,293.63,ESTATE CLEANING-GENERAL,MATERIALS,5902301752,1000006610
04.05.2018,ENVIRONMENT DIRECTORATE,GREENHAM TRADING LTD,"1,541.55",ESTATE CLEANING-GENERAL,MATERIALS,5902301754,1000006610
04.05.2018,ENVIRONMENT DIRECTORATE,CHARLTON ENVIRONMENTAL LTD,"2,562.00",GROUNDS MAINTENANCE - GENERAL,MATERIALS,5902299028,1589286
04.05.2018,ENVIRONMENT DIRECTORATE,CONTEGO SAFETY SOLUTIONS LTD,361.2,MANAGEMENT TEAM,MATERIALS,5902301787,1000077673
04.05.2018,ENVIRONMENT DIRECTORATE,MASTERNAUT LTD,"1,480.50",MANAGEMENT TEAM,OTHER VEHICLE RUNNING COSTS,5902301849,1000043981
04.05.2018,ENVIRONMENT DIRECTORATE,EURO TRAINING SERVICES LTD,650,MANAGEMENT TEAM,TRAINING,5902301286,1000072728
04.05.2018,ENVIRONMENT DIRECTORATE,EDF ENERGY PLC,372.21,PUBLIC CONVENIENCES,ELECTRICITY,5902301853,1008746
04.05.2018,ENVIRONMENT DIRECTORATE,CROWN OIL UK,"1,131.79",SANDGATE STREET,VEHICLE FUEL,5902301871,1000074865
04.05.2018,ENVIRONMENT DIRECTORATE,BATCHELORS SOLICITORS,"275,181.50",SECTION 278 & 38,MARKETING & PUBLICITY SERVICES,5902301671,1000046462
04.05.2018,F & C S EXCLUDING CORPORATE BUDGETS,CYNTECH TRADING LTD,350,ADMINISTRATIVE SUPPORT,HARDWARE,5902301646,1000041935
04.05.2018,F & C S EXCLUDING CORPORATE BUDGETS,DSI BILLING SERVICES LTD,"4,310.45",ADMINISTRATIVE SUPPORT,POSTAGES,5902301839,1000058640
04.05.2018,F & C S EXCLUDING CORPORATE BUDGETS,DSI BILLING SERVICES LTD,"4,775.93",ADMINISTRATIVE SUPPORT,POSTAGES,5902301842,1000058640
04.05.2018,F & C S EXCLUDING CORPORATE BUDGETS,BETTER BANKSIDE,"191,330.48",BETTER BANKSIDE,EXTERNAL AGENCIES AND BODIES,5902301836,1000036227
04.05.2018,HOUSING HRA,NETWORK RAIL INFRASTRUCTURE LTD,"66,296.24",CAPITAL PS (HRA),CONSTRUCTION FEES  - EXTERNAL,5902301800,1000053596
04.05.2018,HOUSING HRA,PENNINGTON CHOICE LTD,"3,483.90",PENNINGTON,MANUAL CREDITORS,5902301056,1000067888
04.05.2018,HOUSING HRA,SCCI ALPHATRACK LTD,"186,045.29",SCCI ALPHATRACK,MANUAL CREDITORS,5902301736,1000071955
04.05.2018,HOUSING STRATEGY AND OPTIONS,REACH-OUT HOUSING LTD,"1,280.82",HOMELESS PROJECTS,GRANTS,5902301713,1000071129
04.05.2018,HOUSING STRATEGY AND OPTIONS,REACH-OUT HOUSING LTD,"1,290.00",HOMELESS PROJECTS,GRANTS,5902301673,1000071129
04.05.2018,LEISURE DIRECTORATE,VEOLIA ES (UK)LTD,453.35,CEMETERIES,OTHER CONTRACTORS,5902301647,1824835
04.05.2018,LEISURE DIRECTORATE,THAMES FESTIVAL TRUST,"5,000.00",DULWICH EVENTS,PROFESSIONAL FEES,5902301574,1000029593
04.05.2018,LEISURE DIRECTORATE,QUADRON SERVICES LIMITED,"3,609.02",SOUTHWARK AREA TEAM,GROUNDS MAINTENANCE,5902301750,1000066528
04.05.2018,MODERNISATION HGF,POSTURE PEOPLE LTD,620.5,160 TOOLEY ST.,FURNITURE PURCHASE & REPAIR,5902301843,1000078441
04.05.2018,MODERNISATION HGF,SAP (UK) LTD,"111,989.03",APPLICATIONS,SOFTWARE,5902301873,1000002550
04.05.2018,MODERNISATION HGF,SIGNIS LTD,500,CHILDREN'S MULTI-AGENCY SAFEGUARDING TRA,TRAINING,5902301652,1000075765
04.05.2018,MODERNISATION HGF,SIGNIS LTD,500,CHILDREN'S MULTI-AGENCY SAFEGUARDING TRA,TRAINING,5902301654,1000075765
04.05.2018,MODERNISATION HGF,SIGNIS LTD,500,CSW - PROFESSIONAL DEVELOPMENT,TRAINING,5902301650,1000075765
04.05.2018,MODERNISATION HGF,INTERSERVE (FACILITIES MANAGEMENT),"80,862.96",FM SERVICES BY INTERSERVE,SECURITY SERVICES,5902300929,1000070792
04.05.2018,PLANNING AND TRANSPORT,WATES LIVING SPACE (MAINTENANCE) LTD,"1,303.13",DANGEROUS STRUCTURES,OTHER CONTRACTORS,5902301828,11322039
04.05.2018,PLANNING AND TRANSPORT,WATES LIVING SPACE (MAINTENANCE) LTD,"1,677.73",DANGEROUS STRUCTURES,OTHER CONTRACTORS,5902301831,11322039
04.05.2018,PLANNING AND TRANSPORT,WATES LIVING SPACE (MAINTENANCE) LTD,"1,741.67",DANGEROUS STRUCTURES,OTHER CONTRACTORS,5902301813,11322039
04.05.2018,PLANNING AND TRANSPORT,WATES LIVING SPACE (MAINTENANCE) LTD,"1,772.71",DANGEROUS STRUCTURES,OTHER CONTRACTORS,5902301834,11322039
04.05.2018,PLANNING AND TRANSPORT,BPS DORKING LTD,"2,460.00",SUPPORT SERVICES,PROFESSIONAL FEES,5902301818,1000077923
04.05.2018,PLANNING AND TRANSPORT,STEER DAVIES & GLEAVE LIMITED,"5,156.00",TRANSPORT POLICY AND PROGRAMS,CONSULTANTS SERVICES,5902301822,1823348
04.05.2018,RESIDENT SERVICES,CASTLE WATER LTD,"1,070.46",NORTHCOTT HOUSE,WATER,5902301702,1000078867
04.05.2018,RESIDENT SERVICES,CASTLE WATER LTD,"3,727.93",NORTHCOTT HOUSE,WATER,5902301716,1000078867
04.05.2018,RESIDENT SERVICES,ST GEORGE THE MARTYR WITH ST ALPHEGE & ST JUDE,350,OPERATIONS/OFFICES ACCOMMODATION,REFRESHMENTS FOR MEETINGS,5902301767,1000054328
04.05.2018,RESIDENT SERVICES,ATOS WORLDLINE,"1,169.17",TA PLACEMENTS,EXTERNAL AGENCIES AND BODIES,5902301747,1000081021
05.05.2018,ADULT SOCIAL CARE,LONDON COUNCILS,"47,939.64",TAXICARD SCHEME,EXTERNAL AGENCIES AND BODIES,5902301657,11237079
05.05.2018,CHILDREN'S SERVICES,PARK RETAIL LTD,"3,152.00",EDUC&PARTICIPATION & TRAINING TEAM,SCHOOL CHILDREN & STUDENTS OTHER,5902300923,1000053528
05.05.2018,CHILDREN'S SERVICES,SERVELEC SYNERGY LTD,"1,050.00",LOCALITIES INCLUSION TEAM,COMMS & COMPUTING CONTRACT CHARGES,5902301083,1000077688
05.05.2018,CHILDREN'S SERVICES,SERVELEC SYNERGY LTD,"6,228.00",LOCALITIES INCLUSION TEAM,COMMS & COMPUTING CONTRACT CHARGES,5902301083,1000077688
05.05.2018,COMMUNITIES,LONDON COMMUNITY REHABILITATION COMPANY,"13,325.00",RADAR-IOM,EXTERNAL AGENCIES AND BODIES,5902301048,1000035629
05.05.2018,ENVIRONMENT AND LEISURE,BELL PHILLIPS ARCHITECTS LTD,"9,197.25",CAPITAL PS (LEISURE),CONSTRUCTION FEES  - EXTERNAL,5902301086,1000069307
05.05.2018,ENVIRONMENT DIRECTORATE,CHARLTON ENVIRONMENTAL LTD,"2,135.00",GROUNDS MAINTENANCE - GENERAL,MATERIALS,5902301360,1589286
05.05.2018,ENVIRONMENT DIRECTORATE,NATIONAL DRIVING CENTRE,"1,335.00",MANAGEMENT TEAM,TRAINING,5902301058,1000058040
05.05.2018,ENVIRONMENT DIRECTORATE,TFL - URBAN DESIGN LONDON,"4,000.00",TRANSPORT PROJECTS,SUBSCRIPTIONS,5902301774,1000068705
05.05.2018,F & C S EXCLUDING CORPORATE BUDGETS,DSI BILLING SERVICES LTD,"2,096.98",ADMINISTRATIVE SUPPORT,POSTAGES,5902301844,1000058640
05.05.2018,HOUSING HRA,MORGAN SINDALL PLC,"304,238.00",CAPITAL PS (HRA),CONSTRUCTION MAIN CONTRACT -CERTIFICATED,2102811584,3000001556
05.05.2018,HOUSING HRA,LIFTEC LIFTS LTD,"48,010.34",PAYMENTS CONTROL ACCOUNT - LIFTEC,MANUAL CREDITORS,5902301610,1000057278
05.05.2018,LEISURE DIRECTORATE,ASKEWS & HOLTS LIBRARY SERVICES LTD,594.05,STOCK SERVICES,BOOKS & PUBLICATIONS,5902300972,1494168
05.05.2018,MODERNISATION HGF,ESSENTRA SECURITY LTD,"1,737.50",160 TOOLEY ST.,OFFICE EXPENSES,5902301228,1000025760
05.05.2018,MODERNISATION HGF,WEST ASSOCIATES,"1,000.00",OCCUPATIONAL ASSESSMENT,CONSULTANTS SERVICES,5902301061,1000065374
05.05.2018,REGENERATION,RED R DESIGN,625,PROFESSIONAL SERVICES (GENERAL),MARKETING & PUBLICITY SERVICES,5902301742,1000035984
06.05.2018,CHILDREN'S SERVICES,THEALE GREEN SCHOOL TRUST,"1,500.00",PUPIL PREMIUM CURRENT YEAR,SCHOOLS CAPITATION,2102811599,1000073601
06.05.2018,CHILDREN'S SERVICES,COPFORD C OF E (VC) PRIMARY SCHOOL,"1,500.00",PUPIL PREMIUM CURRENT YEAR,SCHOOLS CAPITATION,2102811603,1000081092
06.05.2018,CHILDREN'S SERVICES,RUSHEY MEAD EDUCATIONAL TRUST,570,PUPIL PREMIUM CURRENT YEAR,SCHOOLS CAPITATION,2102811601,1000081093
06.05.2018,CHILDREN'S SERVICES,BEACON ACADEMY,500,PUPIL PREMIUM CURRENT YEAR,SCHOOLS CAPITATION,2102811602,1000081094
06.05.2018,CHILDREN'S SERVICES,ABBOTS HALL PRIMARY ACADEMY,"1,500.00",PUPIL PREMIUM CURRENT YEAR,SCHOOLS CAPITATION,2102811600,1000081096
06.05.2018,ENVIRONMENT AND LEISURE,STREET TREE CARE LTD,295,CAPITAL PS (LEISURE),CONST'N MAIN CONTRACT - NON CERTIFICATED,5902301847,1000055901
06.05.2018,F & C S EXCLUDING CORPORATE BUDGETS,ARLINGCLOSE LTD,"15,000.00",CORPORATE SERVICES AND F&G,PROFESSIONAL FEES,5902301339,1000077233
06.05.2018,MODERNISATION HGF,SHERRIDAN HUGHES,300,OCCUPATIONAL ASSESSMENT,CONSULTANTS SERVICES,5902301351,1000074250
06.05.2018,STRATEGIC FINANCING BUDGETS,ALLIANCE BERNSTEIN LTD,"13,636.19",CASH MANAGERS' COSTS,PROFESSIONAL FEES,5902301357,1000055012
07.05.2018,ENVIRONMENT DIRECTORATE,EURO TRAINING SERVICES LTD,300,MANAGEMENT TEAM,TRAINING,5902301720,1000072728
07.05.2018,F & C S EXCLUDING CORPORATE BUDGETS,BDO LLP,"18,316.18",INTERNAL AUDIT CONTRACTS,PAYMENTS FOR FINANCIAL SERVICES,5902301524,1000057898
07.05.2018,F & C S EXCLUDING CORPORATE BUDGETS,BDO LLP,"42,802.82",INTERNAL AUDIT CONTRACTS,PAYMENTS FOR FINANCIAL SERVICES,5902301524,1000057898
07.05.2018,LEISURE DIRECTORATE,ASKEWS & HOLTS LIBRARY SERVICES LTD,"3,750.00",STOCK SERVICES,BOOKS & PUBLICATIONS,5902301562,1494168
08.05.2018,ADULT SOCIAL CARE,FOUNTAIN CARE LTD,329.4,APPOINTEESHIPS,OTHER PAYMENTS FOR CLIENTS,2102813617,1000066815
08.05.2018,ADULT SOCIAL CARE,REDACTED PERSONAL DATA,343.6,APPOINTEESHIPS,OTHER PAYMENTS FOR CLIENTS,REDACTED,REDACTED
08.05.2018,ADULT SOCIAL CARE,REDACTED PERSONAL DATA,343.6,APPOINTEESHIPS,OTHER PAYMENTS FOR CLIENTS,REDACTED,REDACTED
08.05.2018,ADULT SOCIAL CARE,REDACTED PERSONAL DATA,266.65,APPOINTEESHIPS,OTHER PAYMENTS FOR CLIENTS,REDACTED,REDACTED
08.05.2018,ASSET MANAGEMENT,POTTER RAPER AND PARTNERS,"1,721.76",DEVELOPMENT DELIVERY,PROFESSIONAL FEES,5902301888,1009369
08.05.2018,ASSET MANAGEMENT,STEPHEN EVANS,595,DISREPAIR,LEGAL FEES & COURT COSTS,2102813580,1000043318
08.05.2018,ASSET MANAGEMENT,STEPHEN EVANS,935,DISREPAIR,LEGAL FEES & COURT COSTS,2102813579,1000043318
08.05.2018,ASSET MANAGEMENT,SARA BEECHAM,"1,190.00",DISREPAIR,LEGAL FEES & COURT COSTS,2102813575,1000068970
08.05.2018,ASSET MANAGEMENT,SHARPE PRITCHARD LLP,819,REPAIRS OPERATIONS,PROFESSIONAL FEES,5902302004,1790085
08.05.2018,BERMONDSEY AND ROTHERHITHE COMMUNITY COUNCIL,BEDE HOUSE ASSOCIATION,"7,810.00",BUZZ ON THE B&B (BONAME AND BRAMCOTE),GRANT,CHEQUE PAYMENT,CHEQUE PAYMENT
08.05.2018,BERMONDSEY AND ROTHERHITHE COMMUNITY COUNCIL,BEDE HOUSE ASSOCIATION,"1,771.00",FUNDAY@BEDE2018,GRANT,CHEQUE PAYMENT,CHEQUE PAYMENT
08.05.2018,BERMONDSEY AND ROTHERHITHE COMMUNITY COUNCIL,SOUNDCAMP,"2,000.00",SOUNDCAMP 2018,GRANT,CHEQUE PAYMENT,CHEQUE PAYMENT
08.05.2018,CENTRAL FUNCTIONS,STANBURY BUILDING SERVICES LTD,"1,350.00",COMMERCIAL PROPERTIES,BUILDING R&M,2102813677,3000001967
08.05.2018,CENTRAL FUNCTIONS,KENT COUNTY COUNCIL - LASER,707.52,HEATING ACCOUNT,ELECTRICITY,2102813496,1000012926
08.05.2018,CENTRAL FUNCTIONS,KENT COUNTY COUNCIL - LASER,"1,063.89",HEATING ACCOUNT,ELECTRICITY,2102813503,1000012926
08.05.2018,CENTRAL FUNCTIONS,KENT COUNTY COUNCIL - LASER,"1,120.50",HEATING ACCOUNT,ELECTRICITY,2102813504,1000012926
08.05.2018,CENTRAL FUNCTIONS,KENT COUNTY COUNCIL - LASER,"1,150.58",HEATING ACCOUNT,ELECTRICITY,2102813502,1000012926
08.05.2018,CENTRAL FUNCTIONS,KENT COUNTY COUNCIL - LASER,"1,167.48",HEATING ACCOUNT,ELECTRICITY,2102813501,1000012926
08.05.2018,CENTRAL FUNCTIONS,KENT COUNTY COUNCIL - LASER,"1,170.08",HEATING ACCOUNT,ELECTRICITY,2102813498,1000012926
08.05.2018,CENTRAL FUNCTIONS,KENT COUNTY COUNCIL - LASER,"1,226.24",HEATING ACCOUNT,ELECTRICITY,2102813500,1000012926
08.05.2018,CENTRAL FUNCTIONS,KENT COUNTY COUNCIL - LASER,"1,228.99",HEATING ACCOUNT,ELECTRICITY,2102813494,1000012926
08.05.2018,CENTRAL FUNCTIONS,KENT COUNTY COUNCIL - LASER,"1,318.78",HEATING ACCOUNT,ELECTRICITY,2102813505,1000012926
08.05.2018,CENTRAL FUNCTIONS,KENT COUNTY COUNCIL - LASER,"1,333.03",HEATING ACCOUNT,ELECTRICITY,2102813499,1000012926
08.05.2018,CENTRAL FUNCTIONS,KENT COUNTY COUNCIL - LASER,"1,460.60",HEATING ACCOUNT,GAS,2102813495,1000012926
08.05.2018,CENTRAL FUNCTIONS,REDACTED PERSONAL DATA,"3,042.45",HOME OWNERSHIP INCOME,HOUSING RESIDENTIAL RENTS,REDACTED,REDACTED
08.05.2018,CHILDREN AND ADULT,SHARPE PRITCHARD LLP,322,CAPITAL PS (EDUCATION),CONSTRUCTION FEES - LEGAL,5902301902,1790085
08.05.2018,CHILDREN AND ADULT,SHARPE PRITCHARD LLP,476,CAPITAL PS (EDUCATION),CONSTRUCTION FEES - LEGAL,5902301904,1790085
08.05.2018,CHILDREN AND ADULT,SHARPE PRITCHARD LLP,"2,436.00",CAPITAL PS (EDUCATION),CONSTRUCTION FEES - LEGAL,5902301906,1790085
08.05.2018,CHILDREN AND ADULT,NUMBER 10 INTERIM LTD,"5,250.00",CAPITAL PS (STRAT SERV),ICT ACQUISITION,5902301914,1000075139
08.05.2018,CHILDREN'S SERVICES,WINCHMORE TUTORS LTD,280,LAC EDUCATION,EXTERNAL AGENCIES AND BODIES,5902301940,1000075298
08.05.2018,CHILDREN'S SERVICES,RUTH CABEZA,"1,289.17",LEGAL,LEGAL FEES & COURT COSTS,2102813567,1000024775
08.05.2018,CHILDREN'S SERVICES,TARA VINDIS,"1,050.00",LEGAL,LEGAL FEES & COURT COSTS,2102813588,1000029896
08.05.2018,CHILDREN'S SERVICES,MELANIE NAZARETH,375,LEGAL,LEGAL FEES & COURT COSTS,2102813553,1000044248
08.05.2018,CHILDREN'S SERVICES,SAMANTHA WHITTAM,400,LEGAL,LEGAL FEES & COURT COSTS,2102813572,1000047457
08.05.2018,CHILDREN'S SERVICES,SAMANTHA WHITTAM,"1,350.00",LEGAL,LEGAL FEES & COURT COSTS,2102813571,1000047457
08.05.2018,CHILDREN'S SERVICES,RICHARD CLOUGH,375,LEGAL,LEGAL FEES & COURT COSTS,2102813563,1000051147
08.05.2018,CHILDREN'S SERVICES,TABITHA BARRAN,300,LEGAL,LEGAL FEES & COURT COSTS,2102813582,1000053940
08.05.2018,CHILDREN'S SERVICES,TABITHA BARRAN,300,LEGAL,LEGAL FEES & COURT COSTS,2102813585,1000053940
08.05.2018,CHILDREN'S SERVICES,TABITHA BARRAN,400,LEGAL,LEGAL FEES & COURT COSTS,2102813581,1000053940
08.05.2018,CHILDREN'S SERVICES,TABITHA BARRAN,"1,050.00",LEGAL,LEGAL FEES & COURT COSTS,2102813583,1000053940
08.05.2018,CHILDREN'S SERVICES,TABITHA BARRAN,"1,250.00",LEGAL,LEGAL FEES & COURT COSTS,2102813584,1000053940
08.05.2018,CHILDREN'S SERVICES,NOAH WEINIGER,"3,825.00",LEGAL,LEGAL FEES & COURT COSTS,2102813554,1000057066
08.05.2018,CHILDREN'S SERVICES,ED LAMB,300,LEGAL,LEGAL FEES & COURT COSTS,2102813523,1000058531
08.05.2018,CHILDREN'S SERVICES,ED LAMB,300,LEGAL,LEGAL FEES & COURT COSTS,2102813526,1000058531
08.05.2018,CHILDREN'S SERVICES,ED LAMB,400,LEGAL,LEGAL FEES & COURT COSTS,2102813527,1000058531
08.05.2018,CHILDREN'S SERVICES,ED LAMB,500,LEGAL,LEGAL FEES & COURT COSTS,2102813522,1000058531
08.05.2018,CHILDREN'S SERVICES,ED LAMB,"1,250.00",LEGAL,LEGAL FEES & COURT COSTS,2102813525,1000058531
08.05.2018,CHILDREN'S SERVICES,ED LAMB,"2,250.00",LEGAL,LEGAL FEES & COURT COSTS,2102813524,1000058531
08.05.2018,CHILDREN'S SERVICES,DEBORAH SEITLER,375,LEGAL,LEGAL FEES & COURT COSTS,2102813518,1000059125
08.05.2018,CHILDREN'S SERVICES,DEBORAH SEITLER,450,LEGAL,LEGAL FEES & COURT COSTS,2102813517,1000059125
08.05.2018,CHILDREN'S SERVICES,TIM PARKER,300,LEGAL,LEGAL FEES & COURT COSTS,2102813592,1000061949
08.05.2018,CHILDREN'S SERVICES,TIM PARKER,350,LEGAL,LEGAL FEES & COURT COSTS,2102813590,1000061949
08.05.2018,CHILDREN'S SERVICES,TIM PARKER,400,LEGAL,LEGAL FEES & COURT COSTS,2102813593,1000061949
08.05.2018,CHILDREN'S SERVICES,TIM PARKER,475,LEGAL,LEGAL FEES & COURT COSTS,2102813591,1000061949
08.05.2018,CHILDREN'S SERVICES,TIM PARKER,"18,900.00",LEGAL,LEGAL FEES & COURT COSTS,2102813589,1000061949
08.05.2018,CHILDREN'S SERVICES,PAULA DIAZ,475,LEGAL,LEGAL FEES & COURT COSTS,2102813556,1000063943
08.05.2018,CHILDREN'S SERVICES,LAURA BUMPUS,375,LEGAL,LEGAL FEES & COURT COSTS,2102813549,1000064937
08.05.2018,CHILDREN'S SERVICES,DAVID FOWLER,800,LEGAL,LEGAL FEES & COURT COSTS,2102813514,1000067637
08.05.2018,CHILDREN'S SERVICES,DAVID FOWLER,"4,450.00",LEGAL,LEGAL FEES & COURT COSTS,2102813515,1000067637
08.05.2018,CHILDREN'S SERVICES,MATTHEW STOTT,800,LEGAL,LEGAL FEES & COURT COSTS,2102813551,1000068749
08.05.2018,CHILDREN'S SERVICES,FRANCIS WILKINSON,600,LEGAL,LEGAL FEES & COURT COSTS,2102813531,1000068760
08.05.2018,CHILDREN'S SERVICES,RONNIE BERGENTHAL,500,LEGAL,LEGAL FEES & COURT COSTS,2102813566,1000068911
08.05.2018,CHILDREN'S SERVICES,PETER LYNCH,550,LEGAL,LEGAL FEES & COURT COSTS,2102813559,1000068939
08.05.2018,CHILDREN'S SERVICES,PETER LYNCH,550,LEGAL,LEGAL FEES & COURT COSTS,2102813560,1000068939
08.05.2018,CHILDREN'S SERVICES,WILLIAM DEAN,750,LEGAL,LEGAL FEES & COURT COSTS,2102813596,1000070780
08.05.2018,CHILDREN'S SERVICES,DEBORAH BRYAN,450,LEGAL,LEGAL FEES & COURT COSTS,2102813516,1000072679
08.05.2018,CHILDREN'S SERVICES,SARAH HUNWICK,375,LEGAL,LEGAL FEES & COURT COSTS,2102813576,1000073789
08.05.2018,CHILDREN'S SERVICES,GAYLE BISBEY,400,LEGAL,LEGAL FEES & COURT COSTS,2102813532,1000074738
08.05.2018,CHILDREN'S SERVICES,ANITA RAO,400,LEGAL,LEGAL FEES & COURT COSTS,2102813507,1000074789
08.05.2018,CHILDREN'S SERVICES,RICHARD HARRIS,475,LEGAL,LEGAL FEES & COURT COSTS,2102813564,1000075786
08.05.2018,CHILDREN'S SERVICES,RICHARD HARRIS,800,LEGAL,LEGAL FEES & COURT COSTS,2102813565,1000075786
08.05.2018,CHILDREN'S SERVICES,CLIVE REDLEY,350,LEGAL,LEGAL FEES & COURT COSTS,2102813513,1000078306
08.05.2018,CHILDREN'S SERVICES,CLIVE REDLEY,475,LEGAL,LEGAL FEES & COURT COSTS,2102813512,1000078306
08.05.2018,CHILDREN'S SERVICES,CLIVE REDLEY,"1,400.00",LEGAL,LEGAL FEES & COURT COSTS,2102813511,1000078306
08.05.2018,CHILDREN'S SERVICES,JUDITH CHARLTON,650,LEGAL,LEGAL FEES & COURT COSTS,2102813544,1000078401
08.05.2018,CHILDREN'S SERVICES,JUDITH CHARLTON,650,LEGAL,LEGAL FEES & COURT COSTS,2102813545,1000078401
08.05.2018,CHILDREN'S SERVICES,JUDITH CHARLTON,650,LEGAL,LEGAL FEES & COURT COSTS,2102813546,1000078401
08.05.2018,CHILDREN'S SERVICES,LAURA BARRIE,600,LEGAL,LEGAL FEES & COURT COSTS,2102813548,1000078404
08.05.2018,CHILDREN'S SERVICES,GERALDINE MORE O'FERRALL,375,LEGAL,LEGAL FEES & COURT COSTS,2102813533,1000080655
08.05.2018,CHILDREN'S SERVICES,JACOB RICHARDS,291.67,LEGAL,LEGAL FEES & COURT COSTS,2102813534,1000080778
08.05.2018,CHILDREN'S SERVICES,ELISE JEREMIAH,325,LEGAL,LEGAL FEES & COURT COSTS,2102813529,1000081006
08.05.2018,CHILDREN'S SERVICES,1ST PLACE CHILDREN & PARENTS CENTRE,645,S & FAM SUPP - PRAC GRP A SET 14-16,OTHER PAYMENTS FOR CLIENTS,5902302008,1000049952
08.05.2018,CHILDREN'S SERVICES,1ST PLACE CHILDREN & PARENTS CENTRE,645,S & FAM SUPP - PRAC GRP A SET 14-16,OTHER PAYMENTS FOR CLIENTS,5902302010,1000049952
08.05.2018,CHILDREN'S SERVICES,UNLOCKING LANGUAGE LTD,"24,476.91",SALT,SPECIAL SCHOOL SEN,5902301727,1000081107
08.05.2018,COMMISSIONING & CENTRAL,CORELOGIC LTD,"1,980.00",C&AS SOFTWARE APPS,SOFTWARE,5902301916,1000074359
08.05.2018,COMMISSIONING & CENTRAL,CORELOGIC LTD,"3,600.00",C&AS SOFTWARE APPS,SOFTWARE,5902301916,1000074359
08.05.2018,COMMISSIONING & CENTRAL,CORELOGIC LTD,"3,600.00",C&AS SOFTWARE APPS,SOFTWARE,5902301916,1000074359
08.05.2018,COMMISSIONING & CENTRAL,CORELOGIC LTD,"10,500.00",C&AS SOFTWARE APPS,SOFTWARE,5902301916,1000074359
08.05.2018,COMMISSIONING & CENTRAL,CORELOGIC LTD,"66,825.00",C&AS SOFTWARE APPS,SOFTWARE,5902301916,1000074359
08.05.2018,COMMUNITIES,CGL,"233,297.81",ADULT SM SERVICE,OTHER CONTRACTORS,5902301950,1000064197
08.05.2018,COMMUNITIES,CGL,"233,297.81",ADULT SM SERVICE,OTHER CONTRACTORS,5902301979,1000064197
08.05.2018,COMMUNITIES,JANUS RESONANCE FACTOR LTD,"18,143.75",ANCILLARY AND RECOVERY SERVICES,OTHER CONTRACTORS,5902301951,1000079872
08.05.2018,COMMUNITIES,VAUGHTONS,"3,369.80",MAYORAL SUPPORT,FURNITURE PURCHASE & REPAIR,5902301925,1000019036
08.05.2018,COMMUNITIES,SWAN AT THE GLOBE LTD,"7,697.98",MAYORAL SUPPORT,OFFICE EXPENSES,2102814749,1000055253
08.05.2018,COMMUNITIES,HOMELY HOUSING LETS LTD,"48,178.17",NO RECOURSE TO PUBLIC FUNDS,ACCOMMODATION CHARGES,5902302009,1000050013
08.05.2018,COMMUNITIES,RELAKS LTD,"4,557.00",NO RECOURSE TO PUBLIC FUNDS,ACCOMMODATION CHARGES,5902301952,1000054151
08.05.2018,COMMUNITIES,LETTING INTERNATIONAL LTD,"1,470.00",NO RECOURSE TO PUBLIC FUNDS,ACCOMMODATION CHARGES,5902301932,1000070102
08.05.2018,COMMUNITIES,J & M OASIS LTD,"19,770.00",NO RECOURSE TO PUBLIC FUNDS,ACCOMMODATION CHARGES,5902302005,1000072169
08.05.2018,COMMUNITIES,SOUTH OF THE RIVER INVESTMENTS LTD,"4,425.00",NO RECOURSE TO PUBLIC FUNDS,ACCOMMODATION CHARGES,5902301929,1000073638
08.05.2018,COMMUNITIES,NORBURY PROPERTY SERVICES,"3,030.00",NO RECOURSE TO PUBLIC FUNDS,ACCOMMODATION CHARGES,5902302016,1000075566
08.05.2018,COMMUNITIES,FINEFAIR LTD,"4,828.76",NO RECOURSE TO PUBLIC FUNDS,ACCOMMODATION CHARGES,5902302018,1000075570
08.05.2018,COMMUNITIES,HOMELY HOUSING LETS LTD,"3,052.17",NO RECOURSE TO PUBLIC FUNDS,OTHER PAYMENTS FOR CLIENTS,5902302014,1000050013
08.05.2018,COMMUNITIES,HOMELY HOUSING LETS LTD,"4,840.76",NO RECOURSE TO PUBLIC FUNDS,OTHER PAYMENTS FOR CLIENTS,5902302013,1000050013
08.05.2018,COMMUNITIES,BELLS GARDENS T&RA,"2,997.50",TENANTS FUND,GRANTS,5902301891,1000058350
08.05.2018,COMMUNITIES,LIMES WALK T&RA,"1,300.00",TENANTS FUND,GRANTS,5902301896,1000075885
08.05.2018,CUSTOMER EXPERIENCE HGF,SOUTH OF THE RIVER INVESTMENTS LTD,"3,672.30",NIGHTLY TA (NSC),EXTERNAL AGENCIES AND BODIES,5902301937,1000073638
08.05.2018,ELECTORAL SVCES,WESTCO TRADING LTD,"11,110.00",BOROUGH COUNCIL ELECTIONS,LEGAL FEES & COURT COSTS,2102813594,1000069599
08.05.2018,ELECTORAL SVCES,WESTCO TRADING LTD,"11,110.00",BOROUGH COUNCIL ELECTIONS,LEGAL FEES & COURT COSTS,2102813595,1000069599
08.05.2018,ENVIRONMENT AND LEISURE,LAND USE CONSULTANTS LTD,"4,839.00",CAPITAL PS (LEISURE),CONSTRUCTION FEES  - EXTERNAL,5902301954,11132526
08.05.2018,ENVIRONMENT AND LEISURE,LAND USE CONSULTANTS LTD,"8,998.25",CAPITAL PS (LEISURE),CONSTRUCTION FEES  - EXTERNAL,5902301960,11132526
08.05.2018,ENVIRONMENT AND LEISURE,LDA DESIGN CONSULTING LTD,"6,862.00",CAPITAL PS (LEISURE),CONSTRUCTION FEES  - EXTERNAL,5902301964,1000031830
08.05.2018,ENVIRONMENT AND LEISURE,INTO SERVICES LONDON LTD,"3,500.00",CAPITAL PS (LEISURE),CONSTRUCTION FEES  - EXTERNAL,5902301978,1000059328
08.05.2018,ENVIRONMENT AND LEISURE,SPOKEMEAD MAINTENANCE LTD,"4,727.91",CAPITAL PS (LEISURE),CONSTRUCTION MAIN CONTRACT -CERTIFICATED,2102813676,4002791
08.05.2018,ENVIRONMENT DIRECTORATE,R J MOTORS LIMITED,497.08,COMMERCIAL VEH CTRL A/C,VEHICLE REPAIRS & MAINTENANCE,5902301963,1000047106
08.05.2018,ENVIRONMENT DIRECTORATE,R J MOTORS LIMITED,601.18,COMMERCIAL VEH CTRL A/C,VEHICLE REPAIRS & MAINTENANCE,5902301969,1000047106
08.05.2018,ENVIRONMENT DIRECTORATE,R J MOTORS LIMITED,889.54,COMMERCIAL VEH CTRL A/C,VEHICLE REPAIRS & MAINTENANCE,5902301970,1000047106
08.05.2018,ENVIRONMENT DIRECTORATE,R J MOTORS LIMITED,"1,331.19",COMMERCIAL VEH CTRL A/C,VEHICLE REPAIRS & MAINTENANCE,5902301972,1000047106
08.05.2018,ENVIRONMENT DIRECTORATE,GULLIVERS TRUCK HIRE LTD,291.72,COMMERCIAL VEH CTRL A/C,VEHICLE REPAIRS & MAINTENANCE,5902301981,1000052656
08.05.2018,ENVIRONMENT DIRECTORATE,GULLIVERS TRUCK HIRE LTD,316.27,COMMERCIAL VEH CTRL A/C,VEHICLE REPAIRS & MAINTENANCE,5902301956,1000052656
08.05.2018,ENVIRONMENT DIRECTORATE,GULLIVERS TRUCK HIRE LTD,437.5,COMMERCIAL VEH CTRL A/C,VEHICLE REPAIRS & MAINTENANCE,5902301959,1000052656
08.05.2018,ENVIRONMENT DIRECTORATE,GULLIVERS TRUCK HIRE LTD,485.71,COMMERCIAL VEH CTRL A/C,VEHICLE REPAIRS & MAINTENANCE,5902301945,1000052656
08.05.2018,ENVIRONMENT DIRECTORATE,GULLIVERS TRUCK HIRE LTD,"3,591.73",COMMERCIAL VEH CTRL A/C,VEHICLE REPAIRS & MAINTENANCE,5902301944,1000052656
08.05.2018,ENVIRONMENT DIRECTORATE,THE T.P. PARTNERSHIP,445,ESTATE CLEANING-GENERAL,OTHER CONTRACTORS,5902301926,1000045906
08.05.2018,ENVIRONMENT DIRECTORATE,THE T.P. PARTNERSHIP,455,ESTATE CLEANING-GENERAL,OTHER CONTRACTORS,5902301928,1000045906
08.05.2018,ENVIRONMENT DIRECTORATE,CONTEGO SAFETY SOLUTIONS LTD,398.16,MANAGEMENT TEAM,MATERIALS,5902301949,1000077673
08.05.2018,ENVIRONMENT DIRECTORATE,JARED NORMAN,450,ROUGH SLEEPERS,LEGAL FEES & COURT COSTS,2102813538,1000064080
08.05.2018,ENVIRONMENT DIRECTORATE,JARED NORMAN,450,ROUGH SLEEPERS,LEGAL FEES & COURT COSTS,2102813539,1000064080
08.05.2018,ENVIRONMENT DIRECTORATE,JARED NORMAN,"1,350.00",ROUGH SLEEPERS,LEGAL FEES & COURT COSTS,2102813537,1000064080
08.05.2018,ENVIRONMENT DIRECTORATE,BICKERDIKE ALLEN PARTNERS,950,SASBU,LEGAL FEES & COURT COSTS,5902301917,1000052663
08.05.2018,ENVIRONMENT DIRECTORATE,JARED NORMAN,450,SASBU,LEGAL FEES & COURT COSTS,2102813536,1000064080
08.05.2018,ENVIRONMENT DIRECTORATE,JARED NORMAN,710,SASBU,LEGAL FEES & COURT COSTS,2102813535,1000064080
08.05.2018,ENVIRONMENT DIRECTORATE,SKILLS TRAINING CENTRE LTD,"3,590.00",STREET WORKS OVERHEADS,BOOKS & PUBLICATIONS,5902302006,1000059249
08.05.2018,ENVIRONMENT DIRECTORATE,ALTIA SOLUTIONS LTD,615,TRADING STANDARDS CONFISCATION FUND,SUBSCRIPTIONS,5902300973,1000060360
08.05.2018,F & C S EXCLUDING CORPORATE BUDGETS,MATTHEW HUTCHINGS,750,FINANCE DIRECTOR,LEGAL FEES & COURT COSTS,2102813550,1000054850
08.05.2018,F & C S EXCLUDING CORPORATE BUDGETS,SAMANTHA LEEK QC,600,LITIGATION,LEGAL FEES & COURT COSTS,2102813568,1000069896
08.05.2018,F & C S EXCLUDING CORPORATE BUDGETS,SAMANTHA LEEK QC,"2,100.00",LITIGATION,LEGAL FEES & COURT COSTS,2102813569,1000069896
08.05.2018,HOUSING GENERAL FUND,STANNAH LIFT SERVICES LTD,"3,020.00",CAPITAL PS (HOUSING GF),CAPITAL GRANTS,5902301942,1063595
08.05.2018,HOUSING GENERAL FUND,TRINITY CONSTRUCTION SERVICES LTD,"6,827.00",CAPITAL PS (HOUSING GF),CAPITAL GRANTS,5902301901,1000058327
08.05.2018,HOUSING GENERAL FUND,C & C BUILDERS LTD,"6,260.00",CAPITAL PS (HOUSING GF),CAPITAL GRANTS,5902301905,1000079100
08.05.2018,HOUSING HRA,CALFORD SEADEN LLP,"3,165.11",CAPITAL PS (HRA),CONSTRUCTION FEES  - EXTERNAL,5902301922,1061592
08.05.2018,HOUSING HRA,HAWKINS ENVIRONMENTAL LTD,"3,015.00",CAPITAL PS (HRA),CONSTRUCTION FEES  - EXTERNAL,5902301886,1000080303
08.05.2018,HOUSING HRA,CEDR SERVICES LTD,"1,500.00",HOME OWNERSHIP,LEGAL & COURT FEES,CHEQUE PAYMENT,CHEQUE PAYMENT
08.05.2018,HOUSING HRA,NPOWER,458.9,RESIDENT SERVICES BUSINESS SUPPORT,ELECTRICITY,6101830684,DIRECT DEBIT PAYMENT
08.05.2018,HOUSING STRATEGY AND OPTIONS,DONALD BROATCH,"1,000.00",HOMELESS & HOUSING OPTIONS MGT,LEGAL FEES & COURT COSTS,2102813519,1000068963
08.05.2018,HOUSING STRATEGY AND OPTIONS,DONALD BROATCH,"2,025.00",HOMELESS & HOUSING OPTIONS MGT,LEGAL FEES & COURT COSTS,2102813521,1000068963
08.05.2018,HOUSING STRATEGY AND OPTIONS,REDACTED PERSONAL DATA,"1,224.48",HOMELESS PROJECTS,GRANTS,REDACTED,REDACTED
08.05.2018,HOUSING STRATEGY AND OPTIONS,REDACTED PERSONAL DATA,"1,224.48",HOMELESS PROJECTS,GRANTS,REDACTED,REDACTED
08.05.2018,HOUSING STRATEGY AND OPTIONS,REDACTED PERSONAL DATA,"1,224.48",HOMELESS PROJECTS,GRANTS,REDACTED,REDACTED
08.05.2018,HOUSING STRATEGY AND OPTIONS,REDACTED PERSONAL DATA,"1,224.48",HOMELESS PROJECTS,GRANTS,REDACTED,REDACTED
08.05.2018,HOUSING STRATEGY AND OPTIONS,REDACTED PERSONAL DATA,"3,000.00",HOMELESS PROJECTS,GRANTS,REDACTED,REDACTED
08.05.2018,HOUSING STRATEGY AND OPTIONS,REDACTED PERSONAL DATA,"3,000.00",HOMELESS PROJECTS,GRANTS,REDACTED,REDACTED
08.05.2018,INTERNAL SERVICES,ANDREW SKELLY,562.5,LEGAL HOUSING LITIGATN,LEGAL FEES & COURT COSTS,2102813506,1000069248
08.05.2018,LEISURE DIRECTORATE,THE ALBANY 2001 COMPANY,"3,500.00",CANADA WATER LIBRARY,EQUIPMENT PURCHASE & REPAIR,5902301897,1000052402
08.05.2018,LEISURE DIRECTORATE,NPOWER,483.98,EAST STREET LIBRARY,ELECTRICITY,5902301898,1000055441
08.05.2018,LEISURE DIRECTORATE,EVA SAJOVIC,"1,400.00",HERITAGE,OTHER CONTRACTORS,5902301912,1000057722
08.05.2018,MODERNISATION HGF,ATLANTIC DATA LTD,"14,479.92",EMPLOYMENT CHECKS,PROFESSIONAL FEES,5902301919,1000070778
08.05.2018,PLANNING AND TRANSPORT,LAND USE CONSULTANTS LTD,"11,018.25",SUPPORT SERVICES,PROFESSIONAL FEES,5902301887,11132526
08.05.2018,PUBLIC HEALTH,LEWISHAM AND GREENWICH NHS TRUST,"-14,913.91",SEXUAL HEALTH - STI,EXTERNAL AGENCIES AND BODIES,5902302172,1000076183
08.05.2018,PUBLIC HEALTH,LEWISHAM AND GREENWICH NHS TRUST,"14,913.91",SEXUAL HEALTH - STI,EXTERNAL AGENCIES AND BODIES,5902302171,1000076183
08.05.2018,REGENERATION,WIBBLY WOBBLY WEBSITE,"3,000.00",OKR MASTER PLANNING,PROFESSIONAL FEES,5902301948,1000081004
08.05.2018,RESIDENT SERVICES,TFL TELESALES / OYSTER FULFILMENT,"2,110.00",OPERATIONS/OFFICES ACCOMMODATION,PUBLIC TRANSPORT,5902301907,1000059727
08.05.2018,RESIDENT SERVICES,SOUTHERN ELECTRIC,452.01,TA HOSTELS,ELECTRICITY,5902301955,1000050721
08.05.2018,RESIDENT SERVICES,SOUTH OF THE RIVER INVESTMENTS LTD,"1,620.00",TA PLACEMENTS,EXTERNAL AGENCIES AND BODIES,5902301894,1000073638
09.05.2018,ADULT SOCIAL CARE,DERWENT RESIDENTIAL CARE LTD,459,APPOINTEESHIPS,OTHER PAYMENTS FOR CLIENTS,2102814729,1000069967
09.05.2018,ADULT SOCIAL CARE,REDACTED PERSONAL DATA,"1,675.90",APPOINTEESHIPS,OTHER PAYMENTS FOR CLIENTS,REDACTED,REDACTED
09.05.2018,ADULT SOCIAL CARE,NATIONAL AUTISTIC SOCIETY CARE PACK,"2,287.56",LD LTS 18-64,DAYCARE,2102813890,1000020538
09.05.2018,ADULT SOCIAL CARE,ACT TOO LTD,600,LD LTS 18-64,DAYCARE,2102814529,1000053657
09.05.2018,ADULT SOCIAL CARE,THE NEW SHOOTS,300,LD LTS 18-64,DAYCARE,2102814528,1000073970
09.05.2018,ADULT SOCIAL CARE,KENT HARRIER PROPERTY MANAGEMENT,"1,530.00",LD LTS 18-64,EXTERNAL AGENCIES AND BODIES,2102814533,1000078130
09.05.2018,ADULT SOCIAL CARE,KENT HARRIER PROPERTY MANAGEMENT,"1,536.00",LD LTS 18-64,EXTERNAL AGENCIES AND BODIES,2102814525,1000078130
09.05.2018,ADULT SOCIAL CARE,CARE MANAGEMENT GROUP,424.29,LD LTS 18-64,SUPPORTED LIVING,2102814534,1000040475
09.05.2018,ADULT SOCIAL CARE,CARE MANAGEMENT GROUP,"1,188.00",LD LTS 18-64,SUPPORTED LIVING,2102814531,1000040475
09.05.2018,ADULT SOCIAL CARE,REDACTED PERSONAL DATA,"3,682.28",LD LTS 18-64,SUPPORTED LIVING,REDACTED,REDACTED
09.05.2018,ADULT SOCIAL CARE,SWK DISABLEMENT ASSN,965.2,MH LTS 18-64,HOMECARE - SPOT,2102813889,1000011698
09.05.2018,ADULT SOCIAL CARE,CARE MANAGEMENT GROUP,282.86,MH LTS 18-64,SUPPORTED LIVING,2102814532,1000040475
09.05.2018,ADULT SOCIAL CARE,PHOENIX HEALTHCARE & RECRUITMENT,391.36,PHY LTS 18-64,DAYCARE,2102814527,1000065636
09.05.2018,ADULT SOCIAL CARE,METRO HOMECARE LTD,344.75,PHY LTS 18-64,HOMECARE - SPOT,2102813886,1000070695
09.05.2018,ADULT SOCIAL CARE,METRO HOMECARE LTD,627.45,PHY LTS 18-64,HOMECARE - SPOT,2102813875,1000070695
09.05.2018,ADULT SOCIAL CARE,METRO HOMECARE LTD,992.88,PHY LTS 18-64,HOMECARE - SPOT,2102813887,1000070695
09.05.2018,ADULT SOCIAL CARE,METRO HOMECARE LTD,"1,241.10",PHY LTS 65+,HOMECARE - C&V,2102813871,1000070695
09.05.2018,ADULT SOCIAL CARE,METRO HOMECARE LTD,268.91,PHY LTS 65+,HOMECARE - SPOT,2102813876,1000070695
09.05.2018,ADULT SOCIAL CARE,METRO HOMECARE LTD,317.17,PHY LTS 65+,HOMECARE - SPOT,2102813884,1000070695
09.05.2018,ADULT SOCIAL CARE,METRO HOMECARE LTD,372.33,PHY LTS 65+,HOMECARE - SPOT,2102813856,1000070695
09.05.2018,ADULT SOCIAL CARE,METRO HOMECARE LTD,393.02,PHY LTS 65+,HOMECARE - SPOT,2102813861,1000070695
09.05.2018,ADULT SOCIAL CARE,METRO HOMECARE LTD,434.39,PHY LTS 65+,HOMECARE - SPOT,2102813874,1000070695
09.05.2018,ADULT SOCIAL CARE,METRO HOMECARE LTD,434.39,PHY LTS 65+,HOMECARE - SPOT,2102813878,1000070695
09.05.2018,ADULT SOCIAL CARE,METRO HOMECARE LTD,461.97,PHY LTS 65+,HOMECARE - SPOT,2102813862,1000070695
09.05.2018,ADULT SOCIAL CARE,METRO HOMECARE LTD,482.65,PHY LTS 65+,HOMECARE - SPOT,2102813882,1000070695
09.05.2018,ADULT SOCIAL CARE,METRO HOMECARE LTD,537.81,PHY LTS 65+,HOMECARE - SPOT,2102813857,1000070695
09.05.2018,ADULT SOCIAL CARE,METRO HOMECARE LTD,537.81,PHY LTS 65+,HOMECARE - SPOT,2102813859,1000070695
09.05.2018,ADULT SOCIAL CARE,METRO HOMECARE LTD,537.81,PHY LTS 65+,HOMECARE - SPOT,2102813868,1000070695
09.05.2018,ADULT SOCIAL CARE,METRO HOMECARE LTD,537.81,PHY LTS 65+,HOMECARE - SPOT,2102813869,1000070695
09.05.2018,ADULT SOCIAL CARE,METRO HOMECARE LTD,537.81,PHY LTS 65+,HOMECARE - SPOT,2102813872,1000070695
09.05.2018,ADULT SOCIAL CARE,METRO HOMECARE LTD,551.6,PHY LTS 65+,HOMECARE - SPOT,2102813865,1000070695
09.05.2018,ADULT SOCIAL CARE,METRO HOMECARE LTD,592.97,PHY LTS 65+,HOMECARE - SPOT,2102813867,1000070695
09.05.2018,ADULT SOCIAL CARE,METRO HOMECARE LTD,868.77,PHY LTS 65+,HOMECARE - SPOT,2102813870,1000070695
09.05.2018,ADULT SOCIAL CARE,METRO HOMECARE LTD,882.56,PHY LTS 65+,HOMECARE - SPOT,2102813860,1000070695
09.05.2018,ADULT SOCIAL CARE,METRO HOMECARE LTD,"1,061.83",PHY LTS 65+,HOMECARE - SPOT,2102813888,1000070695
09.05.2018,ADULT SOCIAL CARE,METRO HOMECARE LTD,"1,103.20",PHY LTS 65+,HOMECARE - SPOT,2102813879,1000070695
09.05.2018,ADULT SOCIAL CARE,METRO HOMECARE LTD,"1,723.75",PHY LTS 65+,HOMECARE - SPOT,2102813885,1000070695
09.05.2018,ADULT SOCIAL CARE,METRO HOMECARE LTD,255.12,SOCIAL ISOLATION,HOMECARE - SPOT,2102813858,1000070695
09.05.2018,ADULT SOCIAL CARE,KAIROS COMMUNITY TRUST,"1,620.00",SUB LTS 18-64,DAYCARE,2102814537,1000025479
09.05.2018,ADULT SOCIAL CARE,KAIROS COMMUNITY TRUST,"2,742.86",SUB LTS 18-64,PLACEMENTS - REHAB,2102814536,1000025479
09.05.2018,ADULT SOCIAL CARE,FREEDOM RECOVERY CENTRE,"2,400.00",SUB LTS 18-64,PLACEMENTS - REHAB,2102814539,1000046185
09.05.2018,BERMONDSEY AND ROTHERHITHE COMMUNITY COUNCIL,LEATHERMARKET JMB,"2,000.00",,GRANT,CHEQUE PAYMENT,CHEQUE PAYMENT
09.05.2018,CHIEF EXECUTIVE,WE MADE THAT LLP,"2,777.92",CAPITAL PS (REGEN),CONSTRUCTION FEES  - EXTERNAL,5902302028,1000076806
09.05.2018,CHILDREN'S SERVICES,REDACTED PERSONAL DATA,465.52,ADOPTION PLACEMENTS & INTER AGENCY,PAYMENTS TO CARERS,REDACTED,REDACTED
09.05.2018,CHILDREN'S SERVICES,REDACTED PERSONAL DATA,304.64,ADOPTION PLACEMENTS & INTER AGENCY,PAYMENTS TO CARERS,REDACTED,REDACTED
09.05.2018,CHILDREN'S SERVICES,REDACTED PERSONAL DATA,559.06,ADOPTION PLACEMENTS & INTER AGENCY,PAYMENTS TO CARERS,REDACTED,REDACTED
09.05.2018,CHILDREN'S SERVICES,REDACTED PERSONAL DATA,695.04,ADOPTION PLACEMENTS & INTER AGENCY,PAYMENTS TO CARERS,REDACTED,REDACTED
09.05.2018,CHILDREN'S SERVICES,REDACTED PERSONAL DATA,375.54,ADOPTION PLACEMENTS & INTER AGENCY,PAYMENTS TO CARERS,REDACTED,REDACTED
09.05.2018,CHILDREN'S SERVICES,REDACTED PERSONAL DATA,375.54,ADOPTION PLACEMENTS & INTER AGENCY,PAYMENTS TO CARERS,REDACTED,REDACTED
09.05.2018,CHILDREN'S SERVICES,REDACTED PERSONAL DATA,404.46,ADOPTION PLACEMENTS & INTER AGENCY,PAYMENTS TO CARERS,REDACTED,REDACTED
09.05.2018,CHILDREN'S SERVICES,REDACTED PERSONAL DATA,311.34,ADOPTION PLACEMENTS & INTER AGENCY,PAYMENTS TO CARERS,REDACTED,REDACTED
09.05.2018,CHILDREN'S SERVICES,REDACTED PERSONAL DATA,400.84,ADOPTION PLACEMENTS & INTER AGENCY,PAYMENTS TO CARERS,REDACTED,REDACTED
09.05.2018,CHILDREN'S SERVICES,REDACTED PERSONAL DATA,635.34,ADOPTION PLACEMENTS & INTER AGENCY,PAYMENTS TO CARERS,REDACTED,REDACTED
09.05.2018,CHILDREN'S SERVICES,REDACTED PERSONAL DATA,255.22,ADOPTION PLACEMENTS & INTER AGENCY,PAYMENTS TO CARERS,REDACTED,REDACTED
09.05.2018,CHILDREN'S SERVICES,REDACTED PERSONAL DATA,375.54,ADOPTION PLACEMENTS & INTER AGENCY,PAYMENTS TO CARERS,REDACTED,REDACTED
09.05.2018,CHILDREN'S SERVICES,REDACTED PERSONAL DATA,653.06,ADOPTION PLACEMENTS & INTER AGENCY,PAYMENTS TO CARERS,REDACTED,REDACTED
09.05.2018,CHILDREN'S SERVICES,REDACTED PERSONAL DATA,390.26,ADOPTION PLACEMENTS & INTER AGENCY,PAYMENTS TO CARERS,REDACTED,REDACTED
09.05.2018,CHILDREN'S SERVICES,REDACTED PERSONAL DATA,465.54,ADOPTION PLACEMENTS & INTER AGENCY,PAYMENTS TO CARERS,REDACTED,REDACTED
09.05.2018,CHILDREN'S SERVICES,REDACTED PERSONAL DATA,465.54,ADOPTION PLACEMENTS & INTER AGENCY,PAYMENTS TO CARERS,REDACTED,REDACTED
09.05.2018,CHILDREN'S SERVICES,REDACTED PERSONAL DATA,269.22,ADOPTION PLACEMENTS & INTER AGENCY,PAYMENTS TO CARERS,REDACTED,REDACTED
09.05.2018,CHILDREN'S SERVICES,REDACTED PERSONAL DATA,256.54,ADOPTION PLACEMENTS & INTER AGENCY,PAYMENTS TO CARERS,REDACTED,REDACTED
09.05.2018,CHILDREN'S SERVICES,REDACTED PERSONAL DATA,316.5,ADOPTION PLACEMENTS & INTER AGENCY,PAYMENTS TO CARERS,REDACTED,REDACTED
09.05.2018,CHILDREN'S SERVICES,REDACTED PERSONAL DATA,400.84,ADOPTION PLACEMENTS & INTER AGENCY,PAYMENTS TO CARERS,REDACTED,REDACTED
09.05.2018,CHILDREN'S SERVICES,REDACTED PERSONAL DATA,279.26,ADOPTION PLACEMENTS & INTER AGENCY,PAYMENTS TO CARERS,REDACTED,REDACTED
09.05.2018,CHILDREN'S SERVICES,REDACTED PERSONAL DATA,359.44,ADOPTION PLACEMENTS & INTER AGENCY,PAYMENTS TO CARERS,REDACTED,REDACTED
09.05.2018,CHILDREN'S SERVICES,REDACTED PERSONAL DATA,375.54,ADOPTION PLACEMENTS & INTER AGENCY,PAYMENTS TO CARERS,REDACTED,REDACTED
09.05.2018,CHILDREN'S SERVICES,REDACTED PERSONAL DATA,451.8,ADOPTION PLACEMENTS & INTER AGENCY,PAYMENTS TO CARERS,REDACTED,REDACTED
09.05.2018,CHILDREN'S SERVICES,REDACTED PERSONAL DATA,295.3,ADOPTION PLACEMENTS & INTER AGENCY,PAYMENTS TO CARERS,REDACTED,REDACTED
09.05.2018,CHILDREN'S SERVICES,REDACTED PERSONAL DATA,275.1,ADOPTION PLACEMENTS & INTER AGENCY,PAYMENTS TO CARERS,REDACTED,REDACTED
09.05.2018,CHILDREN'S SERVICES,REDACTED PERSONAL DATA,465.48,ADOPTION PLACEMENTS & INTER AGENCY,PAYMENTS TO CARERS,REDACTED,REDACTED
09.05.2018,CHILDREN'S SERVICES,REDACTED PERSONAL DATA,375.54,ADOPTION PLACEMENTS & INTER AGENCY,PAYMENTS TO CARERS,REDACTED,REDACTED
09.05.2018,CHILDREN'S SERVICES,REDACTED PERSONAL DATA,465.54,ADOPTION PLACEMENTS & INTER AGENCY,PAYMENTS TO CARERS,REDACTED,REDACTED
09.05.2018,CHILDREN'S SERVICES,REDACTED PERSONAL DATA,465.54,ADOPTION PLACEMENTS & INTER AGENCY,PAYMENTS TO CARERS,REDACTED,REDACTED
09.05.2018,CHILDREN'S SERVICES,REDACTED PERSONAL DATA,705.24,ADOPTION PLACEMENTS & INTER AGENCY,PAYMENTS TO CARERS,REDACTED,REDACTED
09.05.2018,CHILDREN'S SERVICES,REDACTED PERSONAL DATA,777.36,ADOPTION PLACEMENTS & INTER AGENCY,PAYMENTS TO CARERS,REDACTED,REDACTED
09.05.2018,CHILDREN'S SERVICES,REDACTED PERSONAL DATA,"1,011.20",ADOPTION PLACEMENTS & INTER AGENCY,PAYMENTS TO CARERS,REDACTED,REDACTED
09.05.2018,CHILDREN'S SERVICES,REDACTED PERSONAL DATA,465.54,ADOPTION PLACEMENTS & INTER AGENCY,PAYMENTS TO CARERS,REDACTED,REDACTED
09.05.2018,CHILDREN'S SERVICES,REDACTED PERSONAL DATA,512.02,ADOPTION PLACEMENTS & INTER AGENCY,PAYMENTS TO CARERS,REDACTED,REDACTED
09.05.2018,CHILDREN'S SERVICES,REDACTED PERSONAL DATA,717.14,ADOPTION PLACEMENTS & INTER AGENCY,PAYMENTS TO CARERS,REDACTED,REDACTED
09.05.2018,CHILDREN'S SERVICES,REDACTED PERSONAL DATA,534.54,ADOPTION PLACEMENTS & INTER AGENCY,PAYMENTS TO CARERS,REDACTED,REDACTED
09.05.2018,CHILDREN'S SERVICES,REDACTED PERSONAL DATA,552.16,ADOPTION PLACEMENTS & INTER AGENCY,PAYMENTS TO CARERS,REDACTED,REDACTED
09.05.2018,CHILDREN'S SERVICES,REDACTED PERSONAL DATA,375.54,ADOPTION PLACEMENTS & INTER AGENCY,PAYMENTS TO CARERS,REDACTED,REDACTED
09.05.2018,CHILDREN'S SERVICES,REDACTED PERSONAL DATA,453.24,ADOPTION PLACEMENTS & INTER AGENCY,PAYMENTS TO CARERS,REDACTED,REDACTED
09.05.2018,CHILDREN'S SERVICES,REDACTED PERSONAL DATA,465.52,ADOPTION PLACEMENTS & INTER AGENCY,PAYMENTS TO CARERS,REDACTED,REDACTED
09.05.2018,CHILDREN'S SERVICES,REDACTED PERSONAL DATA,375.54,ADOPTION PLACEMENTS & INTER AGENCY,PAYMENTS TO CARERS,REDACTED,REDACTED
09.05.2018,CHILDREN'S SERVICES,REDACTED PERSONAL DATA,457.14,ADOPTION PLACEMENTS & INTER AGENCY,PAYMENTS TO CARERS,REDACTED,REDACTED
09.05.2018,CHILDREN'S SERVICES,REDACTED PERSONAL DATA,502,ADOPTION PLACEMENTS & INTER AGENCY,PAYMENTS TO CARERS,REDACTED,REDACTED
09.05.2018,CHILDREN'S SERVICES,REDACTED PERSONAL DATA,375.54,ADOPTION PLACEMENTS & INTER AGENCY,PAYMENTS TO CARERS,REDACTED,REDACTED
09.05.2018,CHILDREN'S SERVICES,REDACTED PERSONAL DATA,640.9,ADOPTION PLACEMENTS & INTER AGENCY,PAYMENTS TO CARERS,REDACTED,REDACTED
09.05.2018,CHILDREN'S SERVICES,REDACTED PERSONAL DATA,382.3,ADOPTION PLACEMENTS & INTER AGENCY,PAYMENTS TO CARERS,REDACTED,REDACTED
09.05.2018,CHILDREN'S SERVICES,REDACTED PERSONAL DATA,382.3,ADOPTION PLACEMENTS & INTER AGENCY,PAYMENTS TO CARERS,REDACTED,REDACTED
09.05.2018,CHILDREN'S SERVICES,REDACTED PERSONAL DATA,375.54,ADOPTION PLACEMENTS & INTER AGENCY,PAYMENTS TO CARERS,REDACTED,REDACTED
09.05.2018,CHILDREN'S SERVICES,REDACTED PERSONAL DATA,485.22,ADOPTION PLACEMENTS & INTER AGENCY,PAYMENTS TO CARERS,REDACTED,REDACTED
09.05.2018,CHILDREN'S SERVICES,REDACTED PERSONAL DATA,368.52,ADOPTION PLACEMENTS & INTER AGENCY,PAYMENTS TO CARERS,REDACTED,REDACTED
09.05.2018,CHILDREN'S SERVICES,REDACTED PERSONAL DATA,252.9,ADOPTION PLACEMENTS & INTER AGENCY,PAYMENTS TO CARERS,REDACTED,REDACTED
09.05.2018,CHILDREN'S SERVICES,REDACTED PERSONAL DATA,253.56,ADOPTION PLACEMENTS & INTER AGENCY,PAYMENTS TO CARERS,REDACTED,REDACTED
09.05.2018,CHILDREN'S SERVICES,REDACTED PERSONAL DATA,382.3,ADOPTION PLACEMENTS & INTER AGENCY,PAYMENTS TO CARERS,REDACTED,REDACTED
09.05.2018,CHILDREN'S SERVICES,REDACTED PERSONAL DATA,382.3,ADOPTION PLACEMENTS & INTER AGENCY,PAYMENTS TO CARERS,REDACTED,REDACTED
09.05.2018,CHILDREN'S SERVICES,REDACTED PERSONAL DATA,282.76,ADOPTION PLACEMENTS & INTER AGENCY,PAYMENTS TO CARERS,REDACTED,REDACTED
09.05.2018,CHILDREN'S SERVICES,REDACTED PERSONAL DATA,484.92,ADOPTION PLACEMENTS & INTER AGENCY,PAYMENTS TO CARERS,REDACTED,REDACTED
09.05.2018,CHILDREN'S SERVICES,REDACTED PERSONAL DATA,530,ADOPTION PLACEMENTS & INTER AGENCY,PAYMENTS TO CARERS,REDACTED,REDACTED
09.05.2018,CHILDREN'S SERVICES,REDACTED PERSONAL DATA,908,ADOPTION PLACEMENTS & INTER AGENCY,PAYMENTS TO CARERS,REDACTED,REDACTED
09.05.2018,CHILDREN'S SERVICES,REDACTED PERSONAL DATA,738.32,ADOPTION PLACEMENTS & INTER AGENCY,PAYMENTS TO CARERS,REDACTED,REDACTED
09.05.2018,CHILDREN'S SERVICES,REDACTED PERSONAL DATA,695.12,ADOPTION PLACEMENTS & INTER AGENCY,PAYMENTS TO CARERS,REDACTED,REDACTED
09.05.2018,CHILDREN'S SERVICES,REDACTED PERSONAL DATA,293.98,ADOPTION PLACEMENTS & INTER AGENCY,PAYMENTS TO CARERS,REDACTED,REDACTED
09.05.2018,CHILDREN'S SERVICES,REDACTED PERSONAL DATA,251.94,ADOPTION PLACEMENTS & INTER AGENCY,PAYMENTS TO CARERS,REDACTED,REDACTED
09.05.2018,CHILDREN'S SERVICES,REDACTED PERSONAL DATA,652.9,ADOPTION PLACEMENTS & INTER AGENCY,PAYMENTS TO CARERS,REDACTED,REDACTED
09.05.2018,CHILDREN'S SERVICES,REDACTED PERSONAL DATA,652.9,ADOPTION PLACEMENTS & INTER AGENCY,PAYMENTS TO CARERS,REDACTED,REDACTED
09.05.2018,CHILDREN'S SERVICES,REDACTED PERSONAL DATA,854.28,ADOPTION PLACEMENTS & INTER AGENCY,PAYMENTS TO CARERS,REDACTED,REDACTED
09.05.2018,CHILDREN'S SERVICES,REDACTED PERSONAL DATA,712.3,ADOPTION PLACEMENTS & INTER AGENCY,PAYMENTS TO CARERS,REDACTED,REDACTED
09.05.2018,CHILDREN'S SERVICES,REDACTED PERSONAL DATA,767.68,ADOPTION PLACEMENTS & INTER AGENCY,PAYMENTS TO CARERS,REDACTED,REDACTED
09.05.2018,CHILDREN'S SERVICES,REDACTED PERSONAL DATA,400.18,ADOPTION PLACEMENTS & INTER AGENCY,PAYMENTS TO CARERS,REDACTED,REDACTED
09.05.2018,CHILDREN'S SERVICES,REDACTED PERSONAL DATA,682.3,ADOPTION PLACEMENTS & INTER AGENCY,PAYMENTS TO CARERS,REDACTED,REDACTED
09.05.2018,CHILDREN'S SERVICES,REDACTED PERSONAL DATA,682.3,ADOPTION PLACEMENTS & INTER AGENCY,PAYMENTS TO CARERS,REDACTED,REDACTED
09.05.2018,CHILDREN'S SERVICES,REDACTED PERSONAL DATA,588.42,ADOPTION PLACEMENTS & INTER AGENCY,PAYMENTS TO CARERS,REDACTED,REDACTED
09.05.2018,CHILDREN'S SERVICES,REDACTED PERSONAL DATA,"1,053.20",ADOPTION PLACEMENTS & INTER AGENCY,PAYMENTS TO CARERS,REDACTED,REDACTED
09.05.2018,CHILDREN'S SERVICES,REDACTED PERSONAL DATA,261,ADOPTION PLACEMENTS & INTER AGENCY,PAYMENTS TO CARERS,REDACTED,REDACTED
09.05.2018,CHILDREN'S SERVICES,REDACTED PERSONAL DATA,635.34,ADOPTION PLACEMENTS & INTER AGENCY,PAYMENTS TO CARERS,REDACTED,REDACTED
09.05.2018,CHILDREN'S SERVICES,REDACTED PERSONAL DATA,408.78,ADOPTION PLACEMENTS & INTER AGENCY,PAYMENTS TO CARERS,REDACTED,REDACTED
09.05.2018,CHILDREN'S SERVICES,REDACTED PERSONAL DATA,635.34,ADOPTION PLACEMENTS & INTER AGENCY,PAYMENTS TO CARERS,REDACTED,REDACTED
09.05.2018,CHILDREN'S SERVICES,SAM CHAPLIN,300,ADOPTION REFORM GRANT (PART A),PROFESSIONAL FEES,5902302196,1000080487
09.05.2018,CHILDREN'S SERVICES,GREATER LONDON FOSTERING,"3,085.50",AGENCY FOSTERING,EXTERNAL AGENCIES AND BODIES,2102814551,1000029184
09.05.2018,CHILDREN'S SERVICES,GREATER LONDON FOSTERING,"3,116.40",AGENCY FOSTERING,EXTERNAL AGENCIES AND BODIES,2102814562,1000029184
09.05.2018,CHILDREN'S SERVICES,GREATER LONDON FOSTERING,"3,180.00",AGENCY FOSTERING,EXTERNAL AGENCIES AND BODIES,2102814557,1000029184
09.05.2018,CHILDREN'S SERVICES,GREATER LONDON FOSTERING,"3,180.00",AGENCY FOSTERING,EXTERNAL AGENCIES AND BODIES,2102814558,1000029184
09.05.2018,CHILDREN'S SERVICES,GREATER LONDON FOSTERING,"4,281.30",AGENCY FOSTERING,EXTERNAL AGENCIES AND BODIES,2102814580,1000029184
09.05.2018,CHILDREN'S SERVICES,GREATER LONDON FOSTERING,"4,495.50",AGENCY FOSTERING,EXTERNAL AGENCIES AND BODIES,2102814549,1000029184
09.05.2018,CHILDREN'S SERVICES,NATIONAL FOSTERING AGENCY,"-4,000.00",AGENCY FOSTERING,EXTERNAL AGENCIES AND BODIES,5902299165,1000038868
09.05.2018,CHILDREN'S SERVICES,NATIONAL FOSTERING AGENCY,"-2,318.62",AGENCY FOSTERING,EXTERNAL AGENCIES AND BODIES,5902299165,1000038868
09.05.2018,CHILDREN'S SERVICES,NATIONAL FOSTERING AGENCY,445.72,AGENCY FOSTERING,EXTERNAL AGENCIES AND BODIES,2102814559,1000038868
09.05.2018,CHILDREN'S SERVICES,NATIONAL FOSTERING AGENCY,655.2,AGENCY FOSTERING,EXTERNAL AGENCIES AND BODIES,5902299163,1000038868
09.05.2018,CHILDREN'S SERVICES,NATIONAL FOSTERING AGENCY,668.58,AGENCY FOSTERING,EXTERNAL AGENCIES AND BODIES,5902299164,1000038868
09.05.2018,CHILDREN'S SERVICES,NATIONAL FOSTERING AGENCY,"1,421.40",AGENCY FOSTERING,EXTERNAL AGENCIES AND BODIES,2102814576,1000038868
09.05.2018,CHILDREN'S SERVICES,NATIONAL FOSTERING AGENCY,"2,184.00",AGENCY FOSTERING,EXTERNAL AGENCIES AND BODIES,5902299161,1000038868
09.05.2018,CHILDREN'S SERVICES,NATIONAL FOSTERING AGENCY,"2,228.60",AGENCY FOSTERING,EXTERNAL AGENCIES AND BODIES,5902299158,1000038868
09.05.2018,CHILDREN'S SERVICES,NATIONAL FOSTERING AGENCY,"2,897.18",AGENCY FOSTERING,EXTERNAL AGENCIES AND BODIES,2102814552,1000038868
09.05.2018,CHILDREN'S SERVICES,NATIONAL FOSTERING AGENCY,"3,276.00",AGENCY FOSTERING,EXTERNAL AGENCIES AND BODIES,2102814567,1000038868
09.05.2018,CHILDREN'S SERVICES,NATIONAL FOSTERING AGENCY,"3,342.90",AGENCY FOSTERING,EXTERNAL AGENCIES AND BODIES,2102814571,1000038868
09.05.2018,CHILDREN'S SERVICES,NATIONAL FOSTERING AGENCY,"3,407.10",AGENCY FOSTERING,EXTERNAL AGENCIES AND BODIES,2102814561,1000038868
09.05.2018,CHILDREN'S SERVICES,NATIONAL FOSTERING AGENCY,"4,264.20",AGENCY FOSTERING,EXTERNAL AGENCIES AND BODIES,2102814550,1000038868
09.05.2018,CHILDREN'S SERVICES,NATIONAL FOSTERING AGENCY,"4,264.20",AGENCY FOSTERING,EXTERNAL AGENCIES AND BODIES,2102814553,1000038868
09.05.2018,CHILDREN'S SERVICES,NATIONAL FOSTERING AGENCY,"4,264.20",AGENCY FOSTERING,EXTERNAL AGENCIES AND BODIES,2102814554,1000038868
09.05.2018,CHILDREN'S SERVICES,NATIONAL FOSTERING AGENCY,"4,264.20",AGENCY FOSTERING,EXTERNAL AGENCIES AND BODIES,2102814556,1000038868
09.05.2018,CHILDREN'S SERVICES,NATIONAL FOSTERING AGENCY,"4,264.20",AGENCY FOSTERING,EXTERNAL AGENCIES AND BODIES,2102814565,1000038868
09.05.2018,CHILDREN'S SERVICES,NATIONAL FOSTERING AGENCY,"4,264.20",AGENCY FOSTERING,EXTERNAL AGENCIES AND BODIES,2102814566,1000038868
09.05.2018,CHILDREN'S SERVICES,NATIONAL FOSTERING AGENCY,"4,264.20",AGENCY FOSTERING,EXTERNAL AGENCIES AND BODIES,2102814573,1000038868
09.05.2018,CHILDREN'S SERVICES,NATIONAL FOSTERING AGENCY,"4,264.20",AGENCY FOSTERING,EXTERNAL AGENCIES AND BODIES,2102814574,1000038868
09.05.2018,CHILDREN'S SERVICES,NATIONAL FOSTERING AGENCY,"4,410.00",AGENCY FOSTERING,EXTERNAL AGENCIES AND BODIES,2102814579,1000038868
09.05.2018,CHILDREN'S SERVICES,NATIONAL FOSTERING AGENCY,"4,478.40",AGENCY FOSTERING,EXTERNAL AGENCIES AND BODIES,2102814575,1000038868
09.05.2018,CHILDREN'S SERVICES,NATIONAL FOSTERING AGENCY,"5,044.20",AGENCY FOSTERING,EXTERNAL AGENCIES AND BODIES,2102814570,1000038868
09.05.2018,CHILDREN'S SERVICES,CHILDREN OF COLOUR,"4,714.28",AGENCY FOSTERING,EXTERNAL AGENCIES AND BODIES,2102814568,1000044955
09.05.2018,CHILDREN'S SERVICES,HORIZON FOSTERING SERVICES LTD,315,AGENCY FOSTERING,EXTERNAL AGENCIES AND BODIES,2102814572,1000075679
09.05.2018,CHILDREN'S SERVICES,HORIZON FOSTERING SERVICES LTD,"2,992.50",AGENCY FOSTERING,EXTERNAL AGENCIES AND BODIES,2102814546,1000075679
09.05.2018,CHILDREN'S SERVICES,HORIZON FOSTERING SERVICES LTD,"2,992.50",AGENCY FOSTERING,EXTERNAL AGENCIES AND BODIES,2102814560,1000075679
09.05.2018,CHILDREN'S SERVICES,HORIZON FOSTERING SERVICES LTD,"3,150.00",AGENCY FOSTERING,EXTERNAL AGENCIES AND BODIES,2102814578,1000075679
09.05.2018,CHILDREN'S SERVICES,HORIZON FOSTERING SERVICES LTD,"3,257.10",AGENCY FOSTERING,EXTERNAL AGENCIES AND BODIES,2102814548,1000075679
09.05.2018,CHILDREN'S SERVICES,HORIZON FOSTERING SERVICES LTD,"3,257.10",AGENCY FOSTERING,EXTERNAL AGENCIES AND BODIES,2102814577,1000075679
09.05.2018,CHILDREN'S SERVICES,SHINING STARS FOSTERING AGENCY LTD,"3,214.20",AGENCY FOSTERING,EXTERNAL AGENCIES AND BODIES,2102814569,1000079431
09.05.2018,CHILDREN'S SERVICES,SHINING STARS FOSTERING AGENCY LTD,"3,428.40",AGENCY FOSTERING,EXTERNAL AGENCIES AND BODIES,2102814564,1000079431
09.05.2018,CHILDREN'S SERVICES,LIKA FAMILY FOSTERING,"3,400.04",AGENCY FOSTERING,EXTERNAL AGENCIES AND BODIES,2102814563,1000080099
09.05.2018,CHILDREN'S SERVICES,FOSTERING FOR YOU LTD,"3,332.31",AGENCY FOSTERING,EXTERNAL AGENCIES AND BODIES,2102814547,1000080380
09.05.2018,CHILDREN'S SERVICES,FOSTERING FOR YOU LTD,"3,332.31",AGENCY FOSTERING,EXTERNAL AGENCIES AND BODIES,2102814555,1000080380
09.05.2018,CHILDREN'S SERVICES,REDACTED PERSONAL DATA,285,CARE GRPS  1 TO 3,OTHER PAYMENTS FOR CLIENTS,REDACTED,REDACTED
09.05.2018,CHILDREN'S SERVICES,REVIVAL,880,CENTRAL SUPPORT,MEDICAL / HEALTH & SAFETY SERVICES,5902302053,1000027424
09.05.2018,CHILDREN'S SERVICES,REDACTED PERSONAL DATA,300,DISABILITY & HIV,ADDITIONAL PAYMENTS TO AGENCIES/CARERS,REDACTED,REDACTED
09.05.2018,CHILDREN'S SERVICES,REDACTED PERSONAL DATA,300,DISABILITY & HIV,ADDITIONAL PAYMENTS TO AGENCIES/CARERS,REDACTED,REDACTED
09.05.2018,CHILDREN'S SERVICES,REDACTED PERSONAL DATA,300,DISABILITY & HIV,ADDITIONAL PAYMENTS TO AGENCIES/CARERS,REDACTED,REDACTED
09.05.2018,CHILDREN'S SERVICES,REDACTED PERSONAL DATA,888.12,DISABILITY & HIV,PAYMENTS TO CARERS,REDACTED,REDACTED
09.05.2018,CHILDREN'S SERVICES,REDACTED PERSONAL DATA,798.12,DISABILITY & HIV,PAYMENTS TO CARERS,REDACTED,REDACTED
09.05.2018,CHILDREN'S SERVICES,REDACTED PERSONAL DATA,806.08,DISABILITY & HIV,PAYMENTS TO CARERS,REDACTED,REDACTED
09.05.2018,CHILDREN'S SERVICES,REDACTED PERSONAL DATA,806.08,DISABILITY & HIV,PAYMENTS TO CARERS,REDACTED,REDACTED
09.05.2018,CHILDREN'S SERVICES,REDACTED PERSONAL DATA,888.12,DISABILITY & HIV,PAYMENTS TO CARERS,REDACTED,REDACTED
09.05.2018,CHILDREN'S SERVICES,REDACTED PERSONAL DATA,665.34,DISABILITY & HIV,PAYMENTS TO CARERS,REDACTED,REDACTED
09.05.2018,CHILDREN'S SERVICES,REDACTED PERSONAL DATA,712.3,DISABILITY & HIV,PAYMENTS TO CARERS,REDACTED,REDACTED
09.05.2018,CHILDREN'S SERVICES,REDACTED PERSONAL DATA,712.3,DISABILITY & HIV,PAYMENTS TO CARERS,REDACTED,REDACTED
09.05.2018,CHILDREN'S SERVICES,REDACTED PERSONAL DATA,806.08,DISABILITY & HIV,PAYMENTS TO CARERS,REDACTED,REDACTED
09.05.2018,CHILDREN'S SERVICES,REDACTED PERSONAL DATA,806.08,DISABILITY & HIV,PAYMENTS TO CARERS,REDACTED,REDACTED
09.05.2018,CHILDREN'S SERVICES,REDACTED PERSONAL DATA,-267.86,DISABILITY & HIV,PAYMENTS TO CARERS,REDACTED,REDACTED
09.05.2018,CHILDREN'S SERVICES,REDACTED PERSONAL DATA,768.12,DISABILITY & HIV,PAYMENTS TO CARERS,REDACTED,REDACTED
09.05.2018,CHILDREN'S SERVICES,REDACTED PERSONAL DATA,798.12,DISABILITY & HIV,PAYMENTS TO CARERS,REDACTED,REDACTED
09.05.2018,CHILDREN'S SERVICES,REDACTED PERSONAL DATA,806.08,DISABILITY & HIV,PAYMENTS TO CARERS,REDACTED,REDACTED
09.05.2018,CHILDREN'S SERVICES,REDACTED PERSONAL DATA,806.08,DISABILITY & HIV,PAYMENTS TO CARERS,REDACTED,REDACTED
09.05.2018,CHILDREN'S SERVICES,REDACTED PERSONAL DATA,712.3,DISABILITY & HIV,PAYMENTS TO CARERS,REDACTED,REDACTED
09.05.2018,CHILDREN'S SERVICES,REDACTED PERSONAL DATA,806.08,DISABILITY & HIV,PAYMENTS TO CARERS,REDACTED,REDACTED
09.05.2018,CHILDREN'S SERVICES,REDACTED PERSONAL DATA,806.08,DISABILITY & HIV,PAYMENTS TO CARERS,REDACTED,REDACTED
09.05.2018,CHILDREN'S SERVICES,REDACTED PERSONAL DATA,806.08,DISABILITY & HIV,PAYMENTS TO CARERS,REDACTED,REDACTED
09.05.2018,CHILDREN'S SERVICES,REDACTED PERSONAL DATA,712.3,DISABILITY & HIV,PAYMENTS TO CARERS,REDACTED,REDACTED
09.05.2018,CHILDREN'S SERVICES,REDACTED PERSONAL DATA,806.08,DISABILITY & HIV,PAYMENTS TO CARERS,REDACTED,REDACTED
09.05.2018,CHILDREN'S SERVICES,REDACTED PERSONAL DATA,888.12,DISABILITY & HIV,PAYMENTS TO CARERS,REDACTED,REDACTED
09.05.2018,CHILDREN'S SERVICES,REDACTED PERSONAL DATA,888.12,DISABILITY & HIV,PAYMENTS TO CARERS,REDACTED,REDACTED
09.05.2018,CHILDREN'S SERVICES,REDACTED PERSONAL DATA,798.12,DISABILITY & HIV,PAYMENTS TO CARERS,REDACTED,REDACTED
09.05.2018,CHILDREN'S SERVICES,REDACTED PERSONAL DATA,806.08,DISABILITY & HIV,PAYMENTS TO CARERS,REDACTED,REDACTED
09.05.2018,CHILDREN'S SERVICES,REDACTED PERSONAL DATA,806.08,DISABILITY & HIV,PAYMENTS TO CARERS,REDACTED,REDACTED
09.05.2018,CHILDREN'S SERVICES,REDACTED PERSONAL DATA,768.12,DISABILITY & HIV,PAYMENTS TO CARERS,REDACTED,REDACTED
09.05.2018,CHILDREN'S SERVICES,REDACTED PERSONAL DATA,924.2,DISABILITY & HIV,PAYMENTS TO CARERS,REDACTED,REDACTED
09.05.2018,CHILDREN'S SERVICES,REDACTED PERSONAL DATA,682.3,DISABILITY & HIV,PAYMENTS TO CARERS,REDACTED,REDACTED
09.05.2018,CHILDREN'S SERVICES,REDACTED PERSONAL DATA,798.12,DISABILITY & HIV,PAYMENTS TO CARERS,REDACTED,REDACTED
09.05.2018,CHILDREN'S SERVICES,REDACTED PERSONAL DATA,712.3,DISABILITY & HIV,PAYMENTS TO CARERS,REDACTED,REDACTED
09.05.2018,CHILDREN'S SERVICES,REDACTED PERSONAL DATA,"1,633.46",DISABILITY & HIV,PAYMENTS TO CARERS,REDACTED,REDACTED
09.05.2018,CHILDREN'S SERVICES,REDACTED PERSONAL DATA,712.3,DISABILITY & HIV,PAYMENTS TO CARERS,REDACTED,REDACTED
09.05.2018,CHILDREN'S SERVICES,REDACTED PERSONAL DATA,806.08,DISABILITY & HIV,PAYMENTS TO CARERS,REDACTED,REDACTED
09.05.2018,CHILDREN'S SERVICES,REDACTED PERSONAL DATA,991.48,DISABILITY & HIV,PAYMENTS TO CARERS,REDACTED,REDACTED
09.05.2018,CHILDREN'S SERVICES,REDACTED PERSONAL DATA,798.12,DISABILITY & HIV,PAYMENTS TO CARERS,REDACTED,REDACTED
09.05.2018,CHILDREN'S SERVICES,REDACTED PERSONAL DATA,798.12,DISABILITY & HIV,PAYMENTS TO CARERS,REDACTED,REDACTED
09.05.2018,CHILDREN'S SERVICES,REDACTED PERSONAL DATA,888.12,DISABILITY & HIV,PAYMENTS TO CARERS,REDACTED,REDACTED
09.05.2018,CHILDREN'S SERVICES,REDACTED PERSONAL DATA,888.12,DISABILITY & HIV,PAYMENTS TO CARERS,REDACTED,REDACTED
09.05.2018,CHILDREN'S SERVICES,REDACTED PERSONAL DATA,798.12,DISABILITY & HIV,PAYMENTS TO CARERS,REDACTED,REDACTED
09.05.2018,CHILDREN'S SERVICES,REDACTED PERSONAL DATA,"1,381.85",DISABILITY & HIV,PAYMENTS TO CARERS,REDACTED,REDACTED
09.05.2018,CHILDREN'S SERVICES,REDACTED PERSONAL DATA,888.12,DISABILITY & HIV,PAYMENTS TO CARERS,REDACTED,REDACTED
09.05.2018,CHILDREN'S SERVICES,REDACTED PERSONAL DATA,-287.88,DISABILITY & HIV,PAYMENTS TO CARERS,REDACTED,REDACTED
09.05.2018,CHILDREN'S SERVICES,REDACTED PERSONAL DATA,806.08,DISABILITY & HIV,PAYMENTS TO CARERS,REDACTED,REDACTED
09.05.2018,CHILDREN'S SERVICES,REDACTED PERSONAL DATA,776.08,DISABILITY & HIV,PAYMENTS TO CARERS,REDACTED,REDACTED
09.05.2018,CHILDREN'S SERVICES,REDACTED PERSONAL DATA,806.08,DISABILITY & HIV,PAYMENTS TO CARERS,REDACTED,REDACTED
09.05.2018,CHILDREN'S SERVICES,REDACTED PERSONAL DATA,335.34,DISABILITY & HIV,PAYMENTS TO CARERS,REDACTED,REDACTED
09.05.2018,CHILDREN'S SERVICES,REDACTED PERSONAL DATA,798.12,DISABILITY & HIV,PAYMENTS TO CARERS,REDACTED,REDACTED
09.05.2018,CHILDREN'S SERVICES,REDACTED PERSONAL DATA,798.12,DISABILITY & HIV,PAYMENTS TO CARERS,REDACTED,REDACTED
09.05.2018,CHILDREN'S SERVICES,REDACTED PERSONAL DATA,712.3,DISABILITY & HIV,PAYMENTS TO CARERS,REDACTED,REDACTED
09.05.2018,CHILDREN'S SERVICES,REDACTED PERSONAL DATA,712.3,DISABILITY & HIV,PAYMENTS TO CARERS,REDACTED,REDACTED
09.05.2018,CHILDREN'S SERVICES,REDACTED PERSONAL DATA,798.12,DISABILITY & HIV,PAYMENTS TO CARERS,REDACTED,REDACTED
09.05.2018,CHILDREN'S SERVICES,REDACTED PERSONAL DATA,855.98,DISABILITY & HIV,PAYMENTS TO CARERS,REDACTED,REDACTED
09.05.2018,CHILDREN'S SERVICES,REDACTED PERSONAL DATA,712.3,DISABILITY & HIV,PAYMENTS TO CARERS,REDACTED,REDACTED
09.05.2018,CHILDREN'S SERVICES,REDACTED PERSONAL DATA,712.3,DISABILITY & HIV,PAYMENTS TO CARERS,REDACTED,REDACTED
09.05.2018,CHILDREN'S SERVICES,REDACTED PERSONAL DATA,806.08,DISABILITY & HIV,PAYMENTS TO CARERS,REDACTED,REDACTED
09.05.2018,CHILDREN'S SERVICES,REDACTED PERSONAL DATA,806.08,DISABILITY & HIV,PAYMENTS TO CARERS,REDACTED,REDACTED
09.05.2018,CHILDREN'S SERVICES,REDACTED PERSONAL DATA,806.08,DISABILITY & HIV,PAYMENTS TO CARERS,REDACTED,REDACTED
09.05.2018,CHILDREN'S SERVICES,REDACTED PERSONAL DATA,798.12,DISABILITY & HIV,PAYMENTS TO CARERS,REDACTED,REDACTED
09.05.2018,CHILDREN'S SERVICES,REDACTED PERSONAL DATA,798.12,DISABILITY & HIV,PAYMENTS TO CARERS,REDACTED,REDACTED
09.05.2018,CHILDREN'S SERVICES,REDACTED PERSONAL DATA,888.12,DISABILITY & HIV,PAYMENTS TO CARERS,REDACTED,REDACTED
09.05.2018,CHILDREN'S SERVICES,REDACTED PERSONAL DATA,806.08,DISABILITY & HIV,PAYMENTS TO CARERS,REDACTED,REDACTED
09.05.2018,CHILDREN'S SERVICES,REDACTED PERSONAL DATA,806.08,DISABILITY & HIV,PAYMENTS TO CARERS,REDACTED,REDACTED
09.05.2018,CHILDREN'S SERVICES,REDACTED PERSONAL DATA,-356.15,DISABILITY & HIV,PAYMENTS TO CARERS,REDACTED,REDACTED
09.05.2018,CHILDREN'S SERVICES,REDACTED PERSONAL DATA,712.3,DISABILITY & HIV,PAYMENTS TO CARERS,REDACTED,REDACTED
09.05.2018,CHILDREN'S SERVICES,REDACTED PERSONAL DATA,748.5,DISABILITY & HIV,PAYMENTS TO CARERS,REDACTED,REDACTED
09.05.2018,CHILDREN'S SERVICES,REDACTED PERSONAL DATA,806.08,DISABILITY & HIV,PAYMENTS TO CARERS,REDACTED,REDACTED
09.05.2018,CHILDREN'S SERVICES,REDACTED PERSONAL DATA,888.12,DISABILITY & HIV,PAYMENTS TO CARERS,REDACTED,REDACTED
09.05.2018,CHILDREN'S SERVICES,REDACTED PERSONAL DATA,712.3,DISABILITY & HIV,PAYMENTS TO CARERS,REDACTED,REDACTED
09.05.2018,CHILDREN'S SERVICES,REDACTED PERSONAL DATA,991.42,DISABILITY & HIV,PAYMENTS TO CARERS,REDACTED,REDACTED
09.05.2018,CHILDREN'S SERVICES,REDACTED PERSONAL DATA,"1,094.60",DISABILITY & HIV,PAYMENTS TO CARERS,REDACTED,REDACTED
09.05.2018,CHILDREN'S SERVICES,REDACTED PERSONAL DATA,665.34,DISABILITY & HIV,PAYMENTS TO CARERS,REDACTED,REDACTED
09.05.2018,CHILDREN'S SERVICES,REDACTED PERSONAL DATA,-305.27,DISABILITY & HIV,PAYMENTS TO CARERS,REDACTED,REDACTED
09.05.2018,CHILDREN'S SERVICES,REDACTED PERSONAL DATA,665.34,DISABILITY & HIV,PAYMENTS TO CARERS,REDACTED,REDACTED
09.05.2018,CHILDREN'S SERVICES,REDACTED PERSONAL DATA,665.34,DISABILITY & HIV,PAYMENTS TO CARERS,REDACTED,REDACTED
09.05.2018,CHILDREN'S SERVICES,REDACTED PERSONAL DATA,665.34,DISABILITY & HIV,PAYMENTS TO CARERS,REDACTED,REDACTED
09.05.2018,CHILDREN'S SERVICES,REDACTED PERSONAL DATA,806.08,DISABILITY & HIV,PAYMENTS TO CARERS,REDACTED,REDACTED
09.05.2018,CHILDREN'S SERVICES,REDACTED PERSONAL DATA,806.08,DISABILITY & HIV,PAYMENTS TO CARERS,REDACTED,REDACTED
09.05.2018,CHILDREN'S SERVICES,REDACTED PERSONAL DATA,798.12,DISABILITY & HIV,PAYMENTS TO CARERS,REDACTED,REDACTED
09.05.2018,CHILDREN'S SERVICES,REDACTED PERSONAL DATA,888.12,DISABILITY & HIV,PAYMENTS TO CARERS,REDACTED,REDACTED
09.05.2018,CHILDREN'S SERVICES,REDACTED PERSONAL DATA,888.12,DISABILITY & HIV,PAYMENTS TO CARERS,REDACTED,REDACTED
09.05.2018,CHILDREN'S SERVICES,REDACTED PERSONAL DATA,806.08,DISABILITY & HIV,PAYMENTS TO CARERS,REDACTED,REDACTED
09.05.2018,CHILDREN'S SERVICES,REDACTED PERSONAL DATA,806.08,DISABILITY & HIV,PAYMENTS TO CARERS,REDACTED,REDACTED
09.05.2018,CHILDREN'S SERVICES,REDACTED PERSONAL DATA,665.34,DISABILITY & HIV,PAYMENTS TO CARERS,REDACTED,REDACTED
09.05.2018,CHILDREN'S SERVICES,REDACTED PERSONAL DATA,712.3,DISABILITY & HIV,PAYMENTS TO CARERS,REDACTED,REDACTED
09.05.2018,CHILDREN'S SERVICES,REDACTED PERSONAL DATA,"1,094.60",DISABILITY & HIV,PAYMENTS TO CARERS,REDACTED,REDACTED
09.05.2018,CHILDREN'S SERVICES,REDACTED PERSONAL DATA,712.3,DISABILITY & HIV,PAYMENTS TO CARERS,REDACTED,REDACTED
09.05.2018,CHILDREN'S SERVICES,REDACTED PERSONAL DATA,806.08,DISABILITY & HIV,PAYMENTS TO CARERS,REDACTED,REDACTED
09.05.2018,CHILDREN'S SERVICES,REDACTED PERSONAL DATA,806.08,DISABILITY & HIV,PAYMENTS TO CARERS,REDACTED,REDACTED
09.05.2018,CHILDREN'S SERVICES,REDACTED PERSONAL DATA,798.12,DISABILITY & HIV,PAYMENTS TO CARERS,REDACTED,REDACTED
09.05.2018,CHILDREN'S SERVICES,REDACTED PERSONAL DATA,888.12,DISABILITY & HIV,PAYMENTS TO CARERS,REDACTED,REDACTED
09.05.2018,CHILDREN'S SERVICES,REDACTED PERSONAL DATA,682.3,DISABILITY & HIV,PAYMENTS TO CARERS,REDACTED,REDACTED
09.05.2018,CHILDREN'S SERVICES,REDACTED PERSONAL DATA,806.08,DISABILITY & HIV,PAYMENTS TO CARERS,REDACTED,REDACTED
09.05.2018,CHILDREN'S SERVICES,REDACTED PERSONAL DATA,806.08,DISABILITY & HIV,PAYMENTS TO CARERS,REDACTED,REDACTED
09.05.2018,CHILDREN'S SERVICES,REDACTED PERSONAL DATA,991.42,DISABILITY & HIV,PAYMENTS TO CARERS,REDACTED,REDACTED
09.05.2018,CHILDREN'S SERVICES,REDACTED PERSONAL DATA,991.42,DISABILITY & HIV,PAYMENTS TO CARERS,REDACTED,REDACTED
09.05.2018,CHILDREN'S SERVICES,REDACTED PERSONAL DATA,665.34,DISABILITY & HIV,PAYMENTS TO CARERS,REDACTED,REDACTED
09.05.2018,CHILDREN'S SERVICES,REDACTED PERSONAL DATA,712.3,DISABILITY & HIV,PAYMENTS TO CARERS,REDACTED,REDACTED
09.05.2018,CHILDREN'S SERVICES,REDACTED PERSONAL DATA,806.08,DISABILITY & HIV,PAYMENTS TO CARERS,REDACTED,REDACTED
09.05.2018,CHILDREN'S SERVICES,REDACTED PERSONAL DATA,665.34,DISABILITY & HIV,PAYMENTS TO CARERS,REDACTED,REDACTED
09.05.2018,CHILDREN'S SERVICES,REDACTED PERSONAL DATA,806.08,DISABILITY & HIV,PAYMENTS TO CARERS,REDACTED,REDACTED
09.05.2018,CHILDREN'S SERVICES,REDACTED PERSONAL DATA,798.12,DISABILITY & HIV,PAYMENTS TO CARERS,REDACTED,REDACTED
09.05.2018,CHILDREN'S SERVICES,REDACTED PERSONAL DATA,712.3,DISABILITY & HIV,PAYMENTS TO CARERS,REDACTED,REDACTED
09.05.2018,CHILDREN'S SERVICES,REDACTED PERSONAL DATA,806.08,DISABILITY & HIV,PAYMENTS TO CARERS,REDACTED,REDACTED
09.05.2018,CHILDREN'S SERVICES,REDACTED PERSONAL DATA,712.3,DISABILITY & HIV,PAYMENTS TO CARERS,REDACTED,REDACTED
09.05.2018,CHILDREN'S SERVICES,REDACTED PERSONAL DATA,712.3,DISABILITY & HIV,PAYMENTS TO CARERS,REDACTED,REDACTED
09.05.2018,CHILDREN'S SERVICES,REDACTED PERSONAL DATA,806.08,DISABILITY & HIV,PAYMENTS TO CARERS,REDACTED,REDACTED
09.05.2018,CHILDREN'S SERVICES,REDACTED PERSONAL DATA,798.12,DISABILITY & HIV,PAYMENTS TO CARERS,REDACTED,REDACTED
09.05.2018,CHILDREN'S SERVICES,REDACTED PERSONAL DATA,888.12,DISABILITY & HIV,PAYMENTS TO CARERS,REDACTED,REDACTED
09.05.2018,CHILDREN'S SERVICES,REDACTED PERSONAL DATA,806.08,DISABILITY & HIV,PAYMENTS TO CARERS,REDACTED,REDACTED
09.05.2018,CHILDREN'S SERVICES,REDACTED PERSONAL DATA,854.28,DISABILITY & HIV,PAYMENTS TO CARERS,REDACTED,REDACTED
09.05.2018,CHILDREN'S SERVICES,REDACTED PERSONAL DATA,806.08,DISABILITY & HIV,PAYMENTS TO CARERS,REDACTED,REDACTED
09.05.2018,CHILDREN'S SERVICES,REDACTED PERSONAL DATA,806.08,DISABILITY & HIV,PAYMENTS TO CARERS,REDACTED,REDACTED
09.05.2018,CHILDREN'S SERVICES,REDACTED PERSONAL DATA,806.08,DISABILITY & HIV,PAYMENTS TO CARERS,REDACTED,REDACTED
09.05.2018,CHILDREN'S SERVICES,REDACTED PERSONAL DATA,798.12,DISABILITY & HIV,PAYMENTS TO CARERS,REDACTED,REDACTED
09.05.2018,CHILDREN'S SERVICES,REDACTED PERSONAL DATA,888.12,DISABILITY & HIV,PAYMENTS TO CARERS,REDACTED,REDACTED
09.05.2018,CHILDREN'S SERVICES,REDACTED PERSONAL DATA,888.12,DISABILITY & HIV,PAYMENTS TO CARERS,REDACTED,REDACTED
09.05.2018,CHILDREN'S SERVICES,REDACTED PERSONAL DATA,-515.6,DISABILITY & HIV,PAYMENTS TO CARERS,REDACTED,REDACTED
09.05.2018,CHILDREN'S SERVICES,REDACTED PERSONAL DATA,"1,170.21",DISABILITY & HIV,PAYMENTS TO CARERS,REDACTED,REDACTED
09.05.2018,CHILDREN'S SERVICES,REDACTED PERSONAL DATA,712.3,DISABILITY & HIV,PAYMENTS TO CARERS,REDACTED,REDACTED
09.05.2018,CHILDREN'S SERVICES,REDACTED PERSONAL DATA,806.08,DISABILITY & HIV,PAYMENTS TO CARERS,REDACTED,REDACTED
09.05.2018,CHILDREN'S SERVICES,REDACTED PERSONAL DATA,682.3,DISABILITY & HIV,PAYMENTS TO CARERS,REDACTED,REDACTED
09.05.2018,CHILDREN'S SERVICES,REDACTED PERSONAL DATA,776.08,DISABILITY & HIV,PAYMENTS TO CARERS,REDACTED,REDACTED
09.05.2018,CHILDREN'S SERVICES,REDACTED PERSONAL DATA,806.08,DISABILITY & HIV,PAYMENTS TO CARERS,REDACTED,REDACTED
09.05.2018,CHILDREN'S SERVICES,REDACTED PERSONAL DATA,806.08,DISABILITY & HIV,PAYMENTS TO CARERS,REDACTED,REDACTED
09.05.2018,CHILDREN'S SERVICES,REDACTED PERSONAL DATA,806.08,DISABILITY & HIV,PAYMENTS TO CARERS,REDACTED,REDACTED
09.05.2018,CHILDREN'S SERVICES,REDACTED PERSONAL DATA,712.3,DISABILITY & HIV,PAYMENTS TO CARERS,REDACTED,REDACTED
09.05.2018,CHILDREN'S SERVICES,REDACTED PERSONAL DATA,712.3,DISABILITY & HIV,PAYMENTS TO CARERS,REDACTED,REDACTED
09.05.2018,CHILDREN'S SERVICES,REDACTED PERSONAL DATA,798.12,DISABILITY & HIV,PAYMENTS TO CARERS,REDACTED,REDACTED
09.05.2018,CHILDREN'S SERVICES,REDACTED PERSONAL DATA,742.3,DISABILITY & HIV,PAYMENTS TO CARERS,REDACTED,REDACTED
09.05.2018,CHILDREN'S SERVICES,REDACTED PERSONAL DATA,682.3,DISABILITY & HIV,PAYMENTS TO CARERS,REDACTED,REDACTED
09.05.2018,CHILDREN'S SERVICES,REDACTED PERSONAL DATA,776.08,DISABILITY & HIV,PAYMENTS TO CARERS,REDACTED,REDACTED
09.05.2018,CHILDREN'S SERVICES,REDACTED PERSONAL DATA,798.12,DISABILITY & HIV,PAYMENTS TO CARERS,REDACTED,REDACTED
09.05.2018,CHILDREN'S SERVICES,REDACTED PERSONAL DATA,"1,379.08",DISABILITY & HIV,PAYMENTS TO CARERS,REDACTED,REDACTED
09.05.2018,CHILDREN'S SERVICES,REDACTED PERSONAL DATA,806.08,DISABILITY & HIV,PAYMENTS TO CARERS,REDACTED,REDACTED
09.05.2018,CHILDREN'S SERVICES,REDACTED PERSONAL DATA,806.08,DISABILITY & HIV,PAYMENTS TO CARERS,REDACTED,REDACTED
09.05.2018,CHILDREN'S SERVICES,REDACTED PERSONAL DATA,798.12,DISABILITY & HIV,PAYMENTS TO CARERS,REDACTED,REDACTED
09.05.2018,CHILDREN'S SERVICES,REDACTED PERSONAL DATA,665.34,DISABILITY & HIV,PAYMENTS TO CARERS,REDACTED,REDACTED
09.05.2018,CHILDREN'S SERVICES,REDACTED PERSONAL DATA,712.3,DISABILITY & HIV,PAYMENTS TO CARERS,REDACTED,REDACTED
09.05.2018,CHILDREN'S SERVICES,REDACTED PERSONAL DATA,755.99,DISABILITY & HIV,PAYMENTS TO CARERS,REDACTED,REDACTED
09.05.2018,CHILDREN'S SERVICES,REDACTED PERSONAL DATA,712.3,DISABILITY & HIV,PAYMENTS TO CARERS,REDACTED,REDACTED
09.05.2018,CHILDREN'S SERVICES,REDACTED PERSONAL DATA,712.3,DISABILITY & HIV,PAYMENTS TO CARERS,REDACTED,REDACTED
09.05.2018,CHILDREN'S SERVICES,REDACTED PERSONAL DATA,806.08,DISABILITY & HIV,PAYMENTS TO CARERS,REDACTED,REDACTED
09.05.2018,CHILDREN'S SERVICES,REDACTED PERSONAL DATA,806.08,DISABILITY & HIV,PAYMENTS TO CARERS,REDACTED,REDACTED
09.05.2018,CHILDREN'S SERVICES,REDACTED PERSONAL DATA,635.34,DISABILITY & HIV,PAYMENTS TO CARERS,REDACTED,REDACTED
09.05.2018,CHILDREN'S SERVICES,REDACTED PERSONAL DATA,682.3,DISABILITY & HIV,PAYMENTS TO CARERS,REDACTED,REDACTED
09.05.2018,CHILDREN'S SERVICES,REDACTED PERSONAL DATA,682.3,DISABILITY & HIV,PAYMENTS TO CARERS,REDACTED,REDACTED
09.05.2018,CHILDREN'S SERVICES,REDACTED PERSONAL DATA,768.12,DISABILITY & HIV,PAYMENTS TO CARERS,REDACTED,REDACTED
09.05.2018,CHILDREN'S SERVICES,REDACTED PERSONAL DATA,858.12,DISABILITY & HIV,PAYMENTS TO CARERS,REDACTED,REDACTED
09.05.2018,CHILDREN'S SERVICES,REDACTED PERSONAL DATA,330,DISABILITY & HIV,PAYMENTS TO CARERS,REDACTED,REDACTED
09.05.2018,CHILDREN'S SERVICES,REDACTED PERSONAL DATA,768.12,DISABILITY & HIV,PAYMENTS TO CARERS,REDACTED,REDACTED
09.05.2018,CHILDREN'S SERVICES,REDACTED PERSONAL DATA,776.08,DISABILITY & HIV,PAYMENTS TO CARERS,REDACTED,REDACTED
09.05.2018,CHILDREN'S SERVICES,REDACTED PERSONAL DATA,888.12,DISABILITY & HIV,PAYMENTS TO CARERS,REDACTED,REDACTED
09.05.2018,CHILDREN'S SERVICES,REDACTED PERSONAL DATA,682.3,DISABILITY & HIV,PAYMENTS TO CARERS,REDACTED,REDACTED
09.05.2018,CHILDREN'S SERVICES,REDACTED PERSONAL DATA,682.3,DISABILITY & HIV,PAYMENTS TO CARERS,REDACTED,REDACTED
09.05.2018,CHILDREN'S SERVICES,REDACTED PERSONAL DATA,682.3,DISABILITY & HIV,PAYMENTS TO CARERS,REDACTED,REDACTED
09.05.2018,CHILDREN'S SERVICES,REDACTED PERSONAL DATA,888.12,DISABILITY & HIV,PAYMENTS TO CARERS,REDACTED,REDACTED
09.05.2018,CHILDREN'S SERVICES,REDACTED PERSONAL DATA,798.12,DISABILITY & HIV,PAYMENTS TO CARERS,REDACTED,REDACTED
09.05.2018,CHILDREN'S SERVICES,REDACTED PERSONAL DATA,888.12,DISABILITY & HIV,PAYMENTS TO CARERS,REDACTED,REDACTED
09.05.2018,CHILDREN'S SERVICES,REDACTED PERSONAL DATA,888.12,DISABILITY & HIV,PAYMENTS TO CARERS,REDACTED,REDACTED
09.05.2018,CHILDREN'S SERVICES,REDACTED PERSONAL DATA,768.12,DISABILITY & HIV,PAYMENTS TO CARERS,REDACTED,REDACTED
09.05.2018,CHILDREN'S SERVICES,REDACTED PERSONAL DATA,858.12,DISABILITY & HIV,PAYMENTS TO CARERS,REDACTED,REDACTED
09.05.2018,CHILDREN'S SERVICES,REDACTED PERSONAL DATA,776.08,DISABILITY & HIV,PAYMENTS TO CARERS,REDACTED,REDACTED
09.05.2018,CHILDREN'S SERVICES,REDACTED PERSONAL DATA,776.08,DISABILITY & HIV,PAYMENTS TO CARERS,REDACTED,REDACTED
09.05.2018,CHILDREN'S SERVICES,REDACTED PERSONAL DATA,776.08,DISABILITY & HIV,PAYMENTS TO CARERS,REDACTED,REDACTED
09.05.2018,CHILDREN'S SERVICES,REDACTED PERSONAL DATA,682.3,DISABILITY & HIV,PAYMENTS TO CARERS,REDACTED,REDACTED
09.05.2018,CHILDREN'S SERVICES,REDACTED PERSONAL DATA,768.12,DISABILITY & HIV,PAYMENTS TO CARERS,REDACTED,REDACTED
09.05.2018,CHILDREN'S SERVICES,REDACTED PERSONAL DATA,806.08,DISABILITY & HIV,PAYMENTS TO CARERS,REDACTED,REDACTED
09.05.2018,CHILDREN'S SERVICES,REDACTED PERSONAL DATA,776.08,DISABILITY & HIV,PAYMENTS TO CARERS,REDACTED,REDACTED
09.05.2018,CHILDREN'S SERVICES,REDACTED PERSONAL DATA,798.12,DISABILITY & HIV,PAYMENTS TO CARERS,REDACTED,REDACTED
09.05.2018,CHILDREN'S SERVICES,REDACTED PERSONAL DATA,682.3,DISABILITY & HIV,PAYMENTS TO CARERS,REDACTED,REDACTED
09.05.2018,CHILDREN'S SERVICES,REDACTED PERSONAL DATA,-682.3,DISABILITY & HIV,PAYMENTS TO CARERS,REDACTED,REDACTED
09.05.2018,CHILDREN'S SERVICES,REDACTED PERSONAL DATA,"1,462.07",DISABILITY & HIV,PAYMENTS TO CARERS,REDACTED,REDACTED
09.05.2018,CHILDREN'S SERVICES,REDACTED PERSONAL DATA,"1,462.07",DISABILITY & HIV,PAYMENTS TO CARERS,REDACTED,REDACTED
09.05.2018,CHILDREN'S SERVICES,REDACTED PERSONAL DATA,635.34,DISABILITY & HIV,PAYMENTS TO CARERS,REDACTED,REDACTED
09.05.2018,CHILDREN'S SERVICES,REDACTED PERSONAL DATA,776.08,DISABILITY & HIV,PAYMENTS TO CARERS,REDACTED,REDACTED
09.05.2018,CHILDREN'S SERVICES,REDACTED PERSONAL DATA,476.08,DISABILITY & HIV,PAYMENTS TO CARERS,REDACTED,REDACTED
09.05.2018,CHILDREN'S SERVICES,REDACTED PERSONAL DATA,614,DISABILITY & HIV,PAYMENTS TO CARERS,REDACTED,REDACTED
09.05.2018,CHILDREN'S SERVICES,REDACTED PERSONAL DATA,"1,169.65",DISABILITY & HIV,PAYMENTS TO CARERS,REDACTED,REDACTED
09.05.2018,CHILDREN'S SERVICES,REDACTED PERSONAL DATA,335.34,FRIENDS & FAMILY FOSTERING,PAYMENTS TO CARERS,REDACTED,REDACTED
09.05.2018,CHILDREN'S SERVICES,REDACTED PERSONAL DATA,382.3,FRIENDS & FAMILY FOSTERING,PAYMENTS TO CARERS,REDACTED,REDACTED
09.05.2018,CHILDREN'S SERVICES,REDACTED PERSONAL DATA,476.08,FRIENDS & FAMILY FOSTERING,PAYMENTS TO CARERS,REDACTED,REDACTED
09.05.2018,CHILDREN'S SERVICES,REDACTED PERSONAL DATA,776.08,FRIENDS & FAMILY FOSTERING,PAYMENTS TO CARERS,REDACTED,REDACTED
09.05.2018,CHILDREN'S SERVICES,REDACTED PERSONAL DATA,767.66,FRIENDS & FAMILY FOSTERING,PAYMENTS TO CARERS,REDACTED,REDACTED
09.05.2018,CHILDREN'S SERVICES,REDACTED PERSONAL DATA,682.3,FRIENDS & FAMILY FOSTERING,PAYMENTS TO CARERS,REDACTED,REDACTED
09.05.2018,CHILDREN'S SERVICES,REDACTED PERSONAL DATA,682.3,FRIENDS & FAMILY FOSTERING,PAYMENTS TO CARERS,REDACTED,REDACTED
09.05.2018,CHILDREN'S SERVICES,REDACTED PERSONAL DATA,776.08,FRIENDS & FAMILY FOSTERING,PAYMENTS TO CARERS,REDACTED,REDACTED
09.05.2018,CHILDREN'S SERVICES,REDACTED PERSONAL DATA,329.42,FRIENDS & FAMILY FOSTERING,PAYMENTS TO CARERS,REDACTED,REDACTED
09.05.2018,CHILDREN'S SERVICES,REDACTED PERSONAL DATA,682.3,FRIENDS & FAMILY FOSTERING,PAYMENTS TO CARERS,REDACTED,REDACTED
09.05.2018,CHILDREN'S SERVICES,REDACTED PERSONAL DATA,776.08,FRIENDS & FAMILY FOSTERING,PAYMENTS TO CARERS,REDACTED,REDACTED
09.05.2018,CHILDREN'S SERVICES,REDACTED PERSONAL DATA,682.3,FRIENDS & FAMILY FOSTERING,PAYMENTS TO CARERS,REDACTED,REDACTED
09.05.2018,CHILDREN'S SERVICES,REDACTED PERSONAL DATA,682.3,FRIENDS & FAMILY FOSTERING,PAYMENTS TO CARERS,REDACTED,REDACTED
09.05.2018,CHILDREN'S SERVICES,REDACTED PERSONAL DATA,682.3,FRIENDS & FAMILY FOSTERING,PAYMENTS TO CARERS,REDACTED,REDACTED
09.05.2018,CHILDREN'S SERVICES,REDACTED PERSONAL DATA,682.3,FRIENDS & FAMILY FOSTERING,PAYMENTS TO CARERS,REDACTED,REDACTED
09.05.2018,CHILDREN'S SERVICES,REDACTED PERSONAL DATA,776.08,FRIENDS & FAMILY FOSTERING,PAYMENTS TO CARERS,REDACTED,REDACTED
09.05.2018,CHILDREN'S SERVICES,REDACTED PERSONAL DATA,776.08,FRIENDS & FAMILY FOSTERING,PAYMENTS TO CARERS,REDACTED,REDACTED
09.05.2018,CHILDREN'S SERVICES,REDACTED PERSONAL DATA,382.3,FRIENDS & FAMILY FOSTERING,PAYMENTS TO CARERS,REDACTED,REDACTED
09.05.2018,CHILDREN'S SERVICES,REDACTED PERSONAL DATA,682.3,FRIENDS & FAMILY FOSTERING,PAYMENTS TO CARERS,REDACTED,REDACTED
09.05.2018,CHILDREN'S SERVICES,REDACTED PERSONAL DATA,682.3,FRIENDS & FAMILY FOSTERING,PAYMENTS TO CARERS,REDACTED,REDACTED
09.05.2018,CHILDREN'S SERVICES,REDACTED PERSONAL DATA,476.08,FRIENDS & FAMILY FOSTERING,PAYMENTS TO CARERS,REDACTED,REDACTED
09.05.2018,CHILDREN'S SERVICES,REDACTED PERSONAL DATA,578.12,FRIENDS & FAMILY FOSTERING,PAYMENTS TO CARERS,REDACTED,REDACTED
09.05.2018,CHILDREN'S SERVICES,REDACTED PERSONAL DATA,335.34,FRIENDS & FAMILY FOSTERING,PAYMENTS TO CARERS,REDACTED,REDACTED
09.05.2018,CHILDREN'S SERVICES,REDACTED PERSONAL DATA,334.34,FRIENDS & FAMILY FOSTERING,PAYMENTS TO CARERS,REDACTED,REDACTED
09.05.2018,CHILDREN'S SERVICES,REDACTED PERSONAL DATA,335.34,FRIENDS & FAMILY FOSTERING,PAYMENTS TO CARERS,REDACTED,REDACTED
09.05.2018,CHILDREN'S SERVICES,REDACTED PERSONAL DATA,335.34,FRIENDS & FAMILY FOSTERING,PAYMENTS TO CARERS,REDACTED,REDACTED
09.05.2018,CHILDREN'S SERVICES,REDACTED PERSONAL DATA,335.34,FRIENDS & FAMILY FOSTERING,PAYMENTS TO CARERS,REDACTED,REDACTED
09.05.2018,CHILDREN'S SERVICES,REDACTED PERSONAL DATA,335.34,FRIENDS & FAMILY FOSTERING,PAYMENTS TO CARERS,REDACTED,REDACTED
09.05.2018,CHILDREN'S SERVICES,REDACTED PERSONAL DATA,476.08,FRIENDS & FAMILY FOSTERING,PAYMENTS TO CARERS,REDACTED,REDACTED
09.05.2018,CHILDREN'S SERVICES,REDACTED PERSONAL DATA,682.3,FRIENDS & FAMILY FOSTERING,PAYMENTS TO CARERS,REDACTED,REDACTED
09.05.2018,CHILDREN'S SERVICES,REDACTED PERSONAL DATA,682.3,FRIENDS & FAMILY FOSTERING,PAYMENTS TO CARERS,REDACTED,REDACTED
09.05.2018,CHILDREN'S SERVICES,REDACTED PERSONAL DATA,682.3,FRIENDS & FAMILY FOSTERING,PAYMENTS TO CARERS,REDACTED,REDACTED
09.05.2018,CHILDREN'S SERVICES,REDACTED PERSONAL DATA,682.3,FRIENDS & FAMILY FOSTERING,PAYMENTS TO CARERS,REDACTED,REDACTED
09.05.2018,CHILDREN'S SERVICES,THE CAMDEN SOCIETY (CATERING),847,GENERAL CPD,REFRESHMENTS FOR MEETINGS,5902302025,1000075365
09.05.2018,CHILDREN'S SERVICES,CANADA WATER CULTURE SPACE,"1,049.30",GENERAL CPD,REFRESHMENTS FOR MEETINGS,5902302026,1000075539
09.05.2018,CHILDREN'S SERVICES,HEALTHCARE & TRANSPORT SERVICES,"51,508.37",HOME 2 SCHOOL TRANSPORT,CAB FARES,5902302128,1000042743
09.05.2018,CHILDREN'S SERVICES,REDACTED PERSONAL DATA,522,HOME 2 SCHOOL TRANSPORT,OTHER PAYMENTS FOR CLIENTS,REDACTED,REDACTED
09.05.2018,CHILDREN'S SERVICES,ALBION PRIMARY SCHOOL,"3,179.00",IN YEAR STATEMENTS & REORGS,HIGH NEEDS - TOP UP FUNDING,5902302081,5001000000
09.05.2018,CHILDREN'S SERVICES,BELLENDEN PRIMARY SCHOOL,"7,165.00",IN YEAR STATEMENTS & REORGS,SCHOOLS CAPITATION,5902302082,5001000007
09.05.2018,CHILDREN'S SERVICES,BESSEMER GRANGE PRIMARY SCHOOL,"5,773.00",IN YEAR STATEMENTS & REORGS,SCHOOLS CAPITATION,5902302083,5001000009
09.05.2018,CHILDREN'S SERVICES,BOUCHER C OF E PRIMARY SCHOOL,"3,179.00",IN YEAR STATEMENTS & REORGS,SCHOOLS CAPITATION,5902302084,5001000011
09.05.2018,CHILDREN'S SERVICES,CAMELOT PRIMARY SCHOOL,"5,572.00",IN YEAR STATEMENTS & REORGS,SCHOOLS CAPITATION,5902302085,5001000014
09.05.2018,CHILDREN'S SERVICES,CHARLES DICKENS PRIMARY SCHOOL,"8,106.00",IN YEAR STATEMENTS & REORGS,SCHOOLS CAPITATION,5902302086,5001000015
09.05.2018,CHILDREN'S SERVICES,CHARLOTTE  SHARMAN PRIMARY SCHOOL,"7,691.00",IN YEAR STATEMENTS & REORGS,SCHOOLS CAPITATION,5902302087,5001000016
09.05.2018,CHILDREN'S SERVICES,ST JOSEPHS RC JUNIOR  SCHOOL,"3,845.00",IN YEAR STATEMENTS & REORGS,SCHOOLS CAPITATION,5902302088,5001000017
09.05.2018,CHILDREN'S SERVICES,ST JUDES CHURCH OF ENGLAND PRIMARY,"3,380.00",IN YEAR STATEMENTS & REORGS,SCHOOLS CAPITATION,5902302089,5001000019
09.05.2018,CHILDREN'S SERVICES,COBOURG PRIMARY SCHOOL,"4,512.00",IN YEAR STATEMENTS & REORGS,SCHOOLS CAPITATION,5902302090,5001000021
09.05.2018,CHILDREN'S SERVICES,COMBER GROVE PRIMARY SCHOOL,"2,119.00",IN YEAR STATEMENTS & REORGS,SCHOOLS CAPITATION,5902302091,5001000022
09.05.2018,CHILDREN'S SERVICES,CRAMPTON PRIMARY SCHOOL,"4,439.00",IN YEAR STATEMENTS & REORGS,SCHOOLS CAPITATION,5902302092,5001000023
09.05.2018,CHILDREN'S SERVICES,CRAWFORD PRIMARY SCHOOL,"7,033.00",IN YEAR STATEMENTS & REORGS,SCHOOLS CAPITATION,5902302093,5001000024
09.05.2018,CHILDREN'S SERVICES,DOG KENNEL HILL PRIMARY SCHOOL,"7,024.00",IN YEAR STATEMENTS & REORGS,SCHOOLS CAPITATION,5902302094,5001000025
09.05.2018,CHILDREN'S SERVICES,DULWICH VILLAGE CE INFANTS SCHOOL,"5,713.00",IN YEAR STATEMENTS & REORGS,SCHOOLS CAPITATION,5902302095,5001000027
09.05.2018,CHILDREN'S SERVICES,GOODRICH PRIMARY SCHOOL,"7,298.00",IN YEAR STATEMENTS & REORGS,SCHOOLS CAPITATION,5902302096,5001000028
09.05.2018,CHILDREN'S SERVICES,GRANGE PRIMARY SCHOOL,"5,499.00",IN YEAR STATEMENTS & REORGS,SCHOOLS CAPITATION,5902302097,5001000029
09.05.2018,CHILDREN'S SERVICES,ENGLISH MARTYRS RC PRIMARY SCHOOL,"3,380.00",IN YEAR STATEMENTS & REORGS,SCHOOLS CAPITATION,5902302098,5001000030
09.05.2018,CHILDREN'S SERVICES,FRIARS PRIMARY SCHOOL,"5,640.00",IN YEAR STATEMENTS & REORGS,SCHOOLS CAPITATION,5902302099,5001000033
09.05.2018,CHILDREN'S SERVICES,HOLLYDALE PRIMARY SCHOOL,"3,512.00",IN YEAR STATEMENTS & REORGS,SCHOOLS CAPITATION,5902302100,5001000036
09.05.2018,CHILDREN'S SERVICES,ILDERTON PRIMARY SCHOOL,"4,580.00",IN YEAR STATEMENTS & REORGS,SCHOOLS CAPITATION,5902302101,5001000037
09.05.2018,CHILDREN'S SERVICES,IVYDALE PRIMARY SCHOOL,"4,905.00",IN YEAR STATEMENTS & REORGS,SCHOOLS CAPITATION,5902302102,5001000038
09.05.2018,CHILDREN'S SERVICES,KEYWORTH PRIMARY SCHOOL,"5,499.00",IN YEAR STATEMENTS & REORGS,SCHOOLS CAPITATION,5902302103,5001000041
09.05.2018,CHILDREN'S SERVICES,DULWICH WOOD PRIMARY SCHOOL,"4,238.00",IN YEAR STATEMENTS & REORGS,SCHOOLS CAPITATION,5902302104,5001000042
09.05.2018,CHILDREN'S SERVICES,MICHAEL FARADAY PRIMARY SCHOOL,"3,786.00",IN YEAR STATEMENTS & REORGS,SCHOOLS CAPITATION,5902302105,5001000048
09.05.2018,CHILDREN'S SERVICES,NOTRE DAME RC GIRLS SCHOOL,"6,358.00",IN YEAR STATEMENTS & REORGS,SCHOOLS CAPITATION,5902302106,5001000050
09.05.2018,CHILDREN'S SERVICES,OLIVER GOLDSMITH PRIMARY SCHOOL,"6,358.00",IN YEAR STATEMENTS & REORGS,SCHOOLS CAPITATION,5902302107,5001000051
09.05.2018,CHILDREN'S SERVICES,PETER HILLS CE SCHOOL,667,IN YEAR STATEMENTS & REORGS,SCHOOLS CAPITATION,5902302108,5001000053
09.05.2018,CHILDREN'S SERVICES,PILGRIM'S WAY PRIMARY SCHOOL,"6,129.00",IN YEAR STATEMENTS & REORGS,SCHOOLS CAPITATION,5902302109,5001000054
09.05.2018,CHILDREN'S SERVICES,ROBERT BROWNING PRIMARY SCHOOL,"4,238.00",IN YEAR STATEMENTS & REORGS,SCHOOLS CAPITATION,5902302110,5001000057
09.05.2018,CHILDREN'S SERVICES,ROTHERHITHE PRIMARY SCHOOL,"6,179.00",IN YEAR STATEMENTS & REORGS,SCHOOLS CAPITATION,5902302111,5001000058
09.05.2018,CHILDREN'S SERVICES,SOUTHWARK PARK PRIMARY SCHOOL,"7,567.00",IN YEAR STATEMENTS & REORGS,SCHOOLS CAPITATION,5902302112,5001000062
09.05.2018,CHILDREN'S SERVICES,ST ANTHONYS RC SCHOOL,"2,119.00",IN YEAR STATEMENTS & REORGS,SCHOOLS CAPITATION,5902302113,5001000064
09.05.2018,CHILDREN'S SERVICES,ST FRANCESCA CABRINI PRIMARY SCHOOL,"3,179.00",IN YEAR STATEMENTS & REORGS,SCHOOLS CAPITATION,5902302114,5001000065
09.05.2018,CHILDREN'S SERVICES,ST GEORGES CE SCHOOL,"4,640.00",IN YEAR STATEMENTS & REORGS,SCHOOLS CAPITATION,5902302115,5001000069
09.05.2018,CHILDREN'S SERVICES,ST JAMES THE GREAT RC SCHOOL,"8,084.00",IN YEAR STATEMENTS & REORGS,SCHOOLS CAPITATION,5902302116,5001000071
09.05.2018,CHILDREN'S SERVICES,ST JOHNS WALWORTH CE SCHOOL,"3,393.00",IN YEAR STATEMENTS & REORGS,SCHOOLS CAPITATION,5902302117,5001000072
09.05.2018,CHILDREN'S SERVICES,ST JOHNS RC PRIMARY SCHOOL,"2,119.00",IN YEAR STATEMENTS & REORGS,SCHOOLS CAPITATION,5902302118,5001000075
09.05.2018,CHILDREN'S SERVICES,ST JOSEPHS CATHOLIC SCHOOL,"2,119.00",IN YEAR STATEMENTS & REORGS,SCHOOLS CAPITATION,5902302119,5001000076
09.05.2018,CHILDREN'S SERVICES,ST JOSEPHS RC PRIMARY SCHOOL,"4,905.00",IN YEAR STATEMENTS & REORGS,SCHOOLS CAPITATION,5902302120,5001000077
09.05.2018,CHILDREN'S SERVICES,ST MARY MAGDALENE CE SCHOOL,"5,499.00",IN YEAR STATEMENTS & REORGS,SCHOOLS CAPITATION,5902302121,5001000080
09.05.2018,CHILDREN'S SERVICES,ST PAULS CE SCHOOL,"5,773.00",IN YEAR STATEMENTS & REORGS,SCHOOLS CAPITATION,5902302122,5001000082
09.05.2018,CHILDREN'S SERVICES,ST PETERS CE SCHOOL,"4,439.00",IN YEAR STATEMENTS & REORGS,SCHOOLS CAPITATION,5902302123,5001000083
09.05.2018,CHILDREN'S SERVICES,ST SAVIOURS & ST OLAVES SCHOOL,"5,832.00",IN YEAR STATEMENTS & REORGS,SCHOOLS CAPITATION,5902302124,5001000084
09.05.2018,CHILDREN'S SERVICES,TOWER BRIDGE PRIMARY SCHOOL,"4,238.00",IN YEAR STATEMENTS & REORGS,SCHOOLS CAPITATION,5902302125,5001000095
09.05.2018,CHILDREN'S SERVICES,TOWNSEND PRIMARY SCHOOL,"8,152.00",IN YEAR STATEMENTS & REORGS,SCHOOLS CAPITATION,5902302126,5001000096
09.05.2018,CHILDREN'S SERVICES,VICTORY SCHOOL,"3,119.00",IN YEAR STATEMENTS & REORGS,SCHOOLS CAPITATION,5902302127,5001000098
09.05.2018,CHILDREN'S SERVICES,REDACTED PERSONAL DATA,"1,000.00",LEAVING CARE GRANT,OTHER PAYMENTS FOR CLIENTS,REDACTED,REDACTED
09.05.2018,CHILDREN'S SERVICES,REDACTED PERSONAL DATA,268.36,RESIDENCE ORDERS,PAYMENTS TO CARERS,REDACTED,REDACTED
09.05.2018,CHILDREN'S SERVICES,REDACTED PERSONAL DATA,269.08,RESIDENCE ORDERS,PAYMENTS TO CARERS,REDACTED,REDACTED
09.05.2018,CHILDREN'S SERVICES,REDACTED PERSONAL DATA,269.08,RESIDENCE ORDERS,PAYMENTS TO CARERS,REDACTED,REDACTED
09.05.2018,CHILDREN'S SERVICES,REDACTED PERSONAL DATA,264.16,RESIDENCE ORDERS,PAYMENTS TO CARERS,REDACTED,REDACTED
09.05.2018,CHILDREN'S SERVICES,REDACTED PERSONAL DATA,269.08,RESIDENCE ORDERS,PAYMENTS TO CARERS,REDACTED,REDACTED
09.05.2018,CHILDREN'S SERVICES,CREATING CARE CHOICES LTD,"15,000.00",RESIDENTIAL,RESIDENTIAL CARE,2102814541,1000076738
09.05.2018,CHILDREN'S SERVICES,SPORTFIT SHORT BREAK CARE LTD,"9,900.00",RESIDENTIAL,RESIDENTIAL CARE,2102814544,1000078113
09.05.2018,CHILDREN'S SERVICES,STONELAKE LONDON LTD,"23,760.00",RESIDENTIAL,RESIDENTIAL CARE,2102814542,1000080075
09.05.2018,CHILDREN'S SERVICES,ASPIRE HOUSE LTD,"21,085.80",RESIDENTIAL,RESIDENTIAL CARE,2102814543,1000080373
09.05.2018,CHILDREN'S SERVICES,KARTIKEYA SOLUTIONS LTD,"18,835.80",RESIDENTIAL,RESIDENTIAL CARE,2102814540,1000080483
09.05.2018,CHILDREN'S SERVICES,GOLDSTONE ESTATES LTD,"2,520.00",RESOURCE PANEL,SECTION 17 PAYMENTS TO AGENCIES/CARERS,5902301639,1000076548
09.05.2018,CHILDREN'S SERVICES,CARE O LINE,481.25,S & FAM SUPP - PRAC GRP A SET 14-16,OTHER PAYMENTS FOR CLIENTS,5902302051,11241743
09.05.2018,CHILDREN'S SERVICES,HOLMDENE HOUSING LTD,"1,532.86",S24 CLA,EXTERNAL AGENCIES AND BODIES,2102814641,1000032598
09.05.2018,CHILDREN'S SERVICES,HOLMDENE HOUSING LTD,"1,657.14",S24 CLA,EXTERNAL AGENCIES AND BODIES,2102814646,1000032598
09.05.2018,CHILDREN'S SERVICES,HOLMDENE HOUSING LTD,"1,947.14",S24 CLA,EXTERNAL AGENCIES AND BODIES,2102814680,1000032598
09.05.2018,CHILDREN'S SERVICES,GALAXY LETTINGS LTD,"1,050.00",S24 CLA,EXTERNAL AGENCIES AND BODIES,2102814624,1000055897
09.05.2018,CHILDREN'S SERVICES,FUTURE FOUNDATIONS LTD,"1,667.14",S24 CLA,EXTERNAL AGENCIES AND BODIES,2102814648,1000063272
09.05.2018,CHILDREN'S SERVICES,TLK PROPERTY & INVESTMENT LTD,"1,080.00",S24 CLA,EXTERNAL AGENCIES AND BODIES,2102814650,1000065661
09.05.2018,CHILDREN'S SERVICES,PURPLE PEBBLES(CHILD CARE) SERVICES,"-1,136.10",S24 CLA,EXTERNAL AGENCIES AND BODIES,2102814663,1000070705
09.05.2018,CHILDREN'S SERVICES,PURPLE PEBBLES(CHILD CARE) SERVICES,-644.08,S24 CLA,EXTERNAL AGENCIES AND BODIES,2102814632,1000070705
09.05.2018,CHILDREN'S SERVICES,PURPLE PEBBLES(CHILD CARE) SERVICES,-500,S24 CLA,EXTERNAL AGENCIES AND BODIES,2102814636,1000070705
09.05.2018,CHILDREN'S SERVICES,PURPLE PEBBLES(CHILD CARE) SERVICES,-400,S24 CLA,EXTERNAL AGENCIES AND BODIES,2102814653,1000070705
09.05.2018,CHILDREN'S SERVICES,PURPLE PEBBLES(CHILD CARE) SERVICES,260,S24 CLA,EXTERNAL AGENCIES AND BODIES,2102814681,1000070705
09.05.2018,CHILDREN'S SERVICES,PURPLE PEBBLES(CHILD CARE) SERVICES,325,S24 CLA,EXTERNAL AGENCIES AND BODIES,2102814628,1000070705
09.05.2018,CHILDREN'S SERVICES,PURPLE PEBBLES(CHILD CARE) SERVICES,325,S24 CLA,EXTERNAL AGENCIES AND BODIES,2102814642,1000070705
09.05.2018,CHILDREN'S SERVICES,PURPLE PEBBLES(CHILD CARE) SERVICES,325,S24 CLA,EXTERNAL AGENCIES AND BODIES,2102814645,1000070705
09.05.2018,CHILDREN'S SERVICES,PURPLE PEBBLES(CHILD CARE) SERVICES,325,S24 CLA,EXTERNAL AGENCIES AND BODIES,2102814649,1000070705
09.05.2018,CHILDREN'S SERVICES,PURPLE PEBBLES(CHILD CARE) SERVICES,325,S24 CLA,EXTERNAL AGENCIES AND BODIES,2102814656,1000070705
09.05.2018,CHILDREN'S SERVICES,PURPLE PEBBLES(CHILD CARE) SERVICES,325,S24 CLA,EXTERNAL AGENCIES AND BODIES,2102814662,1000070705
09.05.2018,CHILDREN'S SERVICES,PURPLE PEBBLES(CHILD CARE) SERVICES,325,S24 CLA,EXTERNAL AGENCIES AND BODIES,2102814672,1000070705
09.05.2018,CHILDREN'S SERVICES,PURPLE PEBBLES(CHILD CARE) SERVICES,325,S24 CLA,EXTERNAL AGENCIES AND BODIES,2102814677,1000070705
09.05.2018,CHILDREN'S SERVICES,PURPLE PEBBLES(CHILD CARE) SERVICES,792.85,S24 CLA,EXTERNAL AGENCIES AND BODIES,2102814639,1000070705
09.05.2018,CHILDREN'S SERVICES,PURPLE PEBBLES(CHILD CARE) SERVICES,814.29,S24 CLA,EXTERNAL AGENCIES AND BODIES,2102814678,1000070705
09.05.2018,CHILDREN'S SERVICES,PURPLE PEBBLES(CHILD CARE) SERVICES,"1,178.57",S24 CLA,EXTERNAL AGENCIES AND BODIES,2102814644,1000070705
09.05.2018,CHILDREN'S SERVICES,PURPLE PEBBLES(CHILD CARE) SERVICES,"1,236.26",S24 CLA,EXTERNAL AGENCIES AND BODIES,2102814665,1000070705
09.05.2018,CHILDREN'S SERVICES,PURPLE PEBBLES(CHILD CARE) SERVICES,"1,264.29",S24 CLA,EXTERNAL AGENCIES AND BODIES,2102814635,1000070705
09.05.2018,CHILDREN'S SERVICES,PURPLE PEBBLES(CHILD CARE) SERVICES,"1,285.71",S24 CLA,EXTERNAL AGENCIES AND BODIES,2102814659,1000070705
09.05.2018,CHILDREN'S SERVICES,PURPLE PEBBLES(CHILD CARE) SERVICES,"1,285.71",S24 CLA,EXTERNAL AGENCIES AND BODIES,2102814674,1000070705
09.05.2018,CHILDREN'S SERVICES,PURPLE PEBBLES(CHILD CARE) SERVICES,"1,307.14",S24 CLA,EXTERNAL AGENCIES AND BODIES,2102814667,1000070705
09.05.2018,CHILDREN'S SERVICES,PURPLE PEBBLES(CHILD CARE) SERVICES,"1,392.86",S24 CLA,EXTERNAL AGENCIES AND BODIES,2102814637,1000070705
09.05.2018,CHILDREN'S SERVICES,PURPLE PEBBLES(CHILD CARE) SERVICES,"1,392.86",S24 CLA,EXTERNAL AGENCIES AND BODIES,2102814664,1000070705
09.05.2018,CHILDREN'S SERVICES,PURPLE PEBBLES(CHILD CARE) SERVICES,"1,714.29",S24 CLA,EXTERNAL AGENCIES AND BODIES,2102814661,1000070705
09.05.2018,CHILDREN'S SERVICES,FINEFAIR LTD,"1,632.90",S24 CLA,EXTERNAL AGENCIES AND BODIES,2102814625,1000075570
09.05.2018,CHILDREN'S SERVICES,FINEFAIR LTD,"1,632.90",S24 CLA,EXTERNAL AGENCIES AND BODIES,2102814633,1000075570
09.05.2018,CHILDREN'S SERVICES,FINEFAIR LTD,"1,632.90",S24 CLA,EXTERNAL AGENCIES AND BODIES,2102814643,1000075570
09.05.2018,CHILDREN'S SERVICES,FINEFAIR LTD,"1,632.90",S24 CLA,EXTERNAL AGENCIES AND BODIES,2102814658,1000075570
09.05.2018,CHILDREN'S SERVICES,NETPEX LTD CORPORATE SERVICES,"3,835.80",S24 CLA,EXTERNAL AGENCIES AND BODIES,2102814638,1000076073
09.05.2018,CHILDREN'S SERVICES,NETPEX LTD CORPORATE SERVICES,"4,607.40",S24 CLA,EXTERNAL AGENCIES AND BODIES,2102814673,1000076073
09.05.2018,CHILDREN'S SERVICES,NETPEX LTD CORPORATE SERVICES,"5,464.50",S24 CLA,EXTERNAL AGENCIES AND BODIES,2102814629,1000076073
09.05.2018,CHILDREN'S SERVICES,SILVER BIRCH CARE LTD,"3,535.71",S24 CLA,EXTERNAL AGENCIES AND BODIES,2102814670,1000076525
09.05.2018,CHILDREN'S SERVICES,CAMERON SUPPORT SERVICES LTD,"4,227.85",S24 CLA,EXTERNAL AGENCIES AND BODIES,2102814631,1000079059
09.05.2018,CHILDREN'S SERVICES,CAMERON SUPPORT SERVICES LTD,"4,227.85",S24 CLA,EXTERNAL AGENCIES AND BODIES,2102814668,1000079059
09.05.2018,CHILDREN'S SERVICES,FUTURE FOUNDATIONS LTD,564.02,S24 CLA,OTHER PAYMENTS FOR CLIENTS,2102814671,1000063272
09.05.2018,CHILDREN'S SERVICES,REDACTED PERSONAL DATA,281.1,S24 CLA,OTHER PAYMENTS FOR CLIENTS,REDACTED,REDACTED
09.05.2018,CHILDREN'S SERVICES,WEB-LABS LTD,"3,237.00",SCHOOLS WEBSITE,DATA COMMUNICATIONS,5902302032,1000039819
09.05.2018,CHILDREN'S SERVICES,HOLMDENE HOUSING LTD,"4,432.86",SEMI INDEPENDENT,EXTERNAL AGENCIES AND BODIES,2102814618,1000032598
09.05.2018,CHILDREN'S SERVICES,YOUNG FUTURES,"1,398.54",SEMI INDEPENDENT,EXTERNAL AGENCIES AND BODIES,2102814604,1000059563
09.05.2018,CHILDREN'S SERVICES,FUTURE FOUNDATIONS LTD,"4,277.14",SEMI INDEPENDENT,EXTERNAL AGENCIES AND BODIES,2102814584,1000063272
09.05.2018,CHILDREN'S SERVICES,FUTURE FOUNDATIONS LTD,"5,560.28",SEMI INDEPENDENT,EXTERNAL AGENCIES AND BODIES,2102814615,1000063272
09.05.2018,CHILDREN'S SERVICES,HOLIBROOK HOUSE LTD,"4,714.29",SEMI INDEPENDENT,EXTERNAL AGENCIES AND BODIES,2102814583,1000067873
09.05.2018,CHILDREN'S SERVICES,HOLIBROOK HOUSE LTD,"7,221.43",SEMI INDEPENDENT,EXTERNAL AGENCIES AND BODIES,2102814612,1000067873
09.05.2018,CHILDREN'S SERVICES,HOLIBROOK HOUSE LTD,"7,650.00",SEMI INDEPENDENT,EXTERNAL AGENCIES AND BODIES,2102814619,1000067873
09.05.2018,CHILDREN'S SERVICES,NETPEX LTD CORPORATE SERVICES,"2,741.51",SEMI INDEPENDENT,EXTERNAL AGENCIES AND BODIES,2102814609,1000076073
09.05.2018,CHILDREN'S SERVICES,NETPEX LTD CORPORATE SERVICES,"3,214.50",SEMI INDEPENDENT,EXTERNAL AGENCIES AND BODIES,2102814620,1000076073
09.05.2018,CHILDREN'S SERVICES,NETPEX LTD CORPORATE SERVICES,"3,750.00",SEMI INDEPENDENT,EXTERNAL AGENCIES AND BODIES,2102814598,1000076073
09.05.2018,CHILDREN'S SERVICES,NETPEX LTD CORPORATE SERVICES,"4,071.60",SEMI INDEPENDENT,EXTERNAL AGENCIES AND BODIES,2102814586,1000076073
09.05.2018,CHILDREN'S SERVICES,NETPEX LTD CORPORATE SERVICES,"4,500.00",SEMI INDEPENDENT,EXTERNAL AGENCIES AND BODIES,2102814621,1000076073
09.05.2018,CHILDREN'S SERVICES,PATHWAY LTD,"3,750.00",SEMI INDEPENDENT,EXTERNAL AGENCIES AND BODIES,2102814589,1000080564
09.05.2018,CHILDREN'S SERVICES,PATHWAY LTD,"3,750.00",SEMI INDEPENDENT,EXTERNAL AGENCIES AND BODIES,2102814595,1000080564
09.05.2018,CHILDREN'S SERVICES,PATHWAY LTD,"3,750.00",SEMI INDEPENDENT,EXTERNAL AGENCIES AND BODIES,2102814605,1000080564
09.05.2018,CHILDREN'S SERVICES,PATHWAY LTD,"4,361.40",SEMI INDEPENDENT,EXTERNAL AGENCIES AND BODIES,2102814607,1000080564
09.05.2018,CHILDREN'S SERVICES,FUTURE FOUNDATIONS LTD,257.14,SEMI INDEPENDENT,OTHER PAYMENTS FOR CLIENTS,2102814588,1000063272
09.05.2018,CHILDREN'S SERVICES,FUTURE FOUNDATIONS LTD,334.28,SEMI INDEPENDENT,OTHER PAYMENTS FOR CLIENTS,2102814593,1000063272
09.05.2018,CHILDREN'S SERVICES,FUTURE FOUNDATIONS LTD,537.85,SEMI INDEPENDENT,OTHER PAYMENTS FOR CLIENTS,2102814603,1000063272
09.05.2018,CHILDREN'S SERVICES,FUTURE FOUNDATIONS LTD,"2,297.15",SEMI INDEPENDENT,OTHER PAYMENTS FOR CLIENTS,2102814610,1000063272
09.05.2018,CHILDREN'S SERVICES,NETPEX LTD CORPORATE SERVICES,289.5,SEMI INDEPENDENT,OTHER PAYMENTS FOR CLIENTS,2102814685,1000076073
09.05.2018,CHILDREN'S SERVICES,REDACTED PERSONAL DATA,400,SEMI INDEPENDENT,OTHER PAYMENTS FOR CLIENTS,REDACTED,REDACTED
09.05.2018,CHILDREN'S SERVICES,REDACTED PERSONAL DATA,334.28,SEMI INDEPENDENT,OTHER PAYMENTS FOR CLIENTS,REDACTED,REDACTED
09.05.2018,CHILDREN'S SERVICES,REDACTED PERSONAL DATA,433.36,SPECIAL GUARDIANSHIP,PAYMENTS TO CARERS,REDACTED,REDACTED
09.05.2018,CHILDREN'S SERVICES,REDACTED PERSONAL DATA,276.1,SPECIAL GUARDIANSHIP,PAYMENTS TO CARERS,REDACTED,REDACTED
09.05.2018,CHILDREN'S SERVICES,REDACTED PERSONAL DATA,269.08,SPECIAL GUARDIANSHIP,PAYMENTS TO CARERS,REDACTED,REDACTED
09.05.2018,CHILDREN'S SERVICES,REDACTED PERSONAL DATA,269.08,SPECIAL GUARDIANSHIP,PAYMENTS TO CARERS,REDACTED,REDACTED
09.05.2018,CHILDREN'S SERVICES,REDACTED PERSONAL DATA,"11,284.74",SPECIAL GUARDIANSHIP,PAYMENTS TO CARERS,REDACTED,REDACTED
09.05.2018,CHILDREN'S SERVICES,REDACTED PERSONAL DATA,269.08,SPECIAL GUARDIANSHIP,PAYMENTS TO CARERS,REDACTED,REDACTED
09.05.2018,CHILDREN'S SERVICES,REDACTED PERSONAL DATA,354.59,SPECIAL GUARDIANSHIP,PAYMENTS TO CARERS,REDACTED,REDACTED
09.05.2018,CHILDREN'S SERVICES,REDACTED PERSONAL DATA,525,SPECIAL GUARDIANSHIP,PAYMENTS TO CARERS,REDACTED,REDACTED
09.05.2018,CHILDREN'S SERVICES,REDACTED PERSONAL DATA,525,SPECIAL GUARDIANSHIP,PAYMENTS TO CARERS,REDACTED,REDACTED
09.05.2018,CHILDREN'S SERVICES,REDACTED PERSONAL DATA,525,SPECIAL GUARDIANSHIP,PAYMENTS TO CARERS,REDACTED,REDACTED
09.05.2018,CHILDREN'S SERVICES,REDACTED PERSONAL DATA,303.97,SPECIAL GUARDIANSHIP,PAYMENTS TO CARERS,REDACTED,REDACTED
09.05.2018,CHILDREN'S SERVICES,REDACTED PERSONAL DATA,268.36,SPECIAL GUARDIANSHIP,PAYMENTS TO CARERS,REDACTED,REDACTED
09.05.2018,CHILDREN'S SERVICES,ALBION PRIMARY SCHOOL,"7,754.00",SPORTS FUNDING,SCHOOLS CAPITATION,2102813680,5001000000
09.05.2018,CHILDREN'S SERVICES,ALFRED SALTER PRIMARY SCHOOL,"8,096.00",SPORTS FUNDING,SCHOOLS CAPITATION,2102813711,5001000005
09.05.2018,CHILDREN'S SERVICES,BELLENDEN PRIMARY SCHOOL,"7,475.00",SPORTS FUNDING,SCHOOLS CAPITATION,2102813681,5001000007
09.05.2018,CHILDREN'S SERVICES,BEORMUND PRIMARY SCHOOL,"6,812.00",SPORTS FUNDING,SCHOOLS CAPITATION,2102813740,5001000008
09.05.2018,CHILDREN'S SERVICES,BESSEMER GRANGE PRIMARY SCHOOL,"8,621.00",SPORTS FUNDING,SCHOOLS CAPITATION,2102813743,5001000009
09.05.2018,CHILDREN'S SERVICES,BETHLEM & MAUDSLEY HOSPITAL SCHOOL,"2,083.00",SPORTS FUNDING,SCHOOLS CAPITATION,2102813748,5001000010
09.05.2018,CHILDREN'S SERVICES,BOUCHER C OF E PRIMARY SCHOOL,"7,412.00",SPORTS FUNDING,SCHOOLS CAPITATION,2102813713,5001000011
09.05.2018,CHILDREN'S SERVICES,BRUNSWICK PARK PRIMARY SCHOOL,"8,412.00",SPORTS FUNDING,SCHOOLS CAPITATION,2102813745,5001000013
09.05.2018,CHILDREN'S SERVICES,CAMELOT PRIMARY SCHOOL,"8,362.00",SPORTS FUNDING,SCHOOLS CAPITATION,2102813682,5001000014
09.05.2018,CHILDREN'S SERVICES,CHARLES DICKENS PRIMARY SCHOOL,"8,029.00",SPORTS FUNDING,SCHOOLS CAPITATION,2102813683,5001000015
09.05.2018,CHILDREN'S SERVICES,CHARLOTTE  SHARMAN PRIMARY SCHOOL,"7,821.00",SPORTS FUNDING,SCHOOLS CAPITATION,2102813708,5001000016
09.05.2018,CHILDREN'S SERVICES,ST JOSEPHS RC JUNIOR  SCHOOL,"7,654.00",SPORTS FUNDING,SCHOOLS CAPITATION,2102813735,5001000017
09.05.2018,CHILDREN'S SERVICES,ST JOSEPHS CATHOLIC INFANTS SCHOOL,"7,108.00",SPORTS FUNDING,SCHOOLS CAPITATION,2102813736,5001000018
09.05.2018,CHILDREN'S SERVICES,ST JUDES CHURCH OF ENGLAND PRIMARY,"7,079.00",SPORTS FUNDING,SCHOOLS CAPITATION,2102813726,5001000019
09.05.2018,CHILDREN'S SERVICES,CHERRY GARDEN SCHOOL,"6,842.00",SPORTS FUNDING,SCHOOLS CAPITATION,2102813742,5001000020
09.05.2018,CHILDREN'S SERVICES,COBOURG PRIMARY SCHOOL,"8,117.00",SPORTS FUNDING,SCHOOLS CAPITATION,2102813684,5001000021
09.05.2018,CHILDREN'S SERVICES,COMBER GROVE PRIMARY SCHOOL,"7,750.00",SPORTS FUNDING,SCHOOLS CAPITATION,2102813685,5001000022
09.05.2018,CHILDREN'S SERVICES,CRAMPTON PRIMARY SCHOOL,"7,383.00",SPORTS FUNDING,SCHOOLS CAPITATION,2102813686,5001000023
09.05.2018,CHILDREN'S SERVICES,CRAWFORD PRIMARY SCHOOL,"8,400.00",SPORTS FUNDING,SCHOOLS CAPITATION,2102813687,5001000024
09.05.2018,CHILDREN'S SERVICES,DOG KENNEL HILL PRIMARY SCHOOL,"8,179.00",SPORTS FUNDING,SCHOOLS CAPITATION,2102813688,5001000025
09.05.2018,CHILDREN'S SERVICES,DULWICH VILLAGE CE INFANTS SCHOOL,"7,379.00",SPORTS FUNDING,SCHOOLS CAPITATION,2102813714,5001000027
09.05.2018,CHILDREN'S SERVICES,GOODRICH PRIMARY SCHOOL,"8,754.00",SPORTS FUNDING,SCHOOLS CAPITATION,2102813689,5001000028
09.05.2018,CHILDREN'S SERVICES,GRANGE PRIMARY SCHOOL,"7,954.00",SPORTS FUNDING,SCHOOLS CAPITATION,2102813690,5001000029
09.05.2018,CHILDREN'S SERVICES,ENGLISH MARTYRS RC PRIMARY SCHOOL,"7,958.00",SPORTS FUNDING,SCHOOLS CAPITATION,2102813715,5001000030
09.05.2018,CHILDREN'S SERVICES,EVELINA HOSPITAL SCHOOL,"6,812.00",SPORTS FUNDING,SCHOOLS CAPITATION,2102813747,5001000031
09.05.2018,CHILDREN'S SERVICES,PHOENIX PRIMARY SCHOOL,"8,275.00",SPORTS FUNDING,SCHOOLS CAPITATION,2102813709,5001000032
09.05.2018,CHILDREN'S SERVICES,FRIARS PRIMARY SCHOOL,"7,362.00",SPORTS FUNDING,SCHOOLS CAPITATION,2102813737,5001000033
09.05.2018,CHILDREN'S SERVICES,HEBER PRIMARY SCHOOL,"8,179.00",SPORTS FUNDING,SCHOOLS CAPITATION,2102813691,5001000035
09.05.2018,CHILDREN'S SERVICES,HOLLYDALE PRIMARY SCHOOL,"7,542.00",SPORTS FUNDING,SCHOOLS CAPITATION,2102813692,5001000036
09.05.2018,CHILDREN'S SERVICES,ILDERTON PRIMARY SCHOOL,"8,017.00",SPORTS FUNDING,SCHOOLS CAPITATION,2102813693,5001000037
09.05.2018,CHILDREN'S SERVICES,IVYDALE PRIMARY SCHOOL,"8,296.00",SPORTS FUNDING,SCHOOLS CAPITATION,2102813694,5001000038
09.05.2018,CHILDREN'S SERVICES,JOHN RUSKIN PRIMARY SCHOOL,"8,200.00",SPORTS FUNDING,SCHOOLS CAPITATION,2102813695,5001000040
09.05.2018,CHILDREN'S SERVICES,KEYWORTH PRIMARY SCHOOL,"8,050.00",SPORTS FUNDING,SCHOOLS CAPITATION,2102813696,5001000041
09.05.2018,CHILDREN'S SERVICES,DULWICH WOOD PRIMARY SCHOOL,"7,600.00",SPORTS FUNDING,SCHOOLS CAPITATION,2102813697,5001000042
09.05.2018,CHILDREN'S SERVICES,LYNDHURST PRIMARY SCHOOL,"8,062.00",SPORTS FUNDING,SCHOOLS CAPITATION,2102813698,5001000043
09.05.2018,CHILDREN'S SERVICES,HAYMERLE SCHOOL,"6,950.00",SPORTS FUNDING,SCHOOLS CAPITATION,2102813739,5001000045
09.05.2018,CHILDREN'S SERVICES,HIGHSHORE SCHOOL,417,SPORTS FUNDING,SCHOOLS CAPITATION,2102813738,5001000046
09.05.2018,CHILDREN'S SERVICES,MICHAEL FARADAY PRIMARY SCHOOL,"7,983.00",SPORTS FUNDING,SCHOOLS CAPITATION,2102813699,5001000048
09.05.2018,CHILDREN'S SERVICES,OLIVER GOLDSMITH PRIMARY SCHOOL,"8,108.00",SPORTS FUNDING,SCHOOLS CAPITATION,2102813712,5001000051
09.05.2018,CHILDREN'S SERVICES,PETER HILLS CE SCHOOL,"7,350.00",SPORTS FUNDING,SCHOOLS CAPITATION,2102813728,5001000053
